Service Area,Service Division,Expense Type,Expense Code,Detailed Expense Type,Payment Date,Transaction Number,Amount Exc Vat,Supplier Name
Children and Adult Services,Central Charges (CYPS),Creditors,952258,Creditor-West Durham Cluster,01-Mar-2016,3094851-856,730.00,CLIVE HUBERY.
Children and Adult Services,Childrens Services,Third Party Payments,440016,Other Third Party Payments,01-Mar-2016,3094346-1086029,643.51,REDACTED - PAYMENT TO INDIVIDUAL
Children and Adult Services,Childrens Services,Third Party Payments,440029,Other Third Party Payments,01-Mar-2016,3094449-1085059,630.34,REDACTED - PAYMENT TO INDIVIDUAL
Children and Adult Services,Childrens Services,Third Party Payments,440016,Other Third Party Payments,01-Mar-2016,3094582-1086627,756.00,REDACTED - PAYMENT TO INDIVIDUAL
Children and Adult Services,Childrens Services,Third Party Payments,425040,Rendered by Voluntary Organisations,01-Mar-2016,3094886-125330,730.00,FOSTER CARES LTD.
Children and Adult Services,Childrens Services,Third Party Payments,425040,Rendered by Voluntary Organisations,01-Mar-2016,3094886-125402,820.00,FOSTER CARES LTD.
Children and Adult Services,Childrens Services,Third Party Payments,425040,Rendered by Voluntary Organisations,01-Mar-2016,3094886-125409,730.00,FOSTER CARES LTD.
Children and Adult Services,Childrens Services,Third Party Payments,425040,Rendered by Voluntary Organisations,01-Mar-2016,3094886-125423,730.00,FOSTER CARES LTD.
Children and Adult Services,Childrens Services,Supplies and Services,364301,Grants to Voluntary Organisations,01-Mar-2016,3094923-CAS-02-2016-204,622.09,REDACTED - PAYMENT TO INDIVIDUAL
Children and Adult Services,Childrens Services,Supplies and Services,384199,Miscellaneous Expenses,01-Mar-2016,3095059-26831,669.13,WRIXON SECURITY SERVICES LTD T/A WRIXON CARE.
Children and Adult Services,Education,Transport,230006,Contract Hire,01-Mar-2016,3094883-7,751.80,EXCEL ACADEMY PARTNERSHIP T/A FRAMWELLGATE SCH DURHAM.
Children and Adult Services,Education,Supplies and Services,384199,Miscellaneous Expenses,01-Mar-2016,3094927-1083,682.65,JIGSAW THERAPY SERVICES.
Children and Adult Services,Education,Transport,230008,Contract Hire,01-Mar-2016,3094929-29/01/16E,"1,393.08",JL EBDON.
Children and Adult Services,Education,Supplies and Services,384199,Miscellaneous Expenses,01-Mar-2016,3095008-SI-53,710.00,REDMAT LTD.
Children and Adult Services,Head of Adults,Third Party Payments,472101,Purchase of Care,01-Mar-2016,3094839-CAS-02-2016-212,"2,347.86",CASTLE CARE TEESDALE LTD.
Children and Adult Services,Head of Adults,Supplies and Services,384616,Miscellaneous Expenses,01-Mar-2016,3094887-SH291516,"7,624.26",FOUR HOUSING GROUP & CARE & REPAIR HANDYPERSON SERVICE.
Children and Adult Services,Head of Adults,Supplies and Services,384616,Miscellaneous Expenses,01-Mar-2016,3094887-SH301516,"1,811.81",FOUR HOUSING GROUP & CARE & REPAIR HANDYPERSON SERVICE.
Neighbourhood Services,Technical Services,Supplies and Services,304221,Equipment and Materials,01-Mar-2016,3094812-22609652,"1,238.95",AGGREGATE INDUSTRIES UK LTD.
Neighbourhood Services,Technical Services,Supplies and Services,304221,Equipment and Materials,01-Mar-2016,3094812-22665249,638.27,AGGREGATE INDUSTRIES UK LTD.
Neighbourhood Services,Culture & Sport,Premises,145023,Cleaning and Domestic Supplies,01-Mar-2016,3094828-22SI2211707,740.85,BRENNTAG UK LTD.
Neighbourhood Services,Direct Services,Third Party Payments,430100,Rendered by Private Contractors,01-Mar-2016,3094841-161,"16,479.91",CEILINGS DIRECT LTD.
Neighbourhood Services,Direct Services,Third Party Payments,430100,Rendered by Private Contractors,01-Mar-2016,3094841-162,"1,534.90",CEILINGS DIRECT LTD.
Neighbourhood Services,Direct Services,Third Party Payments,430100,Rendered by Private Contractors,01-Mar-2016,3094841-165,"3,926.47",CEILINGS DIRECT LTD.
Neighbourhood Services,Direct Services,Third Party Payments,430100,Rendered by Private Contractors,01-Mar-2016,3094841-166,866.49,CEILINGS DIRECT LTD.
Neighbourhood Services,Culture & Sport,Supplies and Services,304221,Equipment and Materials,01-Mar-2016,3094855-003931,"2,150.01",CONCEPT 2.
Neighbourhood Services,Technical Services,Supplies and Services,338027,Services,01-Mar-2016,3094900-0040180025,"4,388.00",HARTLEPOOL BOROUGH COUNCIL.
Neighbourhood Services,Culture & Sport,Supplies and Services,338066,Services,01-Mar-2016,3094918-0802015,"1,241.55",INVESTING IN CHILDREN CIC.
Neighbourhood Services,Technical Services,Construction Work,908105,Construction work,01-Mar-2016,3094920-12151,565.28,JACK COUPE & SONS LTD T/A COUPE LINE.
Neighbourhood Services,Culture & Sport,Supplies and Services,338047,Services,01-Mar-2016,3094962-MFD,"2,575.98",MANCHESTER FOOD AND DRINK FESTIVAL LTD.
Neighbourhood Services,Technical Services,Third Party Payments,430100,Rendered by Private Contractors,01-Mar-2016,3094986-NC1/C445/BW,"22,989.58",NEDCO CONTRACTS (NE) LTD.
Neighbourhood Services,Technical Services,Supplies and Services,384194,Miscellaneous Expenses,01-Mar-2016,3094989-55678,"2,375.00",NIRAMAX GROUP LTD.
Neighbourhood Services,Direct Services,Third Party Payments,430100,Rendered by Private Contractors,01-Mar-2016,3094992-16020377,752.42,NOVUS PROPERTY SOLUTIONS LTD.
Neighbourhood Services,Direct Services,Supplies and Services,304221,Equipment and Materials,01-Mar-2016,3094995-17933,"1,770.00",OLIVERS TREE SERVICES LTD.
Neighbourhood Services,Technical Services,Third Party Payments,430100,Rendered by Private Contractors,01-Mar-2016,3094995-17935,"1,530.00",OLIVERS TREE SERVICES LTD.
Neighbourhood Services,Technical Services,Third Party Payments,430100,Rendered by Private Contractors,01-Mar-2016,3095011-935,962.00,SCHMUCK WHORLTON LTD.
Neighbourhood Services,Direct Services,Transport,230005,Contract Hire,01-Mar-2016,3095016-10668176,756.00,SHB HIRE LTD.
Neighbourhood Services,Technical Services,Supplies and Services,304221,Equipment and Materials,01-Mar-2016,3095026-079044,958.16,STONEGRAVE AGGREGATES LTD.
Neighbourhood Services,Direct Services,Supplies and Services,304221,Equipment and Materials,01-Mar-2016,3095034-1863674,"2,222.08",T CROSSLING & CO LTD.
Neighbourhood Services,Direct Services,Supplies and Services,304221,Equipment and Materials,01-Mar-2016,3095034-1869498,921.71,T CROSSLING & CO LTD.
Neighbourhood Services,Direct Services,Supplies and Services,304221,Equipment and Materials,01-Mar-2016,3095034-1869499,558.15,T CROSSLING & CO LTD.
Neighbourhood Services,Direct Services,Supplies and Services,304221,Equipment and Materials,01-Mar-2016,3095034-1869500,839.36,T CROSSLING & CO LTD.
Neighbourhood Services,Technical Services,Supplies and Services,304221,Equipment and Materials,01-Mar-2016,3095035-9033856208,"1,039.71",TARMAC TRADING LTD.
Regeneration & Economic Development,Economic Development and Housing,Cap Exp on Grants & Other Financial Assistance (REFCUS),918401,Capital grants,01-Mar-2016,3094810-RED-02-2016-237,"3,741.81",A OGILVIE BUILDING CONTRACTORS LTD.
Regeneration & Economic Development,Economic Development and Housing,Fees,901002,Professional fees,01-Mar-2016,3094860-16/013,618.75,COUNTRYSIDE CONSULTANTS (ARCHITECTS & PLANNERS).
Regeneration & Economic Development,Economic Development and Housing,Cap Exp on Grants & Other Financial Assistance (REFCUS),918401,Capital grants,01-Mar-2016,3094877-RED-02-2016-235,"1,379.69",EASIBATHE LTD.
Regeneration & Economic Development,Economic Development and Housing,Premises,120009,Energy Costs,01-Mar-2016,3094881-000001306772,988.84,EDF ENERGY CUSTOMERS PLC T/A EDF ENERGY.
Regeneration & Economic Development,Economic Development and Housing,Cap Exp on Grants & Other Financial Assistance (REFCUS),918401,Capital grants,01-Mar-2016,3094906-RED-02-2016-231,"3,960.00",HES GROUP UK LTD.
Regeneration & Economic Development,Economic Development and Housing,Cap Exp on Grants & Other Financial Assistance (REFCUS),918401,Capital grants,01-Mar-2016,3094906-RED-02-2016-233,"3,600.00",HES GROUP UK LTD.
Regeneration & Economic Development,Economic Development and Housing,Cap Exp on Grants & Other Financial Assistance (REFCUS),918401,Capital grants,01-Mar-2016,3094934-RED-02-2016-228,"8,182.15",K HARRISON (BUILDER) NE LTD.
Regeneration & Economic Development,Economic Development and Housing,Cap Exp on Grants & Other Financial Assistance (REFCUS),918401,Capital grants,01-Mar-2016,3094934-RED-02-2016-240,"5,182.18",K HARRISON (BUILDER) NE LTD.
Regeneration & Economic Development,Economic Development and Housing,Cap Exp on Grants & Other Financial Assistance (REFCUS),918401,Capital grants,01-Mar-2016,3094957-RED-02-2016-238,"2,303.00",LORMOR & HALL CONSTRUCTION.
Regeneration & Economic Development,Spatial Policy Planning Assets & Environment,Third Party Payments,440999,Other Third Party Payments,01-Mar-2016,3094969-3991,"11,147.74",MICROCOPY SYSTEMS LTD.
Regeneration & Economic Development,Economic Development and Housing,Cap Exp on Grants & Other Financial Assistance (REFCUS),918401,Capital grants,01-Mar-2016,3094999-RED-02-2016-234,"3,940.00",PETER JORDAN.
Regeneration & Economic Development,Economic Development and Housing,Cap Exp on Grants & Other Financial Assistance (REFCUS),918401,Capital grants,01-Mar-2016,3094999-RED-02-2016-236,"3,650.00",PETER JORDAN.
Regeneration & Economic Development,Economic Development and Housing,Cap Exp on Grants & Other Financial Assistance (REFCUS),918401,Capital grants,01-Mar-2016,3095005-RED-02-2016-239,"3,515.00",R TINDALE (BUILDER) LTD.
Regeneration & Economic Development,RED Departmental Support Costs,Debtors,930177,Debtor - Chapter Homes,01-Mar-2016,3095039-PN10404082,"3,295.20",THINK BDW LTD T/A THINK BDW/ROBSON BROWN (NORTH EAST OFFICE).
Regeneration & Economic Development,Economic Development and Housing,Cap Exp on Grants & Other Financial Assistance (REFCUS),918401,Capital grants,01-Mar-2016,3095040-RED-02-2016-230,"1,507.24",THYSSENKRUPP ENCASA A DIVISION OF THYSSENKRUPP ACCESS LTD.
Resources,Financial Services,Supplies and Services,384199,Miscellaneous Expenses,01-Mar-2016,3094846-X/IC27656,526.50,CIVICA UK LTD.
Resources,Financial Services,Transfer Payments,520002,Housing Benefits,01-Mar-2016,3094866-RENT-REBATE-83329,906.39,DALE & VALLEY HOMES.
Resources,Financial Services,Transfer Payments,520002,Housing Benefits,01-Mar-2016,3094875-RENT-REBATE-83327,"1,087.92",DURHAM CITY HOMES LTD.
Resources,Financial Services,Transfer Payments,520002,Housing Benefits,01-Mar-2016,3094879-RENT-REBATE-83328,"1,622.47",EAST DURHAM HOMES.
Children and Adult Services,Childrens Services,Third Party Payments,440036,Other Third Party Payments,02-Mar-2016,302721-CAS-02-2016-170,769.65,REDACTED - PAYMENT TO INDIVIDUAL
Children and Adult Services,Childrens Services,Third Party Payments,486032,Service Level Agreements,02-Mar-2016,3095071-R81IN2/00005620,"2,745.19",ACTION FOR CHILDREN SERVICES LTD.
Children and Adult Services,Childrens Services,Supplies and Services,308011,Furniture,02-Mar-2016,3095076-154605,656.00,ALBANY CONTRACT FURNITURE.
Children and Adult Services,Childrens Services,Third Party Payments,425040,Rendered by Voluntary Organisations,02-Mar-2016,3095086-146509176,"4,340.00",BARNARDO SERVICES LTD.
Children and Adult Services,Childrens Services,Third Party Payments,425040,Rendered by Voluntary Organisations,02-Mar-2016,3095086-146509177,"3,631.34",BARNARDO SERVICES LTD.
Children and Adult Services,Childrens Services,Third Party Payments,425040,Rendered by Voluntary Organisations,02-Mar-2016,3095086-146509179,"3,631.34",BARNARDO SERVICES LTD.
Children and Adult Services,Childrens Services,Third Party Payments,425040,Rendered by Voluntary Organisations,02-Mar-2016,3095086-146509181,"3,631.34",BARNARDO SERVICES LTD.
Children and Adult Services,Childrens Services,Third Party Payments,425017,Rendered by Voluntary Organisations,02-Mar-2016,3095098-278/16,720.00,BUTTERWICK HOSPICE RETAIL LTD.
Children and Adult Services,Childrens Services,Third Party Payments,425017,Rendered by Voluntary Organisations,02-Mar-2016,3095098-279/16,720.00,BUTTERWICK HOSPICE RETAIL LTD.
Children and Adult Services,Childrens Services,Third Party Payments,425017,Rendered by Voluntary Organisations,02-Mar-2016,3095098-280/16,720.00,BUTTERWICK HOSPICE RETAIL LTD.
Children and Adult Services,Childrens Services,Third Party Payments,425020,Rendered by Voluntary Organisations,02-Mar-2016,3095098-282/16,720.00,BUTTERWICK HOSPICE RETAIL LTD.
Children and Adult Services,Childrens Services,Third Party Payments,425017,Rendered by Voluntary Organisations,02-Mar-2016,3095098-284/16,720.00,BUTTERWICK HOSPICE RETAIL LTD.
Children and Adult Services,Childrens Services,Third Party Payments,425017,Rendered by Voluntary Organisations,02-Mar-2016,3095098-285/16,720.00,BUTTERWICK HOSPICE RETAIL LTD.
Children and Adult Services,Childrens Services,Third Party Payments,486022,Service Level Agreements,02-Mar-2016,3095171-5760,"3,957.07",FSO FLEXIBLE SUPPORT OPTIONS UK (DOMICILARY) LTD.
Children and Adult Services,Childrens Services,Supplies and Services,364353,Grants to Voluntary Organisations,02-Mar-2016,3095258-CAS-03-2016-004,"2,427.20",REDACTED - PAYMENT TO INDIVIDUAL
Children and Adult Services,Childrens Services,Construction Work,908105,Construction work,02-Mar-2016,3095293-5231,"3,778.32",QW SECURITY LTD.
Children and Adult Services,Childrens Services,Construction Work,908105,Construction work,02-Mar-2016,3095293-5323,"4,401.12",QW SECURITY LTD.
Children and Adult Services,Childrens Services,Construction Work,908105,Construction work,02-Mar-2016,3095293-5372,"4,089.72",QW SECURITY LTD.
Children and Adult Services,Childrens Services,Construction Work,908105,Construction work,02-Mar-2016,3095293-5475,"1,048.38",QW SECURITY LTD.
Children and Adult Services,Childrens Services,Supplies and Services,338043,Services,02-Mar-2016,3095303-RES-03-2016-001,"1,160.00",RICHMOND ANDERSON GOUDIE.
Children and Adult Services,Childrens Services,Third Party Payments,425040,Rendered by Voluntary Organisations,02-Mar-2016,3095335-1161215,"3,100.00",ST CUTHBERTS CARE.
Children and Adult Services,Childrens Services,Third Party Payments,425041,Rendered by Voluntary Organisations,02-Mar-2016,3095336-995965,"2,250.00",ST FRANCIS CHILDRENS SOCIETY.
Children and Adult Services,Childrens Services,Supplies and Services,364310,Grants to Voluntary Organisations,02-Mar-2016,3095339-CAS-02-2016-207,541.32,REDACTED - PAYMENT TO INDIVIDUAL
Children and Adult Services,Childrens Services,Third Party Payments,425040,Rendered by Voluntary Organisations,02-Mar-2016,3095341-177863,730.03,SWIIS FOSTER CARE LTD.
Children and Adult Services,Childrens Services,Third Party Payments,425040,Rendered by Voluntary Organisations,02-Mar-2016,3095341-177870,730.03,SWIIS FOSTER CARE LTD.
Children and Adult Services,Childrens Services,Third Party Payments,425040,Rendered by Voluntary Organisations,02-Mar-2016,3095341-178246,819.98,SWIIS FOSTER CARE LTD.
Children and Adult Services,Childrens Services,Third Party Payments,425040,Rendered by Voluntary Organisations,02-Mar-2016,3095341-178248,730.03,SWIIS FOSTER CARE LTD.
Children and Adult Services,Childrens Services,Third Party Payments,425040,Rendered by Voluntary Organisations,02-Mar-2016,3095341-178250,730.03,SWIIS FOSTER CARE LTD.
Children and Adult Services,Childrens Services,Third Party Payments,425040,Rendered by Voluntary Organisations,02-Mar-2016,3095341-178251,980.00,SWIIS FOSTER CARE LTD.
Children and Adult Services,Childrens Services,Third Party Payments,425040,Rendered by Voluntary Organisations,02-Mar-2016,3095341-178253,759.99,SWIIS FOSTER CARE LTD.
Children and Adult Services,Childrens Services,Third Party Payments,425040,Rendered by Voluntary Organisations,02-Mar-2016,3095341-178254,819.98,SWIIS FOSTER CARE LTD.
Children and Adult Services,Childrens Services,Third Party Payments,425040,Rendered by Voluntary Organisations,02-Mar-2016,3095341-178255,730.03,SWIIS FOSTER CARE LTD.
Children and Adult Services,Childrens Services,Third Party Payments,425040,Rendered by Voluntary Organisations,02-Mar-2016,3095341-178256,980.00,SWIIS FOSTER CARE LTD.
Children and Adult Services,Childrens Services,Third Party Payments,425040,Rendered by Voluntary Organisations,02-Mar-2016,3095353-000183,"8,166.33",THE FOSTERING COMPANY NE LTD.
Dedicated Schools Grant,Dedicated Schools Grant,Third Party Payments,410037,Rendered by Other Local Authorities,02-Mar-2016,3095190-1000216,"2,250.00",HORIZONS SPECIALIST ACADEMY TRUST.
Dedicated Schools Grant,Dedicated Schools Grant,Construction Work,908105,Construction work,02-Mar-2016,3095310-068887,"3,301.50",ROMPA LTD.
Dedicated Schools Grant,Dedicated Schools Grant,Supplies and Services,384199,Miscellaneous Expenses,02-Mar-2016,3095348-4810005585,920.56,TEES ESK & WEAR VALLEYS NHS FOUNDATION TRUST.
Children and Adult Services,Education,Supplies and Services,384199,Miscellaneous Expenses,02-Mar-2016,302770-02,523.20,PATRICIA GARRIGAN.
Children and Adult Services,Education,Transport,230008,Contract Hire,02-Mar-2016,3095069-J26/SR,645.00,AABAT TAXIS.
Children and Adult Services,Education,Transport,230006,Contract Hire,02-Mar-2016,3095112-7,751.80,CLOVER TAXIS.
Children and Adult Services,Education,Supplies and Services,338045,Services,02-Mar-2016,3095134-256546-27/1/16,"2,160.00",DERE STREET BARRISTERS.
Children and Adult Services,Education,Transport,230007,Contract Hire,02-Mar-2016,3095192-0024,"1,606.20",HUNTER BROTHERS (TANTOBIE) LTD.
Children and Adult Services,Education,Fees,901002,Professional fees,02-Mar-2016,3095308-CDM/15/10/JRG/SRA-B,570.00,RNJ PARTNERSHIP LLP.
Children and Adult Services,Education,Supplies and Services,384199,Miscellaneous Expenses,02-Mar-2016,3095328-216191,640.00,SIMPLY SPORT LTD.
Children and Adult Services,Education,Transfer Payments,510028,School Children,02-Mar-2016,3095338-CAS-02-2016-070,"5,000.00",STEPHENSON WAY COMMUNITY PRIMARY SCHOOL.
Children and Adult Services,Head of Adults,Third Party Payments,478101,Purchase of Care,02-Mar-2016,302749-2293078,"1,232.44",REDACTED - PAYMENT TO INDIVIDUAL
Children and Adult Services,Head of Adults,Supplies and Services,338367,Services,02-Mar-2016,3095106-29891,675.00,CARE ABILITY.
Children and Adult Services,Head of Adults,Supplies and Services,338367,Services,02-Mar-2016,3095106-29892,675.00,CARE ABILITY.
Children and Adult Services,Head of Adults,Supplies and Services,338367,Services,02-Mar-2016,3095106-29893,675.00,CARE ABILITY.
Children and Adult Services,Head of Adults,Third Party Payments,470101,Purchase of Care,02-Mar-2016,3095129-CAS-03-2016-006,"12,054.16",DARWIN PLACE CARE HOME.
Children and Adult Services,Head of Adults,Supplies and Services,364352,Grants to Voluntary Organisations,02-Mar-2016,3095309-1212,"1,492.10",ROCSOLID.
Children and Adult Services,Head of Adults,Supplies and Services,364352,Grants to Voluntary Organisations,02-Mar-2016,3095309-1232,905.16,ROCSOLID.
Children and Adult Services,Planning & Service Strategy,Supplies and Services,338089,Services,02-Mar-2016,3095381-1084,"2,200.00",WELL HANDLED LTD.
Children and Adult Services,Public Health,Third Party Payments,460803,Contract Payments,02-Mar-2016,302692-228,"1,687.50",BWY CANINE LTD.
Assistant Chief Executive,Partnerships & Community Engagement Div.,Transfer Payments,525030,Other,02-Mar-2016,3095072-CHES013,"10,000.00",AGE UK COUNTY DURHAM.
Assistant Chief Executive,Partnerships & Community Engagement Div.,Transfer Payments,525030,Other,02-Mar-2016,3095145-EDRC003,"18,925.88",DURHAM DEAFENED SUPPORT.
Assistant Chief Executive,Partnerships & Community Engagement Div.,Supplies and Services,384086,Miscellaneous Expenses,02-Mar-2016,3095266-EDUR024,"5,396.00",MURTON WELFARE ASSOCIATION.
Assistant Chief Executive,Partnerships & Community Engagement Div.,Transfer Payments,525030,Other,02-Mar-2016,3095363-EDRC002,"7,500.00",TRIMDON VILLAGE HALL.
Neighbourhood Services,Technical Services,Supplies and Services,304221,Equipment and Materials,02-Mar-2016,302688-6446,"1,561.57",ALTHON LTD.
Neighbourhood Services,Technical Services,Supplies and Services,304221,Equipment and Materials,02-Mar-2016,3095073-22667980,"1,240.21",AGGREGATE INDUSTRIES UK LTD.
Neighbourhood Services,Technical Services,Supplies and Services,304221,Equipment and Materials,02-Mar-2016,3095073-22667981,694.04,AGGREGATE INDUSTRIES UK LTD.
Neighbourhood Services,Technical Services,Supplies and Services,304221,Equipment and Materials,02-Mar-2016,3095073-22667982,"2,186.78",AGGREGATE INDUSTRIES UK LTD.
Neighbourhood Services,Technical Services,Supplies and Services,304221,Equipment and Materials,02-Mar-2016,3095073-22667983,"1,552.88",AGGREGATE INDUSTRIES UK LTD.
Neighbourhood Services,Technical Services,Supplies and Services,304221,Equipment and Materials,02-Mar-2016,3095073-22667984,"1,965.20",AGGREGATE INDUSTRIES UK LTD.
Neighbourhood Services,Technical Services,Supplies and Services,304221,Equipment and Materials,02-Mar-2016,3095073-22667985,"1,003.20",AGGREGATE INDUSTRIES UK LTD.
Neighbourhood Services,Technical Services,Third Party Payments,430100,Rendered by Private Contractors,02-Mar-2016,3095075-J1530/16/A/2,"11,641.00",AK (LIGHTING & SIGNS) LTD.
Neighbourhood Services,Technical Services,Stock,926900,Stock in hand-Inventory system,02-Mar-2016,3095079-926632515,"1,649.70",ARCO LTD.
Neighbourhood Services,Technical Services,Stock,926900,Stock in hand-Inventory system,02-Mar-2016,3095079-926632516,"1,099.80",ARCO LTD.
Neighbourhood Services,Technical Services,Stock,926900,Stock in hand-Inventory system,02-Mar-2016,3095079-926634202,"1,264.77",ARCO LTD.
Neighbourhood Services,Culture & Sport,Supplies and Services,304221,Equipment and Materials,02-Mar-2016,3095091-22SI2211362,999.80,BRENNTAG UK LTD.
Neighbourhood Services,Technical Services,Third Party Payments,430100,Rendered by Private Contractors,02-Mar-2016,3095093-37757,"1,485.16",BRIDGEWAY CONSULTING LTD.
Neighbourhood Services,Technical Services,Third Party Payments,430100,Rendered by Private Contractors,02-Mar-2016,3095093-37758,"2,550.80",BRIDGEWAY CONSULTING LTD.
Neighbourhood Services,Technical Services,Third Party Payments,430100,Rendered by Private Contractors,02-Mar-2016,3095093-37759,"4,207.30",BRIDGEWAY CONSULTING LTD.
Neighbourhood Services,Technical Services,Third Party Payments,430100,Rendered by Private Contractors,02-Mar-2016,3095093-37761,"44,855.29",BRIDGEWAY CONSULTING LTD.
Neighbourhood Services,Technical Services,Third Party Payments,430100,Rendered by Private Contractors,02-Mar-2016,3095093-37766,"2,989.20",BRIDGEWAY CONSULTING LTD.
Neighbourhood Services,Direct Services,Vehicles Equipment Furniture and Fittings,912541,Purchase-vehicles,02-Mar-2016,3095105-6002002272,"5,100.00",CAPITA TREASURY SOLUTIONS LTD T/A CAPITA ASSET SERVICES.
Neighbourhood Services,Direct Services,Third Party Payments,430100,Rendered by Private Contractors,02-Mar-2016,3095106-30018,"4,966.96",CARE ABILITY.
Neighbourhood Services,Culture & Sport,Supplies and Services,338047,Services,02-Mar-2016,3095115-7922/TS,"3,387.50",COMEDY STORE MANAGEMENT T/A THE COMEDY STORE LTD.
Neighbourhood Services,Culture & Sport,Supplies and Services,332029,Printing Stationery and Gen Off Exps,02-Mar-2016,3095117-INV00184,"1,301.50",COMPETITION LINE UK LTD.
Neighbourhood Services,Direct Services,Employees,080025,Agency Staff,02-Mar-2016,3095131-330148,"148,857.78",DE POEL MANAGED SERVICES LTD.
Neighbourhood Services,Culture & Sport,Supplies and Services,338047,Services,02-Mar-2016,3095146,"2,397.80",DURHAM DRAMATIC SOCIETY.
Neighbourhood Services,Culture & Sport,Supplies and Services,338047,Services,02-Mar-2016,3095147-133,"2,987.65",DURHAM SCENIC WORKSHOPS LTD.
Neighbourhood Services,Culture & Sport,Supplies and Services,384199,Miscellaneous Expenses,02-Mar-2016,3095148-03-2016-106,"2,675.90",DURHAM UNIVERSITY.
Neighbourhood Services,Culture & Sport,Supplies and Services,384700,Miscellaneous Expenses,02-Mar-2016,3095150-03-2016-003,"1,550.00",EAST DURHAM BASKETBALL CLUB T/A PETERLEE LIONS.
Neighbourhood Services,Culture & Sport,Supplies and Services,338047,Services,02-Mar-2016,3095159-60227940,864.14,ENTERTAINMENT ONE UK LTD.
Neighbourhood Services,Technical Services,Supplies and Services,304259,Equipment and Materials,02-Mar-2016,3095187-1444000366,821.49,HILTI (GB) LTD.
Neighbourhood Services,Technical Services,Third Party Payments,430127,Rendered by Private Contractors,02-Mar-2016,3095205-1040,"2,827.50",J & JG GILL & SONS LTD.
Neighbourhood Services,Direct Services,Supplies and Services,304259,Equipment and Materials,02-Mar-2016,3095216-00252,625.00,JN KEARTON.
Neighbourhood Services,Direct Services,Supplies and Services,304221,Equipment and Materials,02-Mar-2016,3095221-1091311,"3,497.00",JOHNSONS OF WHIXLEY LTD.
Neighbourhood Services,Technical Services,Supplies and Services,304221,Equipment and Materials,02-Mar-2016,3095223-BII182935,567.36,JT DOVE LTD.
Neighbourhood Services,Direct Services,Supplies and Services,304221,Equipment and Materials,02-Mar-2016,3095223-CNI23948/D,895.00,JT DOVE LTD.
Neighbourhood Services,Direct Services,Supplies and Services,304221,Equipment and Materials,02-Mar-2016,3095223-CNI23949/D,575.65,JT DOVE LTD.
Neighbourhood Services,Technical Services,Supplies and Services,304221,Equipment and Materials,02-Mar-2016,3095223-CNI23955/D,"2,700.00",JT DOVE LTD.
Neighbourhood Services,Culture & Sport,Supplies and Services,384199,Miscellaneous Expenses,02-Mar-2016,3095224-INV304,600.00,KAYLEIGH GAGE T/A THE GARAGE URBAN STYLES.
Neighbourhood Services,Culture & Sport,Supplies and Services,384700,Miscellaneous Expenses,02-Mar-2016,3095224-03-2016-002,"3,537.00",KAYLEIGH GAGE T/A THE GARAGE URBAN STYLES.
Neighbourhood Services,Culture & Sport,Supplies and Services,384237,Miscellaneous Expenses,02-Mar-2016,3095233-IN522747,"1,920.00",LITEWHITE LTD T/A BLUMILK.
Neighbourhood Services,Culture & Sport,Supplies and Services,338047,Services,02-Mar-2016,3095271-INV0006248,"3,294.15",NORTHERN BALLET THEATRE LTD.
Neighbourhood Services,Technical Services,Supplies and Services,304047,Equipment and Materials,02-Mar-2016,3095272-DI20235998,"3,533.07",NORTHERN POWERGRID (NORTHEAST) LTD.
Neighbourhood Services,Technical Services,Stock,926900,Stock in hand-Inventory system,02-Mar-2016,3095276-XL163831,"1,114.82",PARK ELECTRICAL DISTRIBUTORS LTD.
Neighbourhood Services,Culture & Sport,Supplies and Services,384237,Miscellaneous Expenses,02-Mar-2016,3095281-03-2016-004,560.00,PETERLEE PUMAS ARLC.
Neighbourhood Services,Direct Services,Supplies and Services,304221,Equipment and Materials,02-Mar-2016,3095282-2374761,523.60,PEW ELECTRICAL DISTRIBUTORS LTD.
Neighbourhood Services,Technical Services,Third Party Payments,430100,Rendered by Private Contractors,02-Mar-2016,3095288-138179,"35,801.94",PREMIER TRAFFIC MANAGEMENT LTD.
Neighbourhood Services,Projects and Business services,Supplies and Services,340001,Postages,02-Mar-2016,3095312-9051446036,"23,841.77",ROYAL MAIL GROUP PLC.
Neighbourhood Services,Projects and Business services,Supplies and Services,340001,Postages,02-Mar-2016,3095312-9051537983,"1,567.76",ROYAL MAIL GROUP PLC.
Neighbourhood Services,Direct Services,Supplies and Services,384199,Miscellaneous Expenses,02-Mar-2016,3095319-03-2016-001,"3,550.00",SEDGEFIELD TOWN COUNCIL.
Neighbourhood Services,Direct Services,Supplies and Services,304259,Equipment and Materials,02-Mar-2016,3095323-2123005905,"2,190.00",PRECIA-MOLEN UK LTD T/A SHERING WEIGHING LTD.
Neighbourhood Services,Culture & Sport,Income,715699,Sales,02-Mar-2016,3095330-GDB000093,"8,043.58",SOCIETY OF LONDON THEATRE.
Neighbourhood Services,Culture & Sport,Income,715699,Sales,02-Mar-2016,3095330-GDB000094,790.54,SOCIETY OF LONDON THEATRE.
Neighbourhood Services,Technical Services,Supplies and Services,304221,Equipment and Materials,02-Mar-2016,3095342-9033678291,500.00,TARMAC TRADING LTD.
Neighbourhood Services,Culture & Sport,Supplies and Services,324117,Provisions,02-Mar-2016,3095344-9411039737,513.35,TCHIBO COFFEE INTERNATIONAL LTD.
Neighbourhood Services,Technical Services,Stock,926900,Stock in hand-Inventory system,02-Mar-2016,3095357-N/IN165831,"1,194.09",THOMAS OWEN & SONS (NEWCASTLE) LTD.
Neighbourhood Services,Culture & Sport,Supplies and Services,338047,Services,02-Mar-2016,3095369-753,"7,444.00",UNITED STAGE INTERNATIONAL LTD.
Neighbourhood Services,Culture & Sport,Supplies and Services,338047,Services,02-Mar-2016,3095370-22314073733-1,"2,967.71",UNIVERSAL PICTURES INTERNATIONAL UK & EIRE LTD.
Neighbourhood Services,Technical Services,Stock,926900,Stock in hand-Inventory system,02-Mar-2016,3095384-30149941,890.15,WOLSELEY UK LTD.
Neighbourhood Services,Direct Services,Supplies and Services,304259,Equipment and Materials,02-Mar-2016,3095385-118266/M,"2,535.65",WYBONE LTD.
Regeneration & Economic Development,Economic Development and Housing,Supplies and Services,384700,Miscellaneous Expenses,02-Mar-2016,3095135-RED-03-2016-003,"1,000.00",DESIGN REVEL.
Regeneration & Economic Development,Transport and Contracted Services,Supplies and Services,338027,Services,02-Mar-2016,3095208-B225H008-004,"21,420.06",JACOBS UK LTD.
Regeneration & Economic Development,Economic Development and Housing,Cap Exp on Grants & Other Financial Assistance (REFCUS),918401,Capital grants,02-Mar-2016,3095232-RED-03-2016-004,"3,000.00",LICKETY SPLIT CREAMERY LTD.
Regeneration & Economic Development,Spatial Policy Planning Assets & Environment,Supplies and Services,342051,Computers and Communications,02-Mar-2016,3095245-OP1001447-003,"1,252.80",METERMANAGER LTD.
Regeneration & Economic Development,Economic Development and Housing,Supplies and Services,384999,Miscellaneous Expenses,02-Mar-2016,3095256-RED-02-2016-143A,"1,088.76",REDACTED - PAYMENT TO INDIVIDUAL
Regeneration & Economic Development,Spatial Policy Planning Assets & Environment,Supplies and Services,364999,Grants to Voluntary Organisations,02-Mar-2016,3095269-RED-02-2016-058,"2,000.00",NORTH EAST ENVIRONMENT NETWORK LTD T/A (OASES).
Regeneration & Economic Development,Spatial Policy Planning Assets & Environment,Supplies and Services,384199,Miscellaneous Expenses,02-Mar-2016,3095270-752,"28,646.53",NORTH EAST ENVIRONMENT NETWORK LTD.
Regeneration & Economic Development,Economic Development and Housing,Supplies and Services,344033,Telephones,02-Mar-2016,3095283-003430187,"1,045.91",PHONE CO-OP.
Regeneration & Economic Development,Economic Development and Housing,Supplies and Services,384700,Miscellaneous Expenses,02-Mar-2016,3095295-RED-03-2016-002,540.00,REDACTED - PAYMENT TO INDIVIDUAL
Regeneration & Economic Development,Economic Development and Housing,Supplies and Services,384199,Miscellaneous Expenses,02-Mar-2016,3095362-HS/5336,"1,200.00",TRAVMEDIA (UK) LTD.
Resources,Legal & Democratic Services,Supplies and Services,338042,Services,02-Mar-2016,302718-266781,750.00,MISS JANE SEMPLE.
Resources,I.C.T. Services,Supplies and Services,344111,Telephones,02-Mar-2016,3095095-VP90592270M12901,"3,346.84",BRITISH TELECOMMUNICATIONS PLC.
Resources,I.C.T. Services,Stock,926900,Stock in hand-Inventory system,02-Mar-2016,3095132-7402265692,507.00,DELL COMPUTER CORPORATION LTD.
Resources,Legal & Democratic Services,Supplies and Services,338042,Services,02-Mar-2016,3095134-316423/INVJB246,"7,860.00",DERE STREET BARRISTERS.
Resources,Legal & Democratic Services,Supplies and Services,338045,Services,02-Mar-2016,3095261-193441A,"2,197.98",MR PETER SKELTON.
Resources,Legal & Democratic Services,Premises,125009,Rents,02-Mar-2016,3095307-7795,545.61,RIVERGREEN DEVELOPMENTS PLC.
Resources,I.C.T. Services,Stock,926900,Stock in hand-Inventory system,02-Mar-2016,3095386-AD43548,762.00,XMA LTD.
Children and Adult Services,Childrens Services,Third Party Payments,486033,Service Level Agreements,03-Mar-2016,3095428-141002064,"92,079.00",BARNARDO SERVICES LTD.
Children and Adult Services,Childrens Services,Supplies and Services,384302,Miscellaneous Expenses,03-Mar-2016,3095484-2016-03,"1,387.50",DEAF HILL WARD REGENERATION PARTNERSHIP.
Children and Adult Services,Childrens Services,Supplies and Services,384302,Miscellaneous Expenses,03-Mar-2016,3095487-FEBHALFTERM2016,"1,000.00",DERIC YOUTH BUS PROJECT.
Children and Adult Services,Childrens Services,Supplies and Services,384302,Miscellaneous Expenses,03-Mar-2016,3095502-004-2015A,"1,000.00",EAST DURHAM COMMUNITY EDUCATION COMMITTEE.
Children and Adult Services,Childrens Services,Third Party Payments,486029,Service Level Agreements,03-Mar-2016,3095518-19107,"19,000.00",FAMILY ACTION.
Children and Adult Services,Childrens Services,Supplies and Services,364352,Grants to Voluntary Organisations,03-Mar-2016,3095545-D1IN/00021562,"1,440.78",HOME GROUP LTD.
Children and Adult Services,Childrens Services,Supplies and Services,364352,Grants to Voluntary Organisations,03-Mar-2016,3095545-D1IN/00021563,"1,440.78",HOME GROUP LTD.
Children and Adult Services,Childrens Services,Supplies and Services,364352,Grants to Voluntary Organisations,03-Mar-2016,3095545-D1IN/00021729,"1,440.78",HOME GROUP LTD.
Children and Adult Services,Childrens Services,Third Party Payments,486046,Service Level Agreements,03-Mar-2016,3095603-37198,984.60,NATIONAL YOUTH ADVOCACY SERVICE.
Children and Adult Services,Childrens Services,Supplies and Services,384871,Miscellaneous Expenses,03-Mar-2016,3095650-899,650.00,SCHOOL & FAMILY NURTURING T/A TRAINING LADDER LTD.
Children and Adult Services,Childrens Services,Supplies and Services,384871,Miscellaneous Expenses,03-Mar-2016,3095650-901,650.00,SCHOOL & FAMILY NURTURING T/A TRAINING LADDER LTD.
Children and Adult Services,Childrens Services,Supplies and Services,384871,Miscellaneous Expenses,03-Mar-2016,3095650-902,650.00,SCHOOL & FAMILY NURTURING T/A TRAINING LADDER LTD.
Children and Adult Services,Childrens Services,Supplies and Services,352001,Conference Expenses,03-Mar-2016,3095650-903,650.00,SCHOOL & FAMILY NURTURING T/A TRAINING LADDER LTD.
Children and Adult Services,Childrens Services,Supplies and Services,384199,Miscellaneous Expenses,03-Mar-2016,3095650-904,650.00,SCHOOL & FAMILY NURTURING T/A TRAINING LADDER LTD.
Children and Adult Services,Childrens Services,Supplies and Services,384199,Miscellaneous Expenses,03-Mar-2016,3095650-906,650.00,SCHOOL & FAMILY NURTURING T/A TRAINING LADDER LTD.
Children and Adult Services,Childrens Services,Transport,230007,Contract Hire,03-Mar-2016,3095662-4836,797.56,SOCIAL RESOURCE CENTRE LTD.
Children and Adult Services,Childrens Services,Third Party Payments,425040,Rendered by Voluntary Organisations,03-Mar-2016,3095678-178245,700.00,SWIIS FOSTER CARE LTD.
Children and Adult Services,Childrens Services,Third Party Payments,425040,Rendered by Voluntary Organisations,03-Mar-2016,3095678-178249,730.03,SWIIS FOSTER CARE LTD.
Children and Adult Services,Childrens Services,Third Party Payments,425040,Rendered by Voluntary Organisations,03-Mar-2016,3095678-178252,700.00,SWIIS FOSTER CARE LTD.
Dedicated Schools Grant,Dedicated Schools Grant,Supplies and Services,338091,Services,03-Mar-2016,3095616-JC045,"1,750.00",OAK TRAINING.
Dedicated Schools Grant,Dedicated Schools Grant,Supplies and Services,338091,Services,03-Mar-2016,3095616-JC046,"1,750.00",OAK TRAINING.
Dedicated Schools Grant,Dedicated Schools Grant,Supplies and Services,338091,Services,03-Mar-2016,3095616-JC047,"2,450.00",OAK TRAINING.
Dedicated Schools Grant,Dedicated Schools Grant,Third Party Payments,440080,Other Third Party Payments,03-Mar-2016,3095686-5655,"2,841.18",THE ROYAL NATIONAL COLLEGE FOR THE BLIND.
Children and Adult Services,Education,Supplies and Services,338094,Services,03-Mar-2016,3095393-18002679,744.00,1LIFE MANAGEMENT SOLUTIONS LTD.
Children and Adult Services,Education,Transport,230008,Contract Hire,03-Mar-2016,3095405-1/2/16,"1,140.80",ABA TAXIS.
Children and Adult Services,Education,Supplies and Services,384871,Miscellaneous Expenses,03-Mar-2016,3095407-0216/05,500.00,ADAM BUSHNELL LTD.
Children and Adult Services,Education,Transport,230008,Contract Hire,03-Mar-2016,3095561-2491,"2,118.08",JEFF ANDERSON COACHES LTD.
Children and Adult Services,Education,Transport,230007,Contract Hire,03-Mar-2016,3095561-2492,"1,511.84",JEFF ANDERSON COACHES LTD.
Children and Adult Services,Education,Transport,230008,Contract Hire,03-Mar-2016,3095577-3345,"1,730.52",LINCAB TAXIS.
Children and Adult Services,Education,Transport,230008,Contract Hire,03-Mar-2016,3095611-M0006980579,"1,520.00",NORTH TYNESIDE COUNCIL.
Children and Adult Services,Education,Transport,230008,Contract Hire,03-Mar-2016,3095654-71970,"1,152.00",SHOTTON PRIVATE HIRE.
Children and Adult Services,Education,Transport,230008,Contract Hire,03-Mar-2016,3095654-71973,"1,080.00",SHOTTON PRIVATE HIRE.
Children and Adult Services,Education,Transport,230008,Contract Hire,03-Mar-2016,3095654-71974,"2,400.00",SHOTTON PRIVATE HIRE.
Children and Adult Services,Education,Employees,040149,Recruitment Instruction and Training,03-Mar-2016,3095666-4100520587,"1,600.00",SPECIALISED TRANSPORT ADVISORY NETWORK.
Children and Adult Services,Head of Adults,Transport,230005,Contract Hire,03-Mar-2016,3095406-197,592.00,ACE TAXIS..
Children and Adult Services,Head of Adults,Supplies and Services,384504,Miscellaneous Expenses,03-Mar-2016,3095424-AHS00976,"3,648.84",AUCKLAND HOME SOLUTIONS CIC.
Children and Adult Services,Head of Adults,Supplies and Services,338367,Services,03-Mar-2016,3095449-29239,"2,739.95",CARE ABILITY.
Children and Adult Services,Head of Adults,Transport,230005,Contract Hire,03-Mar-2016,3095586-FEBRUARYD4,"1,025.60",MICHAEL A BODDY T/A MBS TAXIS.
Children and Adult Services,Head of Adults,Transport,230005,Contract Hire,03-Mar-2016,3095597-66208,"1,722.00",MR GN ROBBINS T/A GNR MINIBUS HIRE.
Children and Adult Services,Head of Adults,Transport,230005,Contract Hire,03-Mar-2016,3095597-66209,"1,255.80",MR GN ROBBINS T/A GNR MINIBUS HIRE.
Children and Adult Services,Planning & Service Strategy,Supplies and Services,384540,Miscellaneous Expenses,03-Mar-2016,3095606-14294670,"1,267.20",NEWSQUEST (YORKSHIRE & NORTH EAST) LTD.
Children and Adult Services,Public Health,Third Party Payments,460802,Contract Payments,03-Mar-2016,3095570-A83066/JAN2016HC,695.00,JUBILEE MEDICAL GROUP.
Children and Adult Services,Public Health,Third Party Payments,460802,Contract Payments,03-Mar-2016,3095601-A83041/JAN2016HC,"1,285.00",MURTON MEDICAL GROUP.
Children and Adult Services,Public Health,Third Party Payments,460802,Contract Payments,03-Mar-2016,3095630-A83033/JAN2016HC,"1,260.00",PELTON & FELLROSE MEDICAL GROUP.
Children and Adult Services,Public Health,Third Party Payments,460802,Contract Payments,03-Mar-2016,3095647-A83026/JAN2016HC,550.00,SACRISTON SURGERY.
Children and Adult Services,Public Health,Third Party Payments,460802,Contract Payments,03-Mar-2016,3095713-A83003/JAN2016HC,"1,000.00",WILLINGTON MEDICAL GROUP.
Assistant Chief Executive,Partnerships & Community Engagement Div.,Supplies and Services,384199,Miscellaneous Expenses,03-Mar-2016,3095609-1602-012A,651.00,NORTH EAST CATERING EQUIPMENT HIRE.
Assistant Chief Executive,Partnerships & Community Engagement Div.,Supplies and Services,384085,Miscellaneous Expenses,03-Mar-2016,3095621-ROBS10-15OLIP08-15,788.00,ONE IN SEVEN DRAMA GROUP.
Assistant Chief Executive,Partnerships & Community Engagement Div.,Transfer Payments,525030,Other,03-Mar-2016,3095690-WEAR002SGF157,"1,500.00",THORNLEY VILLAGE HALL.
Neighbourhood Services,Technical Services,Supplies and Services,304221,Equipment and Materials,03-Mar-2016,3095408-22501311A,"2,489.19",AGGREGATE INDUSTRIES UK LTD.
Neighbourhood Services,Technical Services,Supplies and Services,304221,Equipment and Materials,03-Mar-2016,3095408-22672547,"1,240.21",AGGREGATE INDUSTRIES UK LTD.
Neighbourhood Services,Technical Services,Supplies and Services,304221,Equipment and Materials,03-Mar-2016,3095408-22672548,"1,509.44",AGGREGATE INDUSTRIES UK LTD.
Neighbourhood Services,Technical Services,Supplies and Services,304221,Equipment and Materials,03-Mar-2016,3095408-22672549,"1,143.33",AGGREGATE INDUSTRIES UK LTD.
Neighbourhood Services,Culture & Sport,Supplies and Services,304221,Equipment and Materials,03-Mar-2016,3095410-5722,"1,229.85",ALISON BLACK LTD T/A SPORTMAX.
Neighbourhood Services,Technical Services,Stock,926900,Stock in hand-Inventory system,03-Mar-2016,3095439-11909,560.00,BOXCLEVER TOTAL WASTE MANAGEMENT LTD.
Neighbourhood Services,Technical Services,Stock,926900,Stock in hand-Inventory system,03-Mar-2016,3095439-11973,840.00,BOXCLEVER TOTAL WASTE MANAGEMENT LTD.
Neighbourhood Services,Technical Services,Stock,926900,Stock in hand-Inventory system,03-Mar-2016,3095451-9950/01682923,"1,009.05",CERAMIC TILE DISTRIBUTORS (CTD).
Neighbourhood Services,Projects and Business services,Third Party Payments,430100,Rendered by Private Contractors,03-Mar-2016,3095454-CS61215801,"2,947.50",CFH TOTAL DOCUMENT MANAGEMENT LTD.
Neighbourhood Services,Direct Services,Third Party Payments,430100,Rendered by Private Contractors,03-Mar-2016,3095460-4486,"1,540.00",CITY FABRICATIONS LTD.
Neighbourhood Services,Culture & Sport,Income,720810,Fees and Charges,03-Mar-2016,3095464-PSINV00223,"4,784.44",COMPETITION LINE UK LTD.
Neighbourhood Services,Culture & Sport,Income,720810,Fees and Charges,03-Mar-2016,3095464-PSINV00224,"25,198.88",COMPETITION LINE UK LTD.
Neighbourhood Services,Culture & Sport,Income,720810,Fees and Charges,03-Mar-2016,3095464-PSINV00225,"18,259.34",COMPETITION LINE UK LTD.
Neighbourhood Services,Direct Services,Supplies and Services,304259,Equipment and Materials,03-Mar-2016,3095499-91878,"1,190.00",DYER ENGINEERING LTD.
Neighbourhood Services,Technical Services,Supplies and Services,304358,Equipment and Materials,03-Mar-2016,3095513-0000051146,870.00,EURO ENVIRONMENTAL GROUP.
Neighbourhood Services,Technical Services,Supplies and Services,304358,Equipment and Materials,03-Mar-2016,3095515-0000051145,875.00,EURO ENVIRONMENTAL GROUP.
Neighbourhood Services,Culture & Sport,Employees,040149,Recruitment Instruction and Training,03-Mar-2016,3095520-80,500.00,FENHAM SWIMMING PROJECT.
Neighbourhood Services,Technical Services,Supplies and Services,304358,Equipment and Materials,03-Mar-2016,3095533-10335,600.00,GEORGE VARDY HAULAGE.
Neighbourhood Services,Technical Services,Supplies and Services,304358,Equipment and Materials,03-Mar-2016,3095533-10337,770.00,GEORGE VARDY HAULAGE.
Neighbourhood Services,Technical Services,Supplies and Services,304358,Equipment and Materials,03-Mar-2016,3095533-10340,602.08,GEORGE VARDY HAULAGE.
Neighbourhood Services,Culture & Sport,Supplies and Services,384199,Miscellaneous Expenses,03-Mar-2016,3095534-27/02/2016,655.00,GEORGINA MANNIFIELD.
Neighbourhood Services,Technical Services,Supplies and Services,304221,Equipment and Materials,03-Mar-2016,3095536-33024,711.00,GRAB & DELIVER LTD.
Neighbourhood Services,Technical Services,Third Party Payments,430127,Rendered by Private Contractors,03-Mar-2016,3095546-2255,"1,445.50",IAN C LIDDLE.
Neighbourhood Services,Technical Services,Third Party Payments,430128,Rendered by Private Contractors,03-Mar-2016,3095555-0951,"1,966.50",J & JG GILL & SONS LTD.
Neighbourhood Services,Technical Services,Supplies and Services,304358,Equipment and Materials,03-Mar-2016,3095555-1043/2016,"1,368.00",J & JG GILL & SONS LTD.
Neighbourhood Services,Technical Services,Supplies and Services,304358,Equipment and Materials,03-Mar-2016,3095556-5305062,"1,297.73",JA GILSON (AGRICULTURAL CONTRACTORS) LTD.
Neighbourhood Services,Technical Services,Construction Work,908105,Construction work,03-Mar-2016,3095557-12192,"1,840.01",JACK COUPE & SONS LTD T/A COUPE LINE.
Neighbourhood Services,Technical Services,Supplies and Services,338027,Services,03-Mar-2016,3095558-B2107200-004,"5,392.10",JACOBS UK LTD.
Neighbourhood Services,Technical Services,Supplies and Services,304358,Equipment and Materials,03-Mar-2016,3095565-24534,978.00,JOHN R BUTTERFIELD LTD.
Neighbourhood Services,Technical Services,Supplies and Services,304358,Equipment and Materials,03-Mar-2016,3095565-24563,731.00,JOHN R BUTTERFIELD LTD.
Neighbourhood Services,Technical Services,Supplies and Services,304358,Equipment and Materials,03-Mar-2016,3095565-24565,929.20,JOHN R BUTTERFIELD LTD.
Neighbourhood Services,Technical Services,Supplies and Services,304358,Equipment and Materials,03-Mar-2016,3095565-24566,703.80,JOHN R BUTTERFIELD LTD.
Neighbourhood Services,Technical Services,Supplies and Services,304358,Equipment and Materials,03-Mar-2016,3095565-24584,740.40,JOHN R BUTTERFIELD LTD.
Neighbourhood Services,Technical Services,Supplies and Services,304358,Equipment and Materials,03-Mar-2016,3095565-24586,978.90,JOHN R BUTTERFIELD LTD.
Neighbourhood Services,Technical Services,Supplies and Services,304358,Equipment and Materials,03-Mar-2016,3095565-24587,725.40,JOHN R BUTTERFIELD LTD.
Neighbourhood Services,Technical Services,Supplies and Services,304358,Equipment and Materials,03-Mar-2016,3095565-24589,594.75,JOHN R BUTTERFIELD LTD.
Neighbourhood Services,Culture & Sport,Supplies and Services,304221,Equipment and Materials,03-Mar-2016,3095572-WASKLEYWAY,"1,000.00",KEN PEACOCK.
Neighbourhood Services,Technical Services,Supplies and Services,304358,Equipment and Materials,03-Mar-2016,3095573-1247,"3,697.00",KEVIN SNOWDON GROUNDWORKS LTD.
Neighbourhood Services,Technical Services,Supplies and Services,304358,Equipment and Materials,03-Mar-2016,3095573-1255,"1,450.00",KEVIN SNOWDON GROUNDWORKS LTD.
Neighbourhood Services,Technical Services,Supplies and Services,304358,Equipment and Materials,03-Mar-2016,3095573-1256,"4,534.00",KEVIN SNOWDON GROUNDWORKS LTD.
Neighbourhood Services,Technical Services,Supplies and Services,304358,Equipment and Materials,03-Mar-2016,3095573-1258,"1,423.00",KEVIN SNOWDON GROUNDWORKS LTD.
Neighbourhood Services,Technical Services,Supplies and Services,304358,Equipment and Materials,03-Mar-2016,3095573-1259,"1,117.50",KEVIN SNOWDON GROUNDWORKS LTD.
Neighbourhood Services,Technical Services,Supplies and Services,304358,Equipment and Materials,03-Mar-2016,3095584-44A,"2,317.00",M & E & MR WALTON.
Neighbourhood Services,Technical Services,Supplies and Services,304221,Equipment and Materials,03-Mar-2016,3095591-ZDB0024805,849.60,MARSHALLS MONO LTD.
Neighbourhood Services,Direct Services,Supplies and Services,304358,Equipment and Materials,03-Mar-2016,3095592-1885,610.50,MARTIN JEWITT PLANT HIRE.
Neighbourhood Services,Technical Services,Supplies and Services,304047,Equipment and Materials,03-Mar-2016,3095612-DI20234422,"6,022.23",NORTHERN POWERGRID (NORTHEAST) LTD.
Neighbourhood Services,Direct Services,Third Party Payments,430100,Rendered by Private Contractors,03-Mar-2016,3095625-794,"1,193.17",PARAMOUNT CEILINGS & PARTITIONS.
Neighbourhood Services,Direct Services,Supplies and Services,304221,Equipment and Materials,03-Mar-2016,3095627-BR539328,548.27,PARK ELECTRICAL DISTRIBUTORS LTD.
Neighbourhood Services,Direct Services,Supplies and Services,384194,Miscellaneous Expenses,03-Mar-2016,3095648-2410,647.36,SAFE STRIP UK LTD.
Neighbourhood Services,Culture & Sport,Construction Work,908105,Construction work,03-Mar-2016,3095648-2433,871.04,SAFE STRIP UK LTD.
Neighbourhood Services,Direct Services,Supplies and Services,304221,Equipment and Materials,03-Mar-2016,3095656-714518374516,"1,180.53",SIG TRADING LTD.
Neighbourhood Services,Technical Services,Supplies and Services,304221,Equipment and Materials,03-Mar-2016,3095657-300096/120259,"3,241.52",SIGNATURE LTD T/A POST & COLUMN CO LTD.
Neighbourhood Services,Culture & Sport,Supplies and Services,338094,Services,03-Mar-2016,3095671-0000000846,"1,000.00",ST JOHN`S SCHOOL & SIXTH FORM COLLEGE A CATHOLIC ACADEMY.
Neighbourhood Services,Technical Services,Supplies and Services,304221,Equipment and Materials,03-Mar-2016,3095674-079103,"1,973.04",STONEGRAVE AGGREGATES LTD.
Neighbourhood Services,Projects and Business services,Third Party Payments,430121,Rendered by Private Contractors,03-Mar-2016,3095696-12016940,"1,030.00",TQ ENVIRONMENTAL LTD.
Neighbourhood Services,Technical Services,Supplies and Services,342051,Computers and Communications,03-Mar-2016,3095698-92010226,"3,876.00",TRIMBLE SOLUTIONS (UK) LTD.
Neighbourhood Services,Projects and Business services,Third Party Payments,430121,Rendered by Private Contractors,03-Mar-2016,3095704-18588,"3,662.72",VIRIDIAN SYSTEMS LTD.
Neighbourhood Services,Technical Services,Supplies and Services,304358,Equipment and Materials,03-Mar-2016,3095719-5326C,689.00,YOULL CONSTRUCTION LTD.
Regeneration & Economic Development,Spatial Policy Planning Assets & Environment,Supplies and Services,384899,Miscellaneous Expenses,03-Mar-2016,3095411-RED-03-2016-009,662.00,ALLEN VALLEYS PROMOTIONS LTD.
Regeneration & Economic Development,Transport and Contracted Services,Third Party Payments,430109,Rendered by Private Contractors,03-Mar-2016,3095429-1002879,"1,635.02",BATTCO LTD T/A THE BATTERY CO LTD.
Regeneration & Economic Development,Economic Development and Housing,Supplies and Services,384999,Miscellaneous Expenses,03-Mar-2016,3095452-RGEI/00000712,930.16,CESTRIA HOUSING.
Regeneration & Economic Development,Transport and Contracted Services,Supplies and Services,338099,Services,03-Mar-2016,3095482-050216,"2,400.00",DAVID ELIOT COOPER T/A HISTRIONICS.
Regeneration & Economic Development,Spatial Policy Planning Assets & Environment,Employees,040149,Recruitment Instruction and Training,03-Mar-2016,3095507-C/1239213A,"1,678.00",ENERGY INSTITUTE.
Regeneration & Economic Development,Transport and Contracted Services,Supplies and Services,384899,Miscellaneous Expenses,03-Mar-2016,3095509-RED-03-2016-012,"1,840.00",ETHERLEY PARISH COUNCIL.
Regeneration & Economic Development,Economic Development and Housing,Cap Exp on Grants & Other Financial Assistance (REFCUS),918401,Capital grants,03-Mar-2016,3095585-RED-02-2016-121,"3,445.00",M & R DEVELOPMENTS & CONTRACTORS LTD..
Regeneration & Economic Development,Spatial Policy Planning Assets & Environment,Supplies and Services,336005,Advertising,03-Mar-2016,3095606-14294371,754.30,NEWSQUEST (YORKSHIRE & NORTH EAST) LTD.
Regeneration & Economic Development,Economic Development and Housing,Supplies and Services,384871,Miscellaneous Expenses,03-Mar-2016,3095649-9140033188,665.00,SCHIEDEL CHIMNEY SYSTEMS LTD.
Regeneration & Economic Development,Economic Development and Housing,Fees,901002,Professional fees,03-Mar-2016,3095683-D5555,"1,040.00",TGA CONSULTING ENGINEERS LLP.
Resources,Financial Services,Supplies and Services,332029,Printing Stationery and Gen Off Exps,03-Mar-2016,3095454-CS61215901,"2,947.50",CFH TOTAL DOCUMENT MANAGEMENT LTD.
Resources,I.C.T. Services,Supplies and Services,304303,Equipment and Materials,03-Mar-2016,3095547-SIN374820,"8,030.00",INFORMATION & DATA NETWORK SUPPLIES LTD (IDN).
Resources,I.C.T. Services,Employees,040149,Recruitment Instruction and Training,03-Mar-2016,3095605-50064257,"1,250.00",NEW COLLEGE DURHAM.
Resources,I.C.T. Services,Supplies and Services,332029,Printing Stationery and Gen Off Exps,03-Mar-2016,3095636-626727,"1,283.00",POTTS PRINTERS LTD.
Resources,I.C.T. Services,Supplies and Services,304639,Equipment and Materials,03-Mar-2016,3095644-DE4271943,"1,585.00",RM EDUCATION PLC.
Children and Adult Services,Childrens Services,Supplies and Services,336005,Advertising,04-Mar-2016,3095869-SINV00079648,"3,180.00",EXTERION MEDIA.
Children and Adult Services,Childrens Services,Supplies and Services,384871,Miscellaneous Expenses,04-Mar-2016,3095873-0074,850.00,FEEL GOOD FACTORY CIC.
Children and Adult Services,Childrens Services,Third Party Payments,425040,Rendered by Voluntary Organisations,04-Mar-2016,3095879-125682,730.00,FOSTER CARES LTD.
Children and Adult Services,Childrens Services,Third Party Payments,425040,Rendered by Voluntary Organisations,04-Mar-2016,3095879-125687,"1,180.00",FOSTER CARES LTD.
Children and Adult Services,Childrens Services,Third Party Payments,425040,Rendered by Voluntary Organisations,04-Mar-2016,3095879-125691,820.00,FOSTER CARES LTD.
Children and Adult Services,Childrens Services,Third Party Payments,425040,Rendered by Voluntary Organisations,04-Mar-2016,3095879-125692,730.00,FOSTER CARES LTD.
Children and Adult Services,Childrens Services,Third Party Payments,425040,Rendered by Voluntary Organisations,04-Mar-2016,3095879-125698,730.00,FOSTER CARES LTD.
Children and Adult Services,Childrens Services,Third Party Payments,425040,Rendered by Voluntary Organisations,04-Mar-2016,3095879-125705,730.00,FOSTER CARES LTD.
Children and Adult Services,Childrens Services,Third Party Payments,425040,Rendered by Voluntary Organisations,04-Mar-2016,3095879-125711,730.00,FOSTER CARES LTD.
Children and Adult Services,Childrens Services,Third Party Payments,425040,Rendered by Voluntary Organisations,04-Mar-2016,3095879-125712,730.00,FOSTER CARES LTD.
Children and Adult Services,Childrens Services,Third Party Payments,425040,Rendered by Voluntary Organisations,04-Mar-2016,3095879-125717,760.00,FOSTER CARES LTD.
Children and Adult Services,Childrens Services,Supplies and Services,352001,Conference Expenses,04-Mar-2016,3096018-011,"1,766.40",NICOLA JONES EDUCATION CONSULTANCY & TRAINING.
Children and Adult Services,Childrens Services,Supplies and Services,384491,Miscellaneous Expenses,04-Mar-2016,3096149-201544,650.00,WHEATLEY HILL COMMUNITY NURSERY LTD.
Dedicated Schools Grant,Dedicated Schools Grant,Central Support and Capital,689996,Unclassified,04-Mar-2016,3095918-CAS-03-2016-016,"8,374.00",HOPE WOOD ACADEMY.
Dedicated Schools Grant,Dedicated Schools Grant,Transport,230011,Contract Hire,04-Mar-2016,3096006-0162,585.00,MR DEREK HENDERSON.
Dedicated Schools Grant,Dedicated Schools Grant,Employees,080025,Agency Staff,04-Mar-2016,3096104-1087322,880.00,TEACHING PERSONNEL LTD.
Children and Adult Services,Education,Transport,230007,Contract Hire,04-Mar-2016,3095795-45273,"1,130.72",CJ GRIERSON T/A GRIERSONS COACHES.
Children and Adult Services,Education,Transport,230007,Contract Hire,04-Mar-2016,3095795-45274,"3,876.48",CJ GRIERSON T/A GRIERSONS COACHES.
Children and Adult Services,Education,Transport,230007,Contract Hire,04-Mar-2016,3095797-857,800.00,CLIVE HUBERY.
Children and Adult Services,Education,Transport,230007,Contract Hire,04-Mar-2016,3095801-C/9087,"5,097.92",COCHRANES T/A KELVIN TRAVEL.
Children and Adult Services,Education,Transport,230007,Contract Hire,04-Mar-2016,3095801-C/9088,"2,778.56",COCHRANES T/A KELVIN TRAVEL.
Children and Adult Services,Education,Transport,230007,Contract Hire,04-Mar-2016,3095801-C/9089,"2,227.36",COCHRANES T/A KELVIN TRAVEL.
Children and Adult Services,Education,Transport,230007,Contract Hire,04-Mar-2016,3095801-C/9090,"4,005.76",COCHRANES T/A KELVIN TRAVEL.
Children and Adult Services,Education,Transport,230007,Contract Hire,04-Mar-2016,3095801-C/9091,"2,400.00",COCHRANES T/A KELVIN TRAVEL.
Children and Adult Services,Education,Transport,230008,Contract Hire,04-Mar-2016,3095802-ED42216,"1,912.50",COLIN FRANKS T/A FRANKS COACHES.
Children and Adult Services,Education,Transport,230007,Contract Hire,04-Mar-2016,3095815-DCC/4029/FEB16,"1,592.00",COUNTY COACHES.
Children and Adult Services,Education,Transport,230007,Contract Hire,04-Mar-2016,3095820-173,544.00,D MCDONNELL.
Children and Adult Services,Education,Transport,230008,Contract Hire,04-Mar-2016,3095822-1451,944.00,DA TAXIS.
Children and Adult Services,Education,Transport,230008,Contract Hire,04-Mar-2016,3095822-1454,970.72,DA TAXIS.
Children and Adult Services,Education,Transport,230007,Contract Hire,04-Mar-2016,3095859-5182/0216,576.00,ELLIOTTS OF TRIMDON.
Children and Adult Services,Education,Transport,230008,Contract Hire,04-Mar-2016,3095859-E014/0216,"1,278.40",ELLIOTTS OF TRIMDON.
Children and Adult Services,Education,Transport,230008,Contract Hire,04-Mar-2016,3095859-E112/0216,"1,074.40",ELLIOTTS OF TRIMDON.
Children and Adult Services,Education,Transport,230006,Contract Hire,04-Mar-2016,3095859-F643/0216,600.00,ELLIOTTS OF TRIMDON.
Children and Adult Services,Education,Transport,230007,Contract Hire,04-Mar-2016,3095862-0680,723.68,EN ROUTE TRAVEL.
Children and Adult Services,Education,Transport,230008,Contract Hire,04-Mar-2016,3095862-0681,"1,286.08",EN ROUTE TRAVEL.
Children and Adult Services,Education,Transport,230008,Contract Hire,04-Mar-2016,3095875-A060/017,520.00,FERRYHILL VILLAGE TRAVEL.
Children and Adult Services,Education,Transport,230008,Contract Hire,04-Mar-2016,3095875-E046/017,"2,562.00",FERRYHILL VILLAGE TRAVEL.
Children and Adult Services,Education,Transport,230008,Contract Hire,04-Mar-2016,3095875-N071/027,"2,971.50",FERRYHILL VILLAGE TRAVEL.
Children and Adult Services,Education,Transport,230008,Contract Hire,04-Mar-2016,3095875-S007/039,"1,763.00",FERRYHILL VILLAGE TRAVEL.
Children and Adult Services,Education,Transport,230006,Contract Hire,04-Mar-2016,3095877-002,"1,165.00",FONACAB DURHAM.
Children and Adult Services,Education,Transport,230007,Contract Hire,04-Mar-2016,3095887-18167,"2,245.12",GARNETTS LTD (COACHES).
Children and Adult Services,Education,Transport,230007,Contract Hire,04-Mar-2016,3095887-18168,"1,872.00",GARNETTS LTD (COACHES).
Children and Adult Services,Education,Transport,230007,Contract Hire,04-Mar-2016,3095887-18169,"9,888.48",GARNETTS LTD (COACHES).
Children and Adult Services,Education,Transport,230007,Contract Hire,04-Mar-2016,3095887-18170,"7,018.88",GARNETTS LTD (COACHES).
Children and Adult Services,Education,Transport,230007,Contract Hire,04-Mar-2016,3095887-18171,"2,083.68",GARNETTS LTD (COACHES).
Children and Adult Services,Education,Transport,230007,Contract Hire,04-Mar-2016,3095887-18172,"2,556.96",GARNETTS LTD (COACHES).
Children and Adult Services,Education,Transport,230007,Contract Hire,04-Mar-2016,3095887-18173,"2,480.00",GARNETTS LTD (COACHES).
Children and Adult Services,Education,Transport,230007,Contract Hire,04-Mar-2016,3095887-18189,"13,536.75",GARNETTS LTD (COACHES).
Children and Adult Services,Education,Fees,901002,Professional fees,04-Mar-2016,3095889-107489193,"12,678.00",GATESHEAD COUNCIL.
Children and Adult Services,Education,Fees,901002,Professional fees,04-Mar-2016,3095889-107489282,"16,203.00",GATESHEAD COUNCIL.
Children and Adult Services,Education,Transport,230007,Contract Hire,04-Mar-2016,3095896-0090805,696.00,GRADYS TAXIS.
Children and Adult Services,Education,Transport,230008,Contract Hire,04-Mar-2016,3095913-29/02/2016,984.00,HIPPY`S TAXI.
Children and Adult Services,Education,Transfer Payments,510026,School Children,04-Mar-2016,3095920-20923,"1,206.00",HOUSE OF EDEN CHILDRENS NURSERY.
Children and Adult Services,Education,Transport,230008,Contract Hire,04-Mar-2016,3095925-IR1601002,"1,734.56",I & R EXECUTIVE TRAVEL.
Children and Adult Services,Education,Transport,230008,Contract Hire,04-Mar-2016,3095939-0254,672.00,JACKSON`S TAXI.
Children and Adult Services,Education,Transport,230008,Contract Hire,04-Mar-2016,3095949-2015/41,716.80,JM HUMBLE COACH HIRE.
Children and Adult Services,Education,Transport,230008,Contract Hire,04-Mar-2016,3095949-32015/42,"1,092.80",JM HUMBLE COACH HIRE.
Children and Adult Services,Education,Transport,230008,Contract Hire,04-Mar-2016,3095955-M03617,784.00,JOVIAL PRIVATE HIRE.
Children and Adult Services,Education,Transport,230008,Contract Hire,04-Mar-2016,3095955-N03017,"1,376.00",JOVIAL PRIVATE HIRE.
Children and Adult Services,Education,Transport,230008,Contract Hire,04-Mar-2016,3095959-FEB/A098,"1,024.00",K & R TAXIS.
Children and Adult Services,Education,Transport,230008,Contract Hire,04-Mar-2016,3095961-06/FEB16,768.00,KD TAXIS.
Children and Adult Services,Education,Transport,230008,Contract Hire,04-Mar-2016,3095969-3A/A055,"1,360.00",L & R PRIVATE HIRE.
Children and Adult Services,Education,Construction Work,908105,Construction work,04-Mar-2016,3095972-15230,750.00,LANDFORM SURVEYS LTD.
Children and Adult Services,Education,Transport,230006,Contract Hire,04-Mar-2016,3095974-1060,"1,705.00",LD TAXIS.
Children and Adult Services,Education,Transport,230008,Contract Hire,04-Mar-2016,3095974-1061,980.00,LD TAXIS.
Children and Adult Services,Education,Transport,230007,Contract Hire,04-Mar-2016,3095976-1586,"6,367.68",LEE`S COACHES LTD.
Children and Adult Services,Education,Transport,230008,Contract Hire,04-Mar-2016,3095988-36,896.00,LUMLEY TAXIS.
Children and Adult Services,Education,Transport,230008,Contract Hire,04-Mar-2016,3095989-93,"3,366.00",M BUTCHER T/A KIDDI CABS.
Children and Adult Services,Education,Transport,230008,Contract Hire,04-Mar-2016,3096001-KDC010216,"2,284.75",MJ TIMNEY T/A KDC & C&M TAXIS.
Children and Adult Services,Education,Transport,230007,Contract Hire,04-Mar-2016,3096004-17,640.00,MR BW YOUNG T/A ESH TAXIS.
Children and Adult Services,Education,Transport,230008,Contract Hire,04-Mar-2016,3096005-VLR02-16,684.80,MR CT WALKER T/A COLIN`S TAXIS.
Children and Adult Services,Education,Transport,230008,Contract Hire,04-Mar-2016,3096005-WAL-1-02-16,"1,613.60",MR CT WALKER T/A COLIN`S TAXIS.
Children and Adult Services,Education,Transport,230008,Contract Hire,04-Mar-2016,3096005-WAL-2-02-16,"1,760.00",MR CT WALKER T/A COLIN`S TAXIS.
Children and Adult Services,Education,Transport,230008,Contract Hire,04-Mar-2016,3096005-WINDS02-16,"2,498.40",MR CT WALKER T/A COLIN`S TAXIS.
Children and Adult Services,Education,Transport,230006,Contract Hire,04-Mar-2016,3096006-01162,608.00,MR DEREK HENDERSON.
Children and Adult Services,Education,Transport,230008,Contract Hire,04-Mar-2016,3096007-66205,"1,229.60",MR GN ROBBINS T/A GNR MINIBUS HIRE.
Children and Adult Services,Education,Transport,230008,Contract Hire,04-Mar-2016,3096007-66206,"1,379.20",MR GN ROBBINS T/A GNR MINIBUS HIRE.
Children and Adult Services,Education,Transport,230008,Contract Hire,04-Mar-2016,3096011-185,"1,472.00",N FORBES.
Children and Adult Services,Head of Adults,Transfer Payments,515201,Social Services Clients,04-Mar-2016,3095727-CAS-03-2016-013,"3,887.03",REDACTED - PAYMENT TO INDIVIDUAL
Children and Adult Services,Planning & Service Strategy,Supplies and Services,308011,Furniture,04-Mar-2016,3095732-154659,753.00,ALBANY CONTRACT FURNITURE.
Children and Adult Services,Planning & Service Strategy,Supplies and Services,338089,Services,04-Mar-2016,3095954-1607,"1,400.00",JOHN WHEELER SOLUTIONS LTD.
Children and Adult Services,Public Health,Third Party Payments,460803,Contract Payments,04-Mar-2016,3096134-10525935,"131,000.00",UNIVERSITY OF TEESSIDE.
Assistant Chief Executive,Partnerships & Community Engagement Div.,Supplies and Services,342033,Computers and Communications,04-Mar-2016,3095830-7402266669,"1,253.70",DELL COMPUTER CORPORATION LTD.
Assistant Chief Executive,Partnerships & Community Engagement Div.,Premises,125009,Rents,04-Mar-2016,3095981-RSHPIN/00001091,"1,005.12",LIVIN HOUSING LTD.
Assistant Chief Executive,Partnerships & Community Engagement Div.,Transfer Payments,525030,Other,04-Mar-2016,3096044-14079/16,"13,721.75",PIONEERING CARE PARTNERSHIP.
Assistant Chief Executive,Partnerships & Community Engagement Div.,Transfer Payments,525030,Other,04-Mar-2016,3096044-14080/16,"27,000.00",PIONEERING CARE PARTNERSHIP.
Assistant Chief Executive,Partnerships & Community Engagement Div.,Transfer Payments,525030,Other,04-Mar-2016,3096044-14081/16,"13,500.00",PIONEERING CARE PARTNERSHIP.
Neighbourhood Services,Technical Services,Supplies and Services,304221,Equipment and Materials,04-Mar-2016,3095730-22677733,"1,393.94",AGGREGATE INDUSTRIES UK LTD.
Neighbourhood Services,Technical Services,Supplies and Services,304221,Equipment and Materials,04-Mar-2016,3095730-22677814,"1,230.17",AGGREGATE INDUSTRIES UK LTD.
Neighbourhood Services,Technical Services,Supplies and Services,304221,Equipment and Materials,04-Mar-2016,3095730-22677815,"1,292.49",AGGREGATE INDUSTRIES UK LTD.
Neighbourhood Services,Technical Services,Supplies and Services,304221,Equipment and Materials,04-Mar-2016,3095730-22677818,852.43,AGGREGATE INDUSTRIES UK LTD.
Neighbourhood Services,Technical Services,Supplies and Services,304221,Equipment and Materials,04-Mar-2016,3095730-22683446,834.85,AGGREGATE INDUSTRIES UK LTD.
Neighbourhood Services,Culture & Sport,Supplies and Services,312013,Newspapers Books and Periodicals,04-Mar-2016,3095746-4939669,507.70,ASKEWS & HOLTS LIBRARY SERVICES LTD.
Neighbourhood Services,Culture & Sport,Supplies and Services,338047,Services,04-Mar-2016,3095748-SIN013387,"2,000.00",AVALON PROMOTIONS LTD.
Neighbourhood Services,Culture & Sport,Premises,106082,Centrally Controlled Rep and Maint,04-Mar-2016,3095753-29889,"4,496.00",BARR & WRAY LTD.
Neighbourhood Services,Direct Services,Premises,108099,Service Repairs and Maintenance,04-Mar-2016,3095756-5451,"4,825.00",BELL CONTROL SOLUTIONS LTD.
Neighbourhood Services,Culture & Sport,Supplies and Services,324001,Provisions,04-Mar-2016,3095779-842365837,"1,145.26",CARLSBERG UK LTD.
Neighbourhood Services,Culture & Sport,Income,715998,Sales,04-Mar-2016,3095779-842367299,"1,401.68",CARLSBERG UK LTD.
Neighbourhood Services,Direct Services,Third Party Payments,430100,Rendered by Private Contractors,04-Mar-2016,3095783-573,"1,481.37",CATHEDRAL LOCK & SAFE SERVICES LTD.
Neighbourhood Services,Technical Services,Supplies and Services,304221,Equipment and Materials,04-Mar-2016,3095787-3008433509,628.99,CEMEX UK MATERIALS LTD.
Neighbourhood Services,Culture & Sport,Third Party Payments,430100,Rendered by Private Contractors,04-Mar-2016,3095805-PSINV00237,"7,555.21",COMPETITION LINE UK LTD.
Neighbourhood Services,Direct Services,Debtors,930046,Debtor-leasing,04-Mar-2016,3095832-276469,"149,925.00",DENNIS EAGLE LTD.
Neighbourhood Services,Direct Services,Debtors,930046,Debtor-leasing,04-Mar-2016,3095832-276483,"149,925.00",DENNIS EAGLE LTD.
Neighbourhood Services,Direct Services,Debtors,930046,Debtor-leasing,04-Mar-2016,3095832-276484,"149,925.00",DENNIS EAGLE LTD.
Neighbourhood Services,Direct Services,Supplies and Services,304259,Equipment and Materials,04-Mar-2016,3095850-6020272,"1,512.00",EAST RIDING HORTICULTURE LTD.
Neighbourhood Services,Culture & Sport,Premises,106080,Centrally Controlled Rep and Maint,04-Mar-2016,3095864-15502764,683.06,ENER-G COMBINED POWER LTD.
Neighbourhood Services,Culture & Sport,Premises,106082,Centrally Controlled Rep and Maint,04-Mar-2016,3095864-15502780,847.50,ENER-G COMBINED POWER LTD.
Neighbourhood Services,Direct Services,Transport,230005,Contract Hire,04-Mar-2016,3095865-8127451,"1,097.65",ENTERPRISE FLEX-E-RENT T/A BURNT TREE GROUP LTD.
Neighbourhood Services,Direct Services,Transport,230005,Contract Hire,04-Mar-2016,3095865-8127453,"1,097.65",ENTERPRISE FLEX-E-RENT T/A BURNT TREE GROUP LTD.
Neighbourhood Services,Direct Services,Transport,230005,Contract Hire,04-Mar-2016,3095865-8127459,"1,097.65",ENTERPRISE FLEX-E-RENT T/A BURNT TREE GROUP LTD.
Neighbourhood Services,Direct Services,Transport,230005,Contract Hire,04-Mar-2016,3095865-8127467,559.12,ENTERPRISE FLEX-E-RENT T/A BURNT TREE GROUP LTD.
Neighbourhood Services,Direct Services,Transport,230005,Contract Hire,04-Mar-2016,3095865-8127469,"1,097.65",ENTERPRISE FLEX-E-RENT T/A BURNT TREE GROUP LTD.
Neighbourhood Services,Technical Services,Third Party Payments,460308,Contract Payments,04-Mar-2016,3095890-GRI81,942.00,GAVIN RIDDLE.
Neighbourhood Services,Technical Services,Supplies and Services,304337,Equipment and Materials,04-Mar-2016,3095895-33026,750.00,GRAB & DELIVER LTD.
Neighbourhood Services,Technical Services,Stock,926900,Stock in hand-Inventory system,04-Mar-2016,3095898-06/589722,818.20,GREENHAM TRADING LTD.
Neighbourhood Services,Direct Services,Stock,926004,Stock,04-Mar-2016,3095899-127492,762.90,GREENLAY (GRASS MACHINERY) LTD.
Neighbourhood Services,EnvironmentHealth & Consumer Protection,Supplies and Services,338027,Services,04-Mar-2016,3095900-0000010962,"5,000.00",GROUNDWORK NORTH EAST.
Neighbourhood Services,Culture & Sport,Supplies and Services,338047,Services,04-Mar-2016,3095901-FBC699,600.00,GROWLING CLOWN.
Neighbourhood Services,Direct Services,Supplies and Services,304259,Equipment and Materials,04-Mar-2016,3095902-134444,"1,118.19",GUSTHARTS.
Neighbourhood Services,Projects and Business services,Third Party Payments,430119,Rendered by Private Contractors,04-Mar-2016,3095908-96151.,"1,310.56",HARPERS ENVIRONMENTAL LTD.
Neighbourhood Services,Projects and Business services,Third Party Payments,430119,Rendered by Private Contractors,04-Mar-2016,3095908-96152.,852.25,HARPERS ENVIRONMENTAL LTD.
Neighbourhood Services,Direct Services,Supplies and Services,304221,Equipment and Materials,04-Mar-2016,3095909-0000004921,526.80,HARVEST ENERGY LTD.
Neighbourhood Services,Direct Services,Third Party Payments,430100,Rendered by Private Contractors,04-Mar-2016,3095914-62069,"1,376.00",HOGARTH COACHWORKS LTD.
Neighbourhood Services,Direct Services,Third Party Payments,430100,Rendered by Private Contractors,04-Mar-2016,3095914-62206,"1,393.66",HOGARTH COACHWORKS LTD.
Neighbourhood Services,Direct Services,Third Party Payments,430100,Rendered by Private Contractors,04-Mar-2016,3095914-62451,775.66,HOGARTH COACHWORKS LTD.
Neighbourhood Services,Technical Services,Employees,040149,Recruitment Instruction and Training,04-Mar-2016,3095923-2241,"1,570.00",HSF TRAINING LTD.
Neighbourhood Services,Technical Services,Construction Work,908105,Construction work,04-Mar-2016,3095938-12197,"5,398.61",JACK COUPE & SONS LTD T/A COUPE LINE.
Neighbourhood Services,Technical Services,Supplies and Services,338027,Services,04-Mar-2016,3095940-B225H002-104,"2,401.96",JACOBS UK LTD.
Neighbourhood Services,Technical Services,Employees,080025,Agency Staff,04-Mar-2016,3095940-B225H003-038,664.35,JACOBS UK LTD.
Neighbourhood Services,Technical Services,Supplies and Services,338027,Services,04-Mar-2016,3095940-B225H006-015,"45,285.95",JACOBS UK LTD.
Neighbourhood Services,Technical Services,Supplies and Services,338027,Services,04-Mar-2016,3095940-B225H006-016,"16,766.13",JACOBS UK LTD.
Neighbourhood Services,Technical Services,Supplies and Services,338027,Services,04-Mar-2016,3095940-B225H007-005,"4,687.12",JACOBS UK LTD.
Neighbourhood Services,Direct Services,Construction Work,908105,Construction work,04-Mar-2016,3095952-INS2,"8,191.68",JOHN WADE (HAULAGE) LTD.
Neighbourhood Services,Direct Services,Supplies and Services,304221,Equipment and Materials,04-Mar-2016,3095958-BAI257825,"2,570.40",JT DOVE LTD.
Neighbourhood Services,Technical Services,Supplies and Services,304358,Equipment and Materials,04-Mar-2016,3095963-1253,"2,221.25",KEVIN SNOWDON GROUNDWORKS LTD.
Neighbourhood Services,Technical Services,Supplies and Services,304358,Equipment and Materials,04-Mar-2016,3095963-1260,765.50,KEVIN SNOWDON GROUNDWORKS LTD.
Neighbourhood Services,Technical Services,Supplies and Services,304358,Equipment and Materials,04-Mar-2016,3095963-1263,"2,310.00",KEVIN SNOWDON GROUNDWORKS LTD.
Neighbourhood Services,Technical Services,Supplies and Services,304358,Equipment and Materials,04-Mar-2016,3095963-1264,"1,415.00",KEVIN SNOWDON GROUNDWORKS LTD.
Neighbourhood Services,Technical Services,Supplies and Services,304358,Equipment and Materials,04-Mar-2016,3095963-1265,765.50,KEVIN SNOWDON GROUNDWORKS LTD.
Neighbourhood Services,Technical Services,Supplies and Services,304358,Equipment and Materials,04-Mar-2016,3095963-1266,"2,100.00",KEVIN SNOWDON GROUNDWORKS LTD.
Neighbourhood Services,Culture & Sport,Premises,106080,Centrally Controlled Rep and Maint,04-Mar-2016,3095973-INV00974607,"1,300.00",LANES GROUP PLC.
Neighbourhood Services,Culture & Sport,Supplies and Services,338047,Services,04-Mar-2016,3095980-80018725,"5,569.89",LIONS GATE INTERNATIONAL (UK) LTD.
Neighbourhood Services,Culture & Sport,Supplies and Services,338047,Services,04-Mar-2016,3095980-80018726,"2,465.03",LIONS GATE INTERNATIONAL (UK) LTD.
Neighbourhood Services,Culture & Sport,Supplies and Services,338047,Services,04-Mar-2016,3095980-80018727,700.25,LIONS GATE INTERNATIONAL (UK) LTD.
Neighbourhood Services,Direct Services,Third Party Payments,430100,Rendered by Private Contractors,04-Mar-2016,3095985-124202,661.55,LONDONDERRY GARAGE (S.E) LTD.
Neighbourhood Services,Technical Services,Stock,926900,Stock in hand-Inventory system,04-Mar-2016,3095992-0000963377,631.60,MAGDEN LTD.
Neighbourhood Services,Culture & Sport,Supplies and Services,304259,Equipment and Materials,04-Mar-2016,3096019-12358788,751.42,NISBETS PLC.
Neighbourhood Services,Direct Services,Third Party Payments,430100,Rendered by Private Contractors,04-Mar-2016,3096021-1379086,967.07,NORTH EAST TRUCK & VAN LTD.
Neighbourhood Services,Direct Services,Third Party Payments,430100,Rendered by Private Contractors,04-Mar-2016,3096023-20379,582.38,NORTHERN POWER CLEAN LTD.
Neighbourhood Services,Culture & Sport,Supplies and Services,338047,Services,04-Mar-2016,3096035-R2114280,623.33,PARAMOUNT PICTURES UK.
Neighbourhood Services,Technical Services,Supplies and Services,304999,Equipment and Materials,04-Mar-2016,3096049-41403,"4,985.00",PRECISION GEOMATICS LTD.
Neighbourhood Services,Technical Services,Supplies and Services,304999,Equipment and Materials,04-Mar-2016,3096049-41404,"4,745.00",PRECISION GEOMATICS LTD.
Neighbourhood Services,Technical Services,Third Party Payments,430100,Rendered by Private Contractors,04-Mar-2016,3096053-85339,550.00,PROTECTOR SECURITY GROUP LTD.
Neighbourhood Services,Culture & Sport,Supplies and Services,304259,Equipment and Materials,04-Mar-2016,3096054-5378,"1,123.00",PURPLE MOON PROMOTIONAL PRODUCTS LTD.
Neighbourhood Services,Culture & Sport,Debtors,930178,Debtor - Consett Academy FM,04-Mar-2016,3096068-I/CONSETT37464,"12,423.05",ROBERTSON FACILITIES MANAGEMENT.
Neighbourhood Services,Technical Services,Supplies and Services,304221,Equipment and Materials,04-Mar-2016,3096086-714518376049,"1,079.50",SIG TRADING LTD.
Neighbourhood Services,Technical Services,Supplies and Services,304221,Equipment and Materials,04-Mar-2016,3096096-079161,525.44,STONEGRAVE AGGREGATES LTD.
Neighbourhood Services,Culture & Sport,Supplies and Services,338047,Services,04-Mar-2016,3096132-22314074905-1,"1,352.08",UNIVERSAL PICTURES INTERNATIONAL UK & EIRE LTD.
Neighbourhood Services,Direct Services,Transport,230005,Contract Hire,04-Mar-2016,3096141-40922,750.00,W MARLEY AGRICULTURAL CONTRACTORS LTD.
Neighbourhood Services,Direct Services,Transport,230005,Contract Hire,04-Mar-2016,3096144-69172,548.00,WARREN ACCESS LTD.
Neighbourhood Services,Technical Services,Stock,926900,Stock in hand-Inventory system,04-Mar-2016,3096150-2038354,681.96,WILKIES.
Neighbourhood Services,Direct Services,Supplies and Services,304221,Equipment and Materials,04-Mar-2016,3096151-40425,"3,995.90",WILLOWCRETE MFG CO LTD.
Neighbourhood Services,Technical Services,Supplies and Services,304221,Equipment and Materials,04-Mar-2016,3096151-40428,"4,774.97",WILLOWCRETE MFG CO LTD.
Neighbourhood Services,Technical Services,Stock,926900,Stock in hand-Inventory system,04-Mar-2016,3096152-30225950,"1,444.14",WOLSELEY UK LTD.
Neighbourhood Services,Direct Services,Stock,926004,Stock,04-Mar-2016,3096158-100969,862.84,ZOELLER WASTE SYSTEMS LTD.
Neighbourhood Services,Direct Services,Transport,210057,Repair and Maintenance of Vehicles,04-Mar-2016,3096158-101183,"2,013.28",ZOELLER WASTE SYSTEMS LTD.
Regeneration & Economic Development,Economic Development and Housing,Supplies and Services,384899,Miscellaneous Expenses,04-Mar-2016,3095762-RED-02-2016-105,"3,830.26",BLAIZE.
Regeneration & Economic Development,Economic Development and Housing,Supplies and Services,384899,Miscellaneous Expenses,04-Mar-2016,3095773-SBUS002,"1,250.00",BUSINESS & ENTERPRISE COMMERCIAL LTD T/A BE GROUP.
Regeneration & Economic Development,Spatial Policy Planning Assets & Environment,Construction Work,908105,Construction work,04-Mar-2016,3095778-418-000186,"3,754.08",CARILLION (MAPLE OAK) LTD.
Regeneration & Economic Development,Economic Development and Housing,Premises,120021,Energy Costs,04-Mar-2016,3095810-10801322,627.44,CORONA ENERGY RETAIL 2 LTD.
Regeneration & Economic Development,Economic Development and Housing,Premises,120021,Energy Costs,04-Mar-2016,3095811-10554287,"3,810.79",CORONA ENERGY RETAIL 2 LTD.
Regeneration & Economic Development,Economic Development and Housing,Premises,120021,Energy Costs,04-Mar-2016,3095811-10717798,"4,938.72",CORONA ENERGY RETAIL 2 LTD.
Regeneration & Economic Development,Economic Development and Housing,Premises,120021,Energy Costs,04-Mar-2016,3095811-10801347,"2,001.53",CORONA ENERGY RETAIL 2 LTD.
Regeneration & Economic Development,Economic Development and Housing,Premises,120021,Energy Costs,04-Mar-2016,3095811-10802208,"1,312.18",CORONA ENERGY RETAIL 2 LTD.
Regeneration & Economic Development,Economic Development and Housing,Premises,120021,Energy Costs,04-Mar-2016,3095811-10802846,"1,435.82",CORONA ENERGY RETAIL 2 LTD.
Regeneration & Economic Development,Economic Development and Housing,Premises,120021,Energy Costs,04-Mar-2016,3095811-10803837,"4,435.30",CORONA ENERGY RETAIL 2 LTD.
Regeneration & Economic Development,Economic Development and Housing,Payments In Advance,932001,Payments in advance,04-Mar-2016,3095863-RED-03-2016-016,"5,000.00",ENDSLEIGH INSURANCE SERVICES LTD.
Regeneration & Economic Development,Economic Development and Housing,Supplies and Services,344033,Telephones,04-Mar-2016,3095880-128293,"1,103.46",FREEDOM COMMUNICATIONS (UK) LTD.
Regeneration & Economic Development,Economic Development and Housing,Fees,901002,Professional fees,04-Mar-2016,3095889-107489184,"21,652.57",GATESHEAD COUNCIL.
Regeneration & Economic Development,Economic Development and Housing,Fees,901002,Professional fees,04-Mar-2016,3095889-107489308,642.74,GATESHEAD COUNCIL.
Regeneration & Economic Development,Economic Development and Housing,Fees,901002,Professional fees,04-Mar-2016,3095889-107489317,"30,423.49",GATESHEAD COUNCIL.
Regeneration & Economic Development,Economic Development and Housing,Fees,901002,Professional fees,04-Mar-2016,3095889-107489326,"7,800.00",GATESHEAD COUNCIL.
Regeneration & Economic Development,Economic Development and Housing,Supplies and Services,384899,Miscellaneous Expenses,04-Mar-2016,3095900-RED-02-2016-106,"3,188.54",GROUNDWORK NORTH EAST.
Regeneration & Economic Development,Transport and Contracted Services,Cap Exp on Grants & Other Financial Assistance (REFCUS),918401,Capital grants,04-Mar-2016,3095904-RED-03-2016-018,"5,000.00",HALL CONSTRUCTION SERVICES LTD.
Regeneration & Economic Development,Transport and Contracted Services,Supplies and Services,304259,Equipment and Materials,04-Mar-2016,3095905-SI-1640,"1,180.00",HALLIDAY JAMES LTD.
Regeneration & Economic Development,Transport and Contracted Services,Cap Exp on Grants & Other Financial Assistance (REFCUS),918401,Capital grants,04-Mar-2016,3095928-RED-03-2016-017,"3,877.16",IBEX INNOVATIONS LTD.
Regeneration & Economic Development,Spatial Policy Planning Assets & Environment,Payments In Advance,932001,Payments in advance,04-Mar-2016,3095929-104296,"18,425.32",IDOX SOFTWARE LTD.
Regeneration & Economic Development,Economic Development and Housing,Cap Exp on Grants & Other Financial Assistance (REFCUS),918401,Capital grants,04-Mar-2016,3095951-RED-03-2016-015,"1,360.00",REDACTED - PAYMENT TO INDIVIDUAL
Regeneration & Economic Development,Economic Development and Housing,Supplies and Services,384700,Miscellaneous Expenses,04-Mar-2016,3096000-RED-02-2016-225.,"1,000.00",MELLORS CATERING SERVICES LTD.
Regeneration & Economic Development,Spatial Policy Planning Assets & Environment,Construction Work,908105,Construction work,04-Mar-2016,3096024-03-2016-008,"1,068.00",NORTHERN POWERGRID (NORTHEAST) LTD.
Regeneration & Economic Development,Spatial Policy Planning Assets & Environment,Supplies and Services,338027,Services,04-Mar-2016,3096069-INV-0225,"1,032.00",ROBSON & LIDDLE CHARTERED SURVEYORS.
Regeneration & Economic Development,Spatial Policy Planning Assets & Environment,Supplies and Services,336005,Advertising,04-Mar-2016,3096106-108695,663.00,TEESDALE MERCURY LTD.
Resources,Financial Services,Supplies and Services,342053,Computers and Communications,04-Mar-2016,3095794-C/RB140937,950.00,CIVICA UK LTD.
Resources,I.C.T. Services,Stock,926900,Stock in hand-Inventory system,04-Mar-2016,3095830-7402266400,"3,543.84",DELL COMPUTER CORPORATION LTD.
Resources,I.C.T. Services,Stock,926900,Stock in hand-Inventory system,04-Mar-2016,3095830-7402266470,"3,543.84",DELL COMPUTER CORPORATION LTD.
Resources,I.C.T. Services,Stock,926900,Stock in hand-Inventory system,04-Mar-2016,3095830-7402266515,"3,543.84",DELL COMPUTER CORPORATION LTD.
Resources,I.C.T. Services,Supplies and Services,342033,Computers and Communications,04-Mar-2016,3095830-7402266582,"1,760.00",DELL COMPUTER CORPORATION LTD.
Resources,Legal & Democratic Services,Supplies and Services,338042,Services,04-Mar-2016,3095833-318088/INVSPA76,"1,200.00",DERE STREET BARRISTERS.
Resources,Legal & Democratic Services,Premises,106083,Centrally Controlled Rep and Maint,04-Mar-2016,3095856-63624,700.00,EIAT UK LTD.
Resources,I.C.T. Services,Supplies and Services,384199,Miscellaneous Expenses,04-Mar-2016,3095921-1,750.00,HOWARD MAWSON T/A IT SERVICES DURHAM.
Resources,I.C.T. Services,Stock,926900,Stock in hand-Inventory system,04-Mar-2016,3095931-SIN377886,"2,950.00",INFORMATION & DATA NETWORK SUPPLIES LTD (IDN).
Resources,Human Resources,Supplies and Services,338027,Services,04-Mar-2016,3096009-267264-24/02/16,"1,950.00",REDACTED - PAYMENT TO INDIVIDUAL
Resources,I.C.T. Services,Supplies and Services,384956,Miscellaneous Expenses,04-Mar-2016,3096015-92024785,"12,390.00",NEOPOST LTD.
Resources,Legal & Democratic Services,Supplies and Services,338057,Services,04-Mar-2016,3096067-0000022534,"1,665.00",ROAR FORENSICS LTD.
Resources,Legal & Democratic Services,Supplies and Services,304259,Equipment and Materials,04-Mar-2016,3096083-0000248999,897.00,SHAW & SONS LTD.
Resources,Legal & Democratic Services,Supplies and Services,304259,Equipment and Materials,04-Mar-2016,3096083-0000249000,810.00,SHAW & SONS LTD.
Children and Adult Services,Childrens Services,Supplies and Services,384638,Miscellaneous Expenses,07-Mar-2016,3096281-04-2015-16A,"5,625.00",DURHAM AREA DISABILITY LEISURE GROUP.
Children and Adult Services,Childrens Services,Supplies and Services,384302,Miscellaneous Expenses,07-Mar-2016,3096289-002-2015B,860.57,EAST DURHAM COMMUNITY EDUCATION COMMITTEE.
Children and Adult Services,Childrens Services,Supplies and Services,304259,Equipment and Materials,07-Mar-2016,3096309-15077,628.10,FAMILY LINKS.
Children and Adult Services,Childrens Services,Premises,120009,Energy Costs,07-Mar-2016,3096466-C1443,672.70,PETERLEE TOWN COUNCIL.
Children and Adult Services,Childrens Services,Employees,080025,Agency Staff,07-Mar-2016,3096477-23832,"1,415.00",PK EDUCATION.
Children and Adult Services,Childrens Services,Employees,080025,Agency Staff,07-Mar-2016,3096498-0229234442,780.00,REED MANAGED SERVICES LTD.
Dedicated Schools Grant,Dedicated Schools Grant,Third Party Payments,440999,Other Third Party Payments,07-Mar-2016,3096208-20000900,"7,428.00",BLIND CHILDREN UK.
Dedicated Schools Grant,Dedicated Schools Grant,Transport,230010,Contract Hire,07-Mar-2016,3096248-0001629,750.00,COLORS TAXIS LTD.
Dedicated Schools Grant,Dedicated Schools Grant,Transport,230010,Contract Hire,07-Mar-2016,3096412-011508A,"1,520.00",MARK & JOHN CHISHOLM T/A (CHEVRON).
Dedicated Schools Grant,Dedicated Schools Grant,Transport,230010,Contract Hire,07-Mar-2016,3096412-021508A,"1,380.00",MARK & JOHN CHISHOLM T/A (CHEVRON).
Dedicated Schools Grant,Dedicated Schools Grant,Transport,230010,Contract Hire,07-Mar-2016,3096412-021604,"1,140.00",MARK & JOHN CHISHOLM T/A (CHEVRON).
Dedicated Schools Grant,Dedicated Schools Grant,Transport,230010,Contract Hire,07-Mar-2016,3096412-021607,"1,140.00",MARK & JOHN CHISHOLM T/A (CHEVRON).
Dedicated Schools Grant,Dedicated Schools Grant,Transport,230010,Contract Hire,07-Mar-2016,3096412-021609,"1,200.00",MARK & JOHN CHISHOLM T/A (CHEVRON).
Dedicated Schools Grant,Dedicated Schools Grant,Transport,230010,Contract Hire,07-Mar-2016,3096421-QC/02/16,690.00,MR J AGAR T/A PARK TAXIS.
Dedicated Schools Grant,Dedicated Schools Grant,Third Party Payments,440080,Other Third Party Payments,07-Mar-2016,3096434-M0018752,"1,950.00",NEWCASTLE COLLEGE.
Dedicated Schools Grant,Dedicated Schools Grant,Transport,230011,Contract Hire,07-Mar-2016,3096462-DCC71,505.60,PAUL`S TAXIS..
Dedicated Schools Grant,Dedicated Schools Grant,Supplies and Services,304259,Equipment and Materials,07-Mar-2016,3096472-2591426509,"3,294.00",PHONAK UK LTD.
Children and Adult Services,Education,Supplies and Services,384199,Miscellaneous Expenses,07-Mar-2016,3096165-DSSP0216,"1,296.00",AAA SPORTS.
Children and Adult Services,Education,Transport,230008,Contract Hire,07-Mar-2016,3096222-W01706,"1,004.50",C & R TAXIS.
Children and Adult Services,Education,Transport,230008,Contract Hire,07-Mar-2016,3096222-W12006,624.00,C & R TAXIS.
Children and Adult Services,Education,Transport,230008,Contract Hire,07-Mar-2016,3096240-16,"1,350.00",CHAPMAN TRAVEL.
Children and Adult Services,Education,Transport,230008,Contract Hire,07-Mar-2016,3096241-KJ038,999.84,CHIPPERS TAXIS.
Children and Adult Services,Education,Transport,230008,Contract Hire,07-Mar-2016,3096241-WS06,556.00,CHIPPERS TAXIS.
Children and Adult Services,Education,Transport,230008,Contract Hire,07-Mar-2016,3096253-1010,"1,504.00",CONNORS MINI BUSES.
Children and Adult Services,Education,Transport,230008,Contract Hire,07-Mar-2016,3096253-1012,"1,400.00",CONNORS MINI BUSES.
Children and Adult Services,Education,Transport,230008,Contract Hire,07-Mar-2016,3096253-1013,"1,248.00",CONNORS MINI BUSES.
Children and Adult Services,Education,Transport,230008,Contract Hire,07-Mar-2016,3096253-1014,"1,376.00",CONNORS MINI BUSES.
Children and Adult Services,Education,Transport,230007,Contract Hire,07-Mar-2016,3096262-5854,"1,156.60",CROFT BUSINESS SERVICES (UK) LTD T/A CROFT TAXIS.
Children and Adult Services,Education,Transport,230007,Contract Hire,07-Mar-2016,3096262-5927,"1,200.96",CROFT BUSINESS SERVICES (UK) LTD T/A CROFT TAXIS.
Children and Adult Services,Education,Transport,230008,Contract Hire,07-Mar-2016,3096262-5931,"1,168.05",CROFT BUSINESS SERVICES (UK) LTD T/A CROFT TAXIS.
Children and Adult Services,Education,Transport,230008,Contract Hire,07-Mar-2016,3096262-5932,"2,081.10",CROFT BUSINESS SERVICES (UK) LTD T/A CROFT TAXIS.
Children and Adult Services,Education,Transport,230008,Contract Hire,07-Mar-2016,3096262-5937,"1,384.54",CROFT BUSINESS SERVICES (UK) LTD T/A CROFT TAXIS.
Children and Adult Services,Education,Transport,230006,Contract Hire,07-Mar-2016,3096262-5938,698.62,CROFT BUSINESS SERVICES (UK) LTD T/A CROFT TAXIS.
Children and Adult Services,Education,Transport,230006,Contract Hire,07-Mar-2016,3096262-5939,915.00,CROFT BUSINESS SERVICES (UK) LTD T/A CROFT TAXIS.
Children and Adult Services,Education,Transport,230006,Contract Hire,07-Mar-2016,3096262-5940,"1,026.53",CROFT BUSINESS SERVICES (UK) LTD T/A CROFT TAXIS.
Children and Adult Services,Education,Transport,230008,Contract Hire,07-Mar-2016,3096262-5942,638.08,CROFT BUSINESS SERVICES (UK) LTD T/A CROFT TAXIS.
Children and Adult Services,Education,Transport,230008,Contract Hire,07-Mar-2016,3096262-5945,"1,315.04",CROFT BUSINESS SERVICES (UK) LTD T/A CROFT TAXIS.
Children and Adult Services,Education,Transport,230008,Contract Hire,07-Mar-2016,3096307-16,656.00,EXTREME TAXI`S.
Children and Adult Services,Education,Transport,230007,Contract Hire,07-Mar-2016,3096323-18192,"18,594.29",GARNETTS LTD (COACHES).
Children and Adult Services,Education,Transport,230006,Contract Hire,07-Mar-2016,3096339-HT209,"1,070.00",HARRY`S TAXI`S.
Children and Adult Services,Education,Transport,230008,Contract Hire,07-Mar-2016,3096350-IR1602004,840.00,I & R EXECUTIVE TRAVEL.
Children and Adult Services,Education,Transport,230008,Contract Hire,07-Mar-2016,3096365-29/01/16A,"1,413.40",JL EBDON.
Children and Adult Services,Education,Transport,230006,Contract Hire,07-Mar-2016,3096371-0024,770.00,JOHN WARE T/A J & K TAXIS.
Children and Adult Services,Education,Transport,230008,Contract Hire,07-Mar-2016,3096372-86,"1,342.88",JOHNS TAXIS (CHESTER LE STREET).
Children and Adult Services,Education,Transport,230008,Contract Hire,07-Mar-2016,3096382-6/N191,"2,016.00",KD TAXIS.
Children and Adult Services,Education,Transport,230007,Contract Hire,07-Mar-2016,3096388-1599,"9,609.40",LEE`S COACHES LTD.
Children and Adult Services,Education,Transport,230008,Contract Hire,07-Mar-2016,3096409-17,"1,050.00",MALCOLM CARR T/A CARLY CABS.
Children and Adult Services,Education,Transport,230008,Contract Hire,07-Mar-2016,3096412-021601,"2,855.50",MARK & JOHN CHISHOLM T/A (CHEVRON).
Children and Adult Services,Education,Transport,230008,Contract Hire,07-Mar-2016,3096412-021603,"1,312.00",MARK & JOHN CHISHOLM T/A (CHEVRON).
Children and Adult Services,Education,Transport,230008,Contract Hire,07-Mar-2016,3096412-021605,935.84,MARK & JOHN CHISHOLM T/A (CHEVRON).
Children and Adult Services,Education,Transport,230008,Contract Hire,07-Mar-2016,3096412-021606,760.00,MARK & JOHN CHISHOLM T/A (CHEVRON).
Children and Adult Services,Education,Transport,230007,Contract Hire,07-Mar-2016,3096421-JP/02/16,756.00,MR J AGAR T/A PARK TAXIS.
Children and Adult Services,Education,Transport,230008,Contract Hire,07-Mar-2016,3096421-SV/02/16,544.00,MR J AGAR T/A PARK TAXIS.
Children and Adult Services,Education,Transport,230008,Contract Hire,07-Mar-2016,3096425-9,"1,200.00",REDACTED - PAYMENT TO INDIVIDUAL
Children and Adult Services,Education,Supplies and Services,384199,Miscellaneous Expenses,07-Mar-2016,3096426-20160510,600.00,MRS JAYNE M HERON.
Children and Adult Services,Education,Supplies and Services,304259,Equipment and Materials,07-Mar-2016,3096430-SI12080,"2,157.68",NEOPOST FINANCE LTD.
Children and Adult Services,Education,Transport,230008,Contract Hire,07-Mar-2016,3096462-DCC68,"1,016.00",PAUL`S TAXIS..
Children and Adult Services,Education,Transport,230008,Contract Hire,07-Mar-2016,3096462-DCC69,"1,200.00",PAUL`S TAXIS..
Children and Adult Services,Education,Transport,230008,Contract Hire,07-Mar-2016,3096462-DCC70,"1,286.56",PAUL`S TAXIS..
Children and Adult Services,Education,Transport,230008,Contract Hire,07-Mar-2016,3096465-514,"1,024.00",PETERLEE EXECUTIVE CARS.
Children and Adult Services,Education,Transport,230008,Contract Hire,07-Mar-2016,3096468-0434,"1,755.00",PETER`S PRIVATE HIRE/PETER BEST.
Children and Adult Services,Education,Transport,230008,Contract Hire,07-Mar-2016,3096468-0435,"1,687.50",PETER`S PRIVATE HIRE/PETER BEST.
Children and Adult Services,Education,Transport,230008,Contract Hire,07-Mar-2016,3096468-0436,"1,520.00",PETER`S PRIVATE HIRE/PETER BEST.
Children and Adult Services,Education,Transport,230008,Contract Hire,07-Mar-2016,3096468-0437,"1,088.00",PETER`S PRIVATE HIRE/PETER BEST.
Children and Adult Services,Education,Transport,230008,Contract Hire,07-Mar-2016,3096470-733,"2,748.80",PG TRIPS.
Children and Adult Services,Education,Transport,230007,Contract Hire,07-Mar-2016,3096482-310,"1,289.76",PREMIER PRIVATE HIRE.
Children and Adult Services,Education,Supplies and Services,342007,Computers and Communications,07-Mar-2016,3096520-5004,"4,373.00",SGA SYSTEMS LTD.
Children and Adult Services,Education,Employees,040001,Recruitment Instruction and Training,07-Mar-2016,3096557-TARINV/15410433,710.10,TES GLOBAL LTD.
Children and Adult Services,Head of Adults,Supplies and Services,304259,Equipment and Materials,07-Mar-2016,3096298-SI18498,786.95,ELECTROMASTER TELECOMMUNICATIONS LTD.
Children and Adult Services,Planning & Service Strategy,Supplies and Services,304259,Equipment and Materials,07-Mar-2016,3096474-63426491,510.23,PHS GROUP PLC.
Children and Adult Services,Planning & Service Strategy,Employees,040149,Recruitment Instruction and Training,07-Mar-2016,3096524-1591,"1,029.40",SIGNIS LTD.
Assistant Chief Executive,Partnerships & Community Engagement Div.,Transfer Payments,525030,Other,07-Mar-2016,3096197-TEES002SGF051,"1,000.00",BARNARD CASTLE AMATEUR BOXING CLUB.
Assistant Chief Executive,Partnerships & Community Engagement Div.,Cap Exp on Grants & Other Financial Assistance (REFCUS),918004,Contributions to other bodies,07-Mar-2016,3096203-BASH017,"5,000.00",BISHOP AUCKLAND TABLE TENNIS CLUB.
Assistant Chief Executive,Partnerships & Community Engagement Div.,Cap Exp on Grants & Other Financial Assistance (REFCUS),918004,Contributions to other bodies,07-Mar-2016,3096231-EDUR042,"2,000.00",CASTLE EDEN PLAY GROUP.
Assistant Chief Executive,Partnerships & Community Engagement Div.,Cap Exp on Grants & Other Financial Assistance (REFCUS),918004,Contributions to other bodies,07-Mar-2016,3096263-VOUCHER15AB,665.00,CROOK TOWN AFC YOUTH FOOTBALL CLUB.
Assistant Chief Executive,Partnerships & Community Engagement Div.,Cap Exp on Grants & Other Financial Assistance (REFCUS),918004,Contributions to other bodies,07-Mar-2016,3096532-SPEN003,"5,693.00",SOUTH DURHAM GYMNASTICS CLUB.
Assistant Chief Executive,Partnerships & Community Engagement Div.,Transfer Payments,525030,Other,07-Mar-2016,3096556-TEES002,"3,369.00",TEESDALE YMCA.
Neighbourhood Services,Culture & Sport,Supplies and Services,304252,Equipment and Materials,07-Mar-2016,3096168-90113627,"1,882.40",ABACUS LIGHTING LTD.
Neighbourhood Services,Technical Services,Supplies and Services,304221,Equipment and Materials,07-Mar-2016,3096174-22683541,"1,256.51",AGGREGATE INDUSTRIES UK LTD.
Neighbourhood Services,Technical Services,Supplies and Services,304221,Equipment and Materials,07-Mar-2016,3096174-22683542,"1,583.54",AGGREGATE INDUSTRIES UK LTD.
Neighbourhood Services,Technical Services,Supplies and Services,304221,Equipment and Materials,07-Mar-2016,3096174-22683544,"2,177.91",AGGREGATE INDUSTRIES UK LTD.
Neighbourhood Services,Technical Services,Supplies and Services,304221,Equipment and Materials,07-Mar-2016,3096174-22683545,"2,086.51",AGGREGATE INDUSTRIES UK LTD.
Neighbourhood Services,Technical Services,Supplies and Services,304221,Equipment and Materials,07-Mar-2016,3096174-22683546,823.17,AGGREGATE INDUSTRIES UK LTD.
Neighbourhood Services,Technical Services,Supplies and Services,304221,Equipment and Materials,07-Mar-2016,3096174-22689370,"1,221.40",AGGREGATE INDUSTRIES UK LTD.
Neighbourhood Services,Technical Services,Supplies and Services,304221,Equipment and Materials,07-Mar-2016,3096174-22689371,834.73,AGGREGATE INDUSTRIES UK LTD.
Neighbourhood Services,Technical Services,Supplies and Services,304221,Equipment and Materials,07-Mar-2016,3096174-22689372,"1,095.90",AGGREGATE INDUSTRIES UK LTD.
Neighbourhood Services,Technical Services,Supplies and Services,304221,Equipment and Materials,07-Mar-2016,3096174-22689373,"2,093.58",AGGREGATE INDUSTRIES UK LTD.
Neighbourhood Services,Technical Services,Supplies and Services,304221,Equipment and Materials,07-Mar-2016,3096174-22689374,826.60,AGGREGATE INDUSTRIES UK LTD.
Neighbourhood Services,Culture & Sport,Supplies and Services,304337,Equipment and Materials,07-Mar-2016,3096176-5674,501.25,ALISON BLACK LTD T/A SPORTMAX.
Neighbourhood Services,Technical Services,Third Party Payments,430100,Rendered by Private Contractors,07-Mar-2016,3096189-6400,"14,399.00",ASPHALT REINFORCEMENT SERVICES LTD.
Neighbourhood Services,Technical Services,Third Party Payments,430100,Rendered by Private Contractors,07-Mar-2016,3096198-1550001,"6,184.10",BCE NORTHERN LTD.
Neighbourhood Services,Culture & Sport,Supplies and Services,384199,Miscellaneous Expenses,07-Mar-2016,3096204-THEPITHEAPS,"3,400.00",BISHOP AUCKLAND THEATRE HOOLIGANS.
Neighbourhood Services,Culture & Sport,Supplies and Services,304999,Equipment and Materials,07-Mar-2016,3096209-7180216,"1,261.21",BLUE THE DESIGN CO LTD.
Neighbourhood Services,Culture & Sport,Premises,120021,Energy Costs,07-Mar-2016,3096224-27708272,706.12,CALOR GAS LTD.
Neighbourhood Services,Technical Services,Construction Work,908105,Construction work,07-Mar-2016,3096227-INSTALMENT1,"22,349.60",CARILLION CONSTRUCTION LTD T/A CARILLION CIVIL ENGINEERING.
Neighbourhood Services,Technical Services,Stock,926900,Stock in hand-Inventory system,07-Mar-2016,3096228-851600362,690.00,CARLISLE CONSTRUCTION MATERIALS LTD.
Neighbourhood Services,Culture & Sport,Supplies and Services,324001,Provisions,07-Mar-2016,3096229-842372047,620.55,CARLSBERG UK LTD.
Neighbourhood Services,Technical Services,Stock,926900,Stock in hand-Inventory system,07-Mar-2016,3096236-9950/01683521,"2,679.74",CERAMIC TILE DISTRIBUTORS (CTD).
Neighbourhood Services,Culture & Sport,Supplies and Services,336005,Advertising,07-Mar-2016,3096243-JAN2016,"1,122.00",CHRIS COOK LTD.
Neighbourhood Services,Culture & Sport,Third Party Payments,430100,Rendered by Private Contractors,07-Mar-2016,3096250-PSINV00260,"42,314.80",COMPETITION LINE UK LTD.
Neighbourhood Services,Technical Services,Third Party Payments,430100,Rendered by Private Contractors,07-Mar-2016,3096269-2842440,"19,050.75",DARLINGTON BOROUGH COUNCIL.
Neighbourhood Services,Culture & Sport,Supplies and Services,304259,Equipment and Materials,07-Mar-2016,3096303-INC-00004321,"1,013.32",ENTRE PRISES LTD.
Neighbourhood Services,Direct Services,Supplies and Services,304221,Equipment and Materials,07-Mar-2016,3096313-1602-187959,793.06,FLAME HEATING SPARES LTD.
Neighbourhood Services,Direct Services,Supplies and Services,304221,Equipment and Materials,07-Mar-2016,3096313-1602-187998,"1,293.86",FLAME HEATING SPARES LTD.
Neighbourhood Services,Direct Services,Supplies and Services,304221,Equipment and Materials,07-Mar-2016,3096313-1602-187999,"1,442.54",FLAME HEATING SPARES LTD.
Neighbourhood Services,Technical Services,Supplies and Services,304357,Equipment and Materials,07-Mar-2016,3096322-DCC210216,"18,830.51",GAP GROUP LTD.
Neighbourhood Services,Technical Services,Third Party Payments,460308,Contract Payments,07-Mar-2016,3096324-GHU81,630.00,GAVIN HUTCHINSON.
Neighbourhood Services,Technical Services,Supplies and Services,304221,Equipment and Materials,07-Mar-2016,3096326-703101,504.30,GLASDON UK LTD.
Neighbourhood Services,Technical Services,Stock,926900,Stock in hand-Inventory system,07-Mar-2016,3096332-06/583419,"1,400.00",GREENHAM TRADING LTD.
Neighbourhood Services,Technical Services,Stock,926900,Stock in hand-Inventory system,07-Mar-2016,3096332-06/591331,665.18,GREENHAM TRADING LTD.
Neighbourhood Services,Technical Services,Third Party Payments,430100,Rendered by Private Contractors,07-Mar-2016,3096343-2489,"14,785.62",HIGHWAY CONSTRUCTION SERVICES LTD.
Neighbourhood Services,Direct Services,Supplies and Services,304259,Equipment and Materials,07-Mar-2016,3096345-1444007106,"1,080.00",HILTI (GB) LTD.
Neighbourhood Services,Technical Services,Employees,040149,Recruitment Instruction and Training,07-Mar-2016,3096347-1909,"1,130.00",HSF TRAINING LTD.
Neighbourhood Services,Technical Services,Stock,926900,Stock in hand-Inventory system,07-Mar-2016,3096349-096534,"4,472.00",HYDRAM ENGINEERING LTD.
Neighbourhood Services,Technical Services,Third Party Payments,430100,Rendered by Private Contractors,07-Mar-2016,3096359-12188,"2,729.73",JACK COUPE & SONS LTD T/A COUPE LINE.
Neighbourhood Services,Technical Services,Construction Work,908105,Construction work,07-Mar-2016,3096359-12189,"2,366.85",JACK COUPE & SONS LTD T/A COUPE LINE.
Neighbourhood Services,Technical Services,Construction Work,908105,Construction work,07-Mar-2016,3096359-12198,"1,903.42",JACK COUPE & SONS LTD T/A COUPE LINE.
Neighbourhood Services,Culture & Sport,Supplies and Services,384199,Miscellaneous Expenses,07-Mar-2016,3096364-DH001,"1,000.00",JESSICA CURRY T/A THE CHINESE ROOM.
Neighbourhood Services,Direct Services,Supplies and Services,304259,Equipment and Materials,07-Mar-2016,3096366-00253,525.00,JN KEARTON.
Neighbourhood Services,Direct Services,Debtors,930046,Debtor-leasing,07-Mar-2016,3096374-61355769,"71,387.00",JOHNSTON SWEEPERS LTD.
Neighbourhood Services,Technical Services,Stock,926900,Stock in hand-Inventory system,07-Mar-2016,3096377-00000552,"1,700.00",JP MATERIALS & PLANT HIRE LTD.
Neighbourhood Services,Technical Services,Supplies and Services,304221,Equipment and Materials,07-Mar-2016,3096379-CNI23963/D,"3,243.80",JT DOVE LTD.
Neighbourhood Services,Direct Services,Supplies and Services,304221,Equipment and Materials,07-Mar-2016,3096379-CNI23984/D,"3,426.66",JT DOVE LTD.
Neighbourhood Services,Technical Services,Stock,926900,Stock in hand-Inventory system,07-Mar-2016,3096379-STI432816,555.00,JT DOVE LTD.
Neighbourhood Services,Direct Services,Supplies and Services,304259,Equipment and Materials,07-Mar-2016,3096383-110947,"2,460.00",KEEP BRITAIN TIDY.
Neighbourhood Services,Technical Services,Third Party Payments,460308,Contract Payments,07-Mar-2016,3096392-LGL81,562.44,LINDA GLENDINNING.
Neighbourhood Services,Direct Services,Transport,230005,Contract Hire,07-Mar-2016,3096400-122975,"2,185.00",LONDONDERRY GARAGE (S.E) LTD.
Neighbourhood Services,Technical Services,Stock,926900,Stock in hand-Inventory system,07-Mar-2016,3096403-103682,659.18,LORD TECHNICAL LTD.
Neighbourhood Services,Technical Services,Third Party Payments,460502,Contract Payments,07-Mar-2016,3096417-2150876,"37,328.03",METEO GROUP UK LTD.
Neighbourhood Services,Corporate Director + PA,Employees,040149,Recruitment Instruction and Training,07-Mar-2016,3096433-50064748,"1,250.00",NEW COLLEGE DURHAM.
Neighbourhood Services,Direct Services,Supplies and Services,304221,Equipment and Materials,07-Mar-2016,3096435-135124319,650.20,NEWEY & EYRE LTD.
Neighbourhood Services,Technical Services,Construction Work,908105,Construction work,07-Mar-2016,3096438-1403488,631.45,NEWSQUEST (YORKSHIRE & NORTH EAST) LTD.
Neighbourhood Services,Culture & Sport,Vehicles Equipment Furniture and Fittings,912521,Purchase-furniture and fittings,07-Mar-2016,3096439-12370360,"1,294.52",NISBETS PLC.
Neighbourhood Services,Direct Services,Supplies and Services,304259,Equipment and Materials,07-Mar-2016,3096442-1876848,"1,997.00",NORTHERN TOOLS & ACCESSORIES.
Neighbourhood Services,Direct Services,Supplies and Services,304259,Equipment and Materials,07-Mar-2016,3096442-1878346,936.00,NORTHERN TOOLS & ACCESSORIES.
Neighbourhood Services,Technical Services,Stock,926900,Stock in hand-Inventory system,07-Mar-2016,3096442-1881685,624.25,NORTHERN TOOLS & ACCESSORIES.
Neighbourhood Services,Direct Services,Transport,230005,Contract Hire,07-Mar-2016,3096444-SL03718681INV,606.10,NORTHGATE VEHICLE HIRE LTD.
Neighbourhood Services,Direct Services,Transport,230005,Contract Hire,07-Mar-2016,3096444-SL03718701INV,522.00,NORTHGATE VEHICLE HIRE LTD.
Neighbourhood Services,Direct Services,Third Party Payments,430100,Rendered by Private Contractors,07-Mar-2016,3096447-16020378,"2,426.52",NOVUS PROPERTY SOLUTIONS LTD.
Neighbourhood Services,Direct Services,Third Party Payments,430100,Rendered by Private Contractors,07-Mar-2016,3096447-16020379,565.96,NOVUS PROPERTY SOLUTIONS LTD.
Neighbourhood Services,Direct Services,Supplies and Services,304221,Equipment and Materials,07-Mar-2016,3096460-BR538925,742.57,PARK ELECTRICAL DISTRIBUTORS LTD.
Neighbourhood Services,Technical Services,Stock,926900,Stock in hand-Inventory system,07-Mar-2016,3096460-XL164244,965.36,PARK ELECTRICAL DISTRIBUTORS LTD.
Neighbourhood Services,Technical Services,Stock,926900,Stock in hand-Inventory system,07-Mar-2016,3096460-XL164359,708.00,PARK ELECTRICAL DISTRIBUTORS LTD.
Neighbourhood Services,Technical Services,Third Party Payments,460308,Contract Payments,07-Mar-2016,3096499-RHU81,674.97,REX HUDSON.
Neighbourhood Services,Direct Services,Supplies and Services,304259,Equipment and Materials,07-Mar-2016,3096521-CD970302190,"1,186.80",SHERRIFF AMENITY.
Neighbourhood Services,Direct Services,Supplies and Services,304221,Equipment and Materials,07-Mar-2016,3096521-CD970302467,"1,061.50",SHERRIFF AMENITY.
Neighbourhood Services,Technical Services,Supplies and Services,304221,Equipment and Materials,07-Mar-2016,3096525-227748,"1,013.32",SIGNPOST SOLUTIONS LTD.
Neighbourhood Services,Technical Services,Stock,926900,Stock in hand-Inventory system,07-Mar-2016,3096526-70180,"1,267.50",SIMMONSIGNS LTD.
Neighbourhood Services,Culture & Sport,Supplies and Services,332029,Printing Stationery and Gen Off Exps,07-Mar-2016,3096536-3820,"4,800.00",STARK HARTLEY ATKINSON LTD.
Neighbourhood Services,Technical Services,Supplies and Services,304221,Equipment and Materials,07-Mar-2016,3096538-079209,539.60,STONEGRAVE AGGREGATES LTD.
Neighbourhood Services,Direct Services,Supplies and Services,304221,Equipment and Materials,07-Mar-2016,3096544-14733,"4,114.00",SURESET UK LTD.
Neighbourhood Services,Direct Services,Supplies and Services,304221,Equipment and Materials,07-Mar-2016,3096548-1878919,658.00,T CROSSLING & CO LTD.
Neighbourhood Services,Direct Services,Supplies and Services,304221,Equipment and Materials,07-Mar-2016,3096548-1879399,"1,155.71",T CROSSLING & CO LTD.
Neighbourhood Services,Direct Services,Supplies and Services,304221,Equipment and Materials,07-Mar-2016,3096548-1881630,"1,515.73",T CROSSLING & CO LTD.
Neighbourhood Services,Direct Services,Supplies and Services,304221,Equipment and Materials,07-Mar-2016,3096548-1881666,768.92,T CROSSLING & CO LTD.
Neighbourhood Services,Technical Services,Supplies and Services,304221,Equipment and Materials,07-Mar-2016,3096549-9033681740,726.80,TARMAC TRADING LTD.
Neighbourhood Services,Technical Services,Supplies and Services,304221,Equipment and Materials,07-Mar-2016,3096549-9033940356,"1,243.83",TARMAC TRADING LTD.
Neighbourhood Services,Technical Services,Supplies and Services,304221,Equipment and Materials,07-Mar-2016,3096549-9033945440,824.67,TARMAC TRADING LTD.
Neighbourhood Services,Culture & Sport,Supplies and Services,338047,Services,07-Mar-2016,3096563-301,"5,583.10",THEATRE ROYAL WAKEFIELD.
Neighbourhood Services,Technical Services,Supplies and Services,342215,Computers and Communications,07-Mar-2016,3096573-31611,"1,497.32",TRACKYOU LTD.
Neighbourhood Services,Technical Services,Stock,926900,Stock in hand-Inventory system,07-Mar-2016,3096584-INV035358,"109,000.00",URBIS SCHREDER LTD.
Neighbourhood Services,Technical Services,Stock,926900,Stock in hand-Inventory system,07-Mar-2016,3096586-19672808,"1,276.00",VIATEC UK LTD.
Neighbourhood Services,Technical Services,Supplies and Services,304221,Equipment and Materials,07-Mar-2016,3096591-NQ714552,755.96,W & M THOMPSON (QUARRIES) LTD.
Neighbourhood Services,Technical Services,Supplies and Services,304221,Equipment and Materials,07-Mar-2016,3096591-NQ714764,651.44,W & M THOMPSON (QUARRIES) LTD.
Neighbourhood Services,Direct Services,Supplies and Services,304221,Equipment and Materials,07-Mar-2016,3096595-0000230319,703.07,WESSEX LIFT CO LTD.
Neighbourhood Services,Technical Services,Stock,926900,Stock in hand-Inventory system,07-Mar-2016,3096600-30275985,831.45,WOLSELEY UK LTD.
Neighbourhood Services,Technical Services,Stock,926900,Stock in hand-Inventory system,07-Mar-2016,3096600-30275986,"1,411.70",WOLSELEY UK LTD.
Neighbourhood Services,Technical Services,Stock,926900,Stock in hand-Inventory system,07-Mar-2016,3096600-30275988,"1,017.40",WOLSELEY UK LTD.
Neighbourhood Services,Technical Services,Fees,901002,Professional fees,07-Mar-2016,3096604-4670,"2,910.30",YOUNGS RPS LLP.
Regeneration & Economic Development,Transport and Contracted Services,Third Party Payments,430106,Rendered by Private Contractors,07-Mar-2016,3096185-110278,"44,645.98",ARRIVA NORTH EAST LTD.
Regeneration & Economic Development,Spatial Policy Planning Assets & Environment,Supplies and Services,372009,Subscriptions,07-Mar-2016,3096196-14737,"1,250.00",BANKSEARCH INFORMATION CONSULTANCY LTD.
Regeneration & Economic Development,Transport and Contracted Services,Third Party Payments,430109,Rendered by Private Contractors,07-Mar-2016,3096223-108649,"4,513.50",CA TRAFFIC LTD.
Regeneration & Economic Development,Economic Development and Housing,Cap Exp on Grants & Other Financial Assistance (REFCUS),918401,Capital grants,07-Mar-2016,3096238-RED-03-2016-021,"8,176.00",CESTRIAN ESTATES LTD.
Regeneration & Economic Development,Economic Development and Housing,Premises,120021,Energy Costs,07-Mar-2016,3096258-10485778,627.44,CORONA ENERGY RETAIL 2 LTD.
Regeneration & Economic Development,Economic Development and Housing,Premises,120021,Energy Costs,07-Mar-2016,3096258-10485779,"2,001.53",CORONA ENERGY RETAIL 2 LTD.
Regeneration & Economic Development,Economic Development and Housing,Premises,120021,Energy Costs,07-Mar-2016,3096258-10801632,"2,868.13",CORONA ENERGY RETAIL 2 LTD.
Regeneration & Economic Development,Economic Development and Housing,Premises,120009,Energy Costs,07-Mar-2016,3096293-000001412643,994.32,EDF ENERGY CUSTOMERS PLC T/A EDF ENERGY.
Regeneration & Economic Development,Economic Development and Housing,Cap Exp on Grants & Other Financial Assistance (REFCUS),918401,Capital grants,07-Mar-2016,3096304-RED-02-2016-126,"4,923.00",ETERNAL ENERGY LTD.
Regeneration & Economic Development,Economic Development and Housing,Supplies and Services,352001,Conference Expenses,07-Mar-2016,3096380-229196/LA,697.20,KAPLAN LPD.
Regeneration & Economic Development,Spatial Policy Planning Assets & Environment,Supplies and Services,336005,Advertising,07-Mar-2016,3096438-14309509,754.30,NEWSQUEST (YORKSHIRE & NORTH EAST) LTD.
Regeneration & Economic Development,Transport and Contracted Services,Third Party Payments,430106,Rendered by Private Contractors,07-Mar-2016,3096490-2032,"7,947.40",R COOPER T/A DC TAXIS.
Regeneration & Economic Development,Economic Development and Housing,Supplies and Services,384871,Miscellaneous Expenses,07-Mar-2016,3096579-23501,865.00,TYNE & WEAR LGV DRIVER TRAINING CENTRE LTD.
Resources,I.C.T. Services,Vehicles Equipment Furniture and Fittings,912701,Computer equipment,07-Mar-2016,3096355-2765187,"1,180.00",INSIGHT DIRECT (UK) LTD.
Resources,I.C.T. Services,Supplies and Services,304303,Equipment and Materials,07-Mar-2016,3096381-37648,"3,984.00",KBR IT & NETWORKING SOLUTIONS.
Resources,I.C.T. Services,Supplies and Services,304303,Equipment and Materials,07-Mar-2016,3096381-37649,"2,591.50",KBR IT & NETWORKING SOLUTIONS.
Resources,I.C.T. Services,Supplies and Services,304303,Equipment and Materials,07-Mar-2016,3096381-37650,"3,266.70",KBR IT & NETWORKING SOLUTIONS.
Resources,I.C.T. Services,Supplies and Services,304303,Equipment and Materials,07-Mar-2016,3096419-0000089099,"3,974.00",MILLENNIUM BUSINESS SYSTEMS LTD.
Resources,Financial Services,Supplies and Services,384199,Miscellaneous Expenses,07-Mar-2016,3096443-91364425,"6,766.55",NORTHGATE PUBLIC SERVICES (UK) LTD.
Resources,Financial Services,Supplies and Services,384199,Miscellaneous Expenses,07-Mar-2016,3096443-91364426,"2,528.00",NORTHGATE PUBLIC SERVICES (UK) LTD.
Children and Adult Services,Childrens Services,Third Party Payments,440001,Other Third Party Payments,08-Mar-2016,3096617-1087068,536.22,REDACTED - PAYMENT TO INDIVIDUAL
Children and Adult Services,Childrens Services,Supplies and Services,364301,Grants to Voluntary Organisations,08-Mar-2016,3096851-CAS-03-2016-022,"2,736.00",REDACTED - PAYMENT TO INDIVIDUAL
Children and Adult Services,Childrens Services,Third Party Payments,440016,Other Third Party Payments,08-Mar-2016,3096985-1088029,"2,340.16",REDACTED - PAYMENT TO INDIVIDUAL
Children and Adult Services,Childrens Services,Third Party Payments,440016,Other Third Party Payments,08-Mar-2016,3096985-1088030,"2,045.58",REDACTED - PAYMENT TO INDIVIDUAL
Children and Adult Services,Childrens Services,Employees,080025,Agency Staff,08-Mar-2016,3097319-2321353,650.00,CELSIAN.
Children and Adult Services,Childrens Services,Employees,080025,Agency Staff,08-Mar-2016,3097319-2321354,"1,160.00",CELSIAN.
Children and Adult Services,Childrens Services,Supplies and Services,364353,Grants to Voluntary Organisations,08-Mar-2016,3097337-CAS-02-2016-159,794.03,COUNTY DURHAM COMMUNITY FOUNDATION.
Children and Adult Services,Childrens Services,Third Party Payments,425040,Rendered by Voluntary Organisations,08-Mar-2016,3097405-125586,700.00,FOSTER CARES LTD.
Children and Adult Services,Childrens Services,Third Party Payments,425040,Rendered by Voluntary Organisations,08-Mar-2016,3097405-125666,700.00,FOSTER CARES LTD.
Children and Adult Services,Childrens Services,Third Party Payments,425040,Rendered by Voluntary Organisations,08-Mar-2016,3097405-125718,700.00,FOSTER CARES LTD.
Children and Adult Services,Childrens Services,Supplies and Services,304259,Equipment and Materials,08-Mar-2016,3097446-SQI/1163876,"1,347.47",INVESTEC ASSET FINANCE PLC.
Children and Adult Services,Childrens Services,Third Party Payments,425040,Rendered by Voluntary Organisations,08-Mar-2016,3097522-NFA153023,"4,340.00",NATIONAL FOSTERING AGENCY LTD.
Children and Adult Services,Childrens Services,Third Party Payments,425017,Rendered by Voluntary Organisations,08-Mar-2016,3097563-27095,"1,128.00",PERCY HEDLEY FOUNDATION.
Children and Adult Services,Childrens Services,Supplies and Services,384302,Miscellaneous Expenses,08-Mar-2016,3097586-CAS-03-2016-021,617.05,RAB OUTDOOR EDUCATION LTD.
Children and Adult Services,Childrens Services,Supplies and Services,364352,Grants to Voluntary Organisations,08-Mar-2016,3097594-1218,"2,104.79",ROCSOLID.
Children and Adult Services,Childrens Services,Supplies and Services,364352,Grants to Voluntary Organisations,08-Mar-2016,3097594-1233,"2,657.18",ROCSOLID.
Children and Adult Services,Childrens Services,Third Party Payments,425019,Rendered by Voluntary Organisations,08-Mar-2016,3097599-CHI015138,"7,200.06",S/C 200000 CAMBIAN CHILDCARE LTD.
Children and Adult Services,Childrens Services,Third Party Payments,425019,Rendered by Voluntary Organisations,08-Mar-2016,3097599-CHI015269,"15,942.99",S/C 200000 CAMBIAN CHILDCARE LTD.
Children and Adult Services,Childrens Services,Supplies and Services,384199,Miscellaneous Expenses,08-Mar-2016,3097636-ACTIVITIES15/16,500.00,STEPS DETACHED PROJECT.
Children and Adult Services,Childrens Services,Supplies and Services,384199,Miscellaneous Expenses,08-Mar-2016,3097711-BP6-LEEHOLME,585.00,WIGGLES AND WOBBLES.
Dedicated Schools Grant,Dedicated Schools Grant,Transport,230011,Contract Hire,08-Mar-2016,3097233-13,735.00,A HJ JOBLING T/A CASTLE TAXIS.
Dedicated Schools Grant,Dedicated Schools Grant,Transport,230010,Contract Hire,08-Mar-2016,3097484-81-29/2/16,"1,750.00",LORRAINES TAXIS.
Dedicated Schools Grant,Dedicated Schools Grant,Transport,230010,Contract Hire,08-Mar-2016,3097497-021602,"1,320.00",MARK & JOHN CHISHOLM T/A (CHEVRON).
Dedicated Schools Grant,Dedicated Schools Grant,Transport,230010,Contract Hire,08-Mar-2016,3097515-2895,588.00,MR S BOWERS.
Dedicated Schools Grant,Dedicated Schools Grant,Third Party Payments,425005,Rendered by Voluntary Organisations,08-Mar-2016,3097563-26207,"3,824.81",PERCY HEDLEY FOUNDATION.
Dedicated Schools Grant,Dedicated Schools Grant,Third Party Payments,425005,Rendered by Voluntary Organisations,08-Mar-2016,3097563-26220,"1,607.75",PERCY HEDLEY FOUNDATION.
Dedicated Schools Grant,Dedicated Schools Grant,Transport,230010,Contract Hire,08-Mar-2016,3097577-160205,"1,352.00",PRATTS TAXIS.
Children and Adult Services,Education,Transport,230008,Contract Hire,08-Mar-2016,3097288-1401,"1,349.60",BOBBY DOVE.
Children and Adult Services,Education,Transport,230008,Contract Hire,08-Mar-2016,3097288-1402,"2,666.56",BOBBY DOVE.
Children and Adult Services,Education,Transport,230007,Contract Hire,08-Mar-2016,3097326-45275,"1,696.00",CJ GRIERSON T/A GRIERSONS COACHES.
Children and Adult Services,Education,Transport,230007,Contract Hire,08-Mar-2016,3097326-45276,"2,240.00",CJ GRIERSON T/A GRIERSONS COACHES.
Children and Adult Services,Education,Transport,230007,Contract Hire,08-Mar-2016,3097326-45277,"2,000.00",CJ GRIERSON T/A GRIERSONS COACHES.
Children and Adult Services,Education,Transport,230007,Contract Hire,08-Mar-2016,3097326-45278,"2,080.00",CJ GRIERSON T/A GRIERSONS COACHES.
Children and Adult Services,Education,Transport,230007,Contract Hire,08-Mar-2016,3097326-45279,"4,005.76",CJ GRIERSON T/A GRIERSONS COACHES.
Children and Adult Services,Education,Transfer Payments,510028,School Children,08-Mar-2016,3097335-CAS-03-2016-024,"1,400.00",CORECARE LTD..
Children and Adult Services,Education,Transport,230008,Contract Hire,08-Mar-2016,3097342-5943,826.88,CROFT BUSINESS SERVICES (UK) LTD T/A CROFT TAXIS.
Children and Adult Services,Education,Transport,230008,Contract Hire,08-Mar-2016,3097349-1452,888.32,DA TAXIS.
Children and Adult Services,Education,Transport,230008,Contract Hire,08-Mar-2016,3097349-1453,"1,591.98",DA TAXIS.
Children and Adult Services,Education,Transport,230008,Contract Hire,08-Mar-2016,3097349-1455,960.00,DA TAXIS.
Children and Adult Services,Education,Transport,230008,Contract Hire,08-Mar-2016,3097350-169,"1,008.00",DA TRAVEL.
Children and Adult Services,Education,Transport,230008,Contract Hire,08-Mar-2016,3097350-171,"1,871.25",DA TRAVEL.
Children and Adult Services,Education,Transport,230008,Contract Hire,08-Mar-2016,3097350-172,"1,040.00",DA TRAVEL.
Children and Adult Services,Education,Transport,230008,Contract Hire,08-Mar-2016,3097350-173,768.00,DA TRAVEL.
Children and Adult Services,Education,Transport,230008,Contract Hire,08-Mar-2016,3097358-2747,"1,366.88",DAVES MINIBUSES.
Children and Adult Services,Education,Transport,230008,Contract Hire,08-Mar-2016,3097358-2748,"1,222.24",DAVES MINIBUSES.
Children and Adult Services,Education,Transport,230008,Contract Hire,08-Mar-2016,3097358-2749,"1,556.00",DAVES MINIBUSES.
Children and Adult Services,Education,Transport,230008,Contract Hire,08-Mar-2016,3097358-2750,"1,600.00",DAVES MINIBUSES.
Children and Adult Services,Education,Transport,230008,Contract Hire,08-Mar-2016,3097358-2751,800.00,DAVES MINIBUSES.
Children and Adult Services,Education,Transport,230008,Contract Hire,08-Mar-2016,3097362-0216-001,"1,129.92",DCM TAXIS.
Children and Adult Services,Education,Transport,230008,Contract Hire,08-Mar-2016,3097369-DCT-14-18,"1,024.00",DUNCAN G CUMMINGS T/A DC TAXIS.
Children and Adult Services,Education,Transport,230007,Contract Hire,08-Mar-2016,3097373-22446,"2,082.56",DURHAM CITY COACHES.
Children and Adult Services,Education,Transport,230007,Contract Hire,08-Mar-2016,3097373-22447,"2,160.00",DURHAM CITY COACHES.
Children and Adult Services,Education,Transport,230007,Contract Hire,08-Mar-2016,3097393-5202/FEB/16,800.00,EMMA RAMSHAW T/A EMMA`S CABS.
Children and Adult Services,Education,Transfer Payments,510028,School Children,08-Mar-2016,3097413-CAS-03-2016-023,"20,000.00",GIANT STEPS LTD.
Children and Adult Services,Education,Transfer Payments,510028,School Children,08-Mar-2016,3097433-CAS-03-2016-025,"2,800.00",HOUSE OF EDEN CHILDRENS NURSERY.
Children and Adult Services,Education,Transfer Payments,510028,School Children,08-Mar-2016,3097434-CAS-03-2016-027,"2,600.00",HOUSE OF EDEN CHILDRENS NURSERY.
Children and Adult Services,Education,Transport,230008,Contract Hire,08-Mar-2016,3097451-872,"1,148.16",JDS PRIVATE HIRE DURHAM.
Children and Adult Services,Education,Transport,230008,Contract Hire,08-Mar-2016,3097451-873,"1,414.24",JDS PRIVATE HIRE DURHAM.
Children and Adult Services,Education,Transport,230008,Contract Hire,08-Mar-2016,3097451-875,"1,286.56",JDS PRIVATE HIRE DURHAM.
Children and Adult Services,Education,Transport,230007,Contract Hire,08-Mar-2016,3097451-878,800.00,JDS PRIVATE HIRE DURHAM.
Children and Adult Services,Education,Transport,230008,Contract Hire,08-Mar-2016,3097451-879,"1,168.00",JDS PRIVATE HIRE DURHAM.
Children and Adult Services,Education,Transport,230007,Contract Hire,08-Mar-2016,3097451-880,736.00,JDS PRIVATE HIRE DURHAM.
Children and Adult Services,Education,Transport,230008,Contract Hire,08-Mar-2016,3097451-882,"1,800.00",JDS PRIVATE HIRE DURHAM.
Children and Adult Services,Education,Transport,230008,Contract Hire,08-Mar-2016,3097451-883,"1,680.00",JDS PRIVATE HIRE DURHAM.
Children and Adult Services,Education,Transport,230008,Contract Hire,08-Mar-2016,3097451-884,"1,950.00",JDS PRIVATE HIRE DURHAM.
Children and Adult Services,Education,Transport,230007,Contract Hire,08-Mar-2016,3097451-886,592.00,JDS PRIVATE HIRE DURHAM.
Children and Adult Services,Education,Transport,230008,Contract Hire,08-Mar-2016,3097451-887,976.00,JDS PRIVATE HIRE DURHAM.
Children and Adult Services,Education,Transport,230007,Contract Hire,08-Mar-2016,3097461-2013,704.00,KEN HINDS.
Children and Adult Services,Education,Transport,230008,Contract Hire,08-Mar-2016,3097463-00672,560.00,KENNAS CABS.
Children and Adult Services,Education,Transport,230008,Contract Hire,08-Mar-2016,3097463-00673,772.00,KENNAS CABS.
Children and Adult Services,Education,Transport,230008,Contract Hire,08-Mar-2016,3097474-136,512.00,LEE`S TAXIS.
Children and Adult Services,Education,Transport,230008,Contract Hire,08-Mar-2016,3097474-137,"1,573.68",LEE`S TAXIS.
Children and Adult Services,Education,Transport,230008,Contract Hire,08-Mar-2016,3097474-138,"1,556.07",LEE`S TAXIS.
Children and Adult Services,Education,Transport,230008,Contract Hire,08-Mar-2016,3097479-2497,"1,260.00",LOCAL TRANSPORT LTD.
Children and Adult Services,Education,Transport,230008,Contract Hire,08-Mar-2016,3097479-2499,"1,280.00",LOCAL TRANSPORT LTD.
Children and Adult Services,Education,Transport,230008,Contract Hire,08-Mar-2016,3097484-79-29/2/16,"1,340.64",LORRAINES TAXIS.
Children and Adult Services,Education,Construction Work,908105,Construction work,08-Mar-2016,3097488-28837,"13,850.00",LUCION ENVIRONMENTAL LLP LTD.
Children and Adult Services,Education,Construction Work,908105,Construction work,08-Mar-2016,3097488-28864,"1,480.00",LUCION ENVIRONMENTAL LLP LTD.
Children and Adult Services,Education,Transport,230008,Contract Hire,08-Mar-2016,3097490-FEBRUARYD2,"1,200.00",MICHAEL A BODDY T/A MBS TAXIS.
Children and Adult Services,Education,Transport,230008,Contract Hire,08-Mar-2016,3097490-FEBRUARYD3,"1,328.25",MICHAEL A BODDY T/A MBS TAXIS.
Children and Adult Services,Education,Transport,230007,Contract Hire,08-Mar-2016,3097493-5230,"1,992.80",MAKEPEACE MOTORS.
Children and Adult Services,Education,Transport,230007,Contract Hire,08-Mar-2016,3097493-5231,"1,451.20",MAKEPEACE MOTORS.
Children and Adult Services,Education,Transport,230008,Contract Hire,08-Mar-2016,3097503-INV-97,"1,536.00",MICHAEL COBB (T/A HAIL TAXIS).
Children and Adult Services,Education,Transport,230008,Contract Hire,08-Mar-2016,3097503-INV-98,912.00,MICHAEL COBB (T/A HAIL TAXIS).
Children and Adult Services,Education,Transport,230008,Contract Hire,08-Mar-2016,3097515-2896,839.68,MR S BOWERS.
Children and Adult Services,Education,Transport,230008,Contract Hire,08-Mar-2016,3097515-2897,"1,767.36",MR S BOWERS.
Children and Adult Services,Education,Transport,230008,Contract Hire,08-Mar-2016,3097515-2898,"1,222.24",MR S BOWERS.
Children and Adult Services,Education,Third Party Payments,479101,Purchase of Care,08-Mar-2016,3097538-3610019720,"37,305.00",NORTH TEES & HARTLEPOOL NHS FOUNDATION TRUST.
Children and Adult Services,Education,Transport,230008,Contract Hire,08-Mar-2016,3097561-DCC103,720.00,PB PRIVATE HIRE.
Children and Adult Services,Education,Transport,230008,Contract Hire,08-Mar-2016,3097561-DCC104,720.00,PB PRIVATE HIRE.
Children and Adult Services,Education,Transport,230008,Contract Hire,08-Mar-2016,3097561-DCC105,624.00,PB PRIVATE HIRE.
Children and Adult Services,Education,Transport,230006,Contract Hire,08-Mar-2016,3097561-DCC106,649.00,PB PRIVATE HIRE.
Children and Adult Services,Education,Transport,230009,Contract Hire,08-Mar-2016,3097561-DCC107,720.00,PB PRIVATE HIRE.
Children and Adult Services,Education,Transport,230007,Contract Hire,08-Mar-2016,3097565-35A,640.00,PETER HOLMES T/A PETERS TAXIS.
Children and Adult Services,Education,Transport,230008,Contract Hire,08-Mar-2016,3097566-515,758.00,PETERLEE EXECUTIVE CARS.
Children and Adult Services,Education,Transport,230008,Contract Hire,08-Mar-2016,3097577-160202,"2,045.44",PRATTS TAXIS.
Children and Adult Services,Education,Transport,230008,Contract Hire,08-Mar-2016,3097577-160203,900.64,PRATTS TAXIS.
Children and Adult Services,Education,Transport,230008,Contract Hire,08-Mar-2016,3097577-160204,"1,280.00",PRATTS TAXIS.
Children and Adult Services,Education,Transport,230007,Contract Hire,08-Mar-2016,3097577-160206,"1,440.00",PRATTS TAXIS.
Children and Adult Services,Education,Transport,230007,Contract Hire,08-Mar-2016,3097582-878,"2,560.00",PYGALL COACH HIRE.
Children and Adult Services,Education,Transport,230007,Contract Hire,08-Mar-2016,3097582-879,"2,000.00",PYGALL COACH HIRE.
Children and Adult Services,Education,Transport,230007,Contract Hire,08-Mar-2016,3097582-880,"5,440.00",PYGALL COACH HIRE.
Children and Adult Services,Education,Transport,230007,Contract Hire,08-Mar-2016,3097582-881,"2,800.00",PYGALL COACH HIRE.
Children and Adult Services,Education,Transport,230007,Contract Hire,08-Mar-2016,3097582-882,"2,136.00",PYGALL COACH HIRE.
Children and Adult Services,Education,Transport,230007,Contract Hire,08-Mar-2016,3097582-883,"2,000.00",PYGALL COACH HIRE.
Children and Adult Services,Education,Transport,230008,Contract Hire,08-Mar-2016,3097677-77,"1,216.00",TRIDENT TAXIS.
Children and Adult Services,Education,Supplies and Services,338044,Services,08-Mar-2016,3097689-SIGN/00000149,602.00,UNITE LTD.
Children and Adult Services,Head of Adults,Third Party Payments,470101,Purchase of Care,08-Mar-2016,3097563-26808,"16,841.72",PERCY HEDLEY FOUNDATION.
Children and Adult Services,Planning & Service Strategy,Supplies and Services,384540,Miscellaneous Expenses,08-Mar-2016,3097278-369782,"2,766.98",BAUER RADIO LTD.
Children and Adult Services,Public Health,Third Party Payments,460803,Contract Payments,08-Mar-2016,3097476-0000007376,"466,357.75",LIFELINE PROJECT LTD.
Assistant Chief Executive,Partnerships & Community Engagement Div.,Cap Exp on Grants & Other Financial Assistance (REFCUS),918004,Contributions to other bodies,08-Mar-2016,3097431-STAN003,"2,500.00",HOLLIE HILL RESIDENT FUND.
Assistant Chief Executive,Partnerships & Community Engagement Div.,Supplies and Services,338066,Services,08-Mar-2016,3097527-844,"244,120.32",NEPRO LTD.
Assistant Chief Executive,Partnerships & Community Engagement Div.,Transfer Payments,525030,Other,08-Mar-2016,3097640-GAMP008,"9,330.00",SUCCESS NORTH EAST COMMUNITY INTEREST COMPANY (CIC).
Assistant Chief Executive,Partnerships & Community Engagement Div.,Transfer Payments,525030,Other,08-Mar-2016,3097707-VOUCHERWRAIN22,"4,978.00",WEST RAINTON PARISH COUNCIL.
Neighbourhood Services,Technical Services,Third Party Payments,460051,Contract Payments,08-Mar-2016,3097234-001504,"1,201.20",A PARRY MOBILE WELDING & FABRICATION.
Neighbourhood Services,Technical Services,Supplies and Services,304221,Equipment and Materials,08-Mar-2016,3097243-22625378,"1,243.97",AGGREGATE INDUSTRIES UK LTD.
Neighbourhood Services,Technical Services,Supplies and Services,304221,Equipment and Materials,08-Mar-2016,3097243-22631642,"1,946.30",AGGREGATE INDUSTRIES UK LTD.
Neighbourhood Services,Technical Services,Supplies and Services,304221,Equipment and Materials,08-Mar-2016,3097243-22641561,"1,005.53",AGGREGATE INDUSTRIES UK LTD.
Neighbourhood Services,Technical Services,Supplies and Services,304221,Equipment and Materials,08-Mar-2016,3097243-22672550,849.81,AGGREGATE INDUSTRIES UK LTD.
Neighbourhood Services,Technical Services,Supplies and Services,304221,Equipment and Materials,08-Mar-2016,3097243-22695549,"6,305.12",AGGREGATE INDUSTRIES UK LTD.
Neighbourhood Services,Culture & Sport,Supplies and Services,312017,Newspapers Books and Periodicals,08-Mar-2016,3097263-4945158,584.98,ASKEWS & HOLTS LIBRARY SERVICES LTD.
Neighbourhood Services,Culture & Sport,Supplies and Services,312017,Newspapers Books and Periodicals,08-Mar-2016,3097263-4945209,654.21,ASKEWS & HOLTS LIBRARY SERVICES LTD.
Neighbourhood Services,Culture & Sport,Supplies and Services,312017,Newspapers Books and Periodicals,08-Mar-2016,3097263-4945224,751.39,ASKEWS & HOLTS LIBRARY SERVICES LTD.
Neighbourhood Services,Culture & Sport,Supplies and Services,312013,Newspapers Books and Periodicals,08-Mar-2016,3097263-4946771,552.39,ASKEWS & HOLTS LIBRARY SERVICES LTD.
Neighbourhood Services,Direct Services,Supplies and Services,372009,Subscriptions,08-Mar-2016,3097265-661,920.00,ASSOCIATION OF GAS SERVICE MANAGERS.
Neighbourhood Services,Technical Services,Supplies and Services,304358,Equipment and Materials,08-Mar-2016,3097273-MG04768,500.00,BAILEY CONCRETE PUMPING LTD.
Neighbourhood Services,Direct Services,Third Party Payments,430100,Rendered by Private Contractors,08-Mar-2016,3097295-82576633,"1,175.00",BRISTOL STREET MOTORS.
Neighbourhood Services,Culture & Sport,Supplies and Services,338047,Services,08-Mar-2016,3097380-CARMEN-FEB16,"5,166.84",DURHAM UNIVERSITY OPERA ENSEMBLE.
Neighbourhood Services,Direct Services,Third Party Payments,430100,Rendered by Private Contractors,08-Mar-2016,3097390-A6730,600.00,EJN ENGINEERING LTD.
Neighbourhood Services,Direct Services,Transfer Payments,525030,Other,08-Mar-2016,3097408-03-2016-012,500.00,FRIENDS OF GILESGATE BANK.
Neighbourhood Services,Projects and Business services,Third Party Payments,430119,Rendered by Private Contractors,08-Mar-2016,3097424-96254,"1,301.18",HARPERS ENVIRONMENTAL LTD.
Neighbourhood Services,Projects and Business services,Third Party Payments,430119,Rendered by Private Contractors,08-Mar-2016,3097424-96255,"1,420.76",HARPERS ENVIRONMENTAL LTD.
Neighbourhood Services,Culture & Sport,Supplies and Services,338099,Services,08-Mar-2016,3097430-10004,"1,339.40",HI LIGHTS THEATRE SERVICES.
Neighbourhood Services,Direct Services,Transfer Payments,525030,Other,08-Mar-2016,3097437-03-2016-011,500.00,HOWDEN LE WEAR VILLAGE HALL SOCIETY.
Neighbourhood Services,Technical Services,Supplies and Services,338027,Services,08-Mar-2016,3097448-B225H005-011,"8,985.87",JACOBS UK LTD.
Neighbourhood Services,Technical Services,Supplies and Services,338027,Services,08-Mar-2016,3097448-B225H005-013,"1,543.92",JACOBS UK LTD.
Neighbourhood Services,Technical Services,Supplies and Services,304221,Equipment and Materials,08-Mar-2016,3097449-G11477228,"5,041.08",JAMES BURRELL LTD.
Neighbourhood Services,Technical Services,Supplies and Services,304358,Equipment and Materials,08-Mar-2016,3097454-24564,914.20,JOHN R BUTTERFIELD LTD.
Neighbourhood Services,Technical Services,Supplies and Services,304358,Equipment and Materials,08-Mar-2016,3097454-24568,737.40,JOHN R BUTTERFIELD LTD.
Neighbourhood Services,Technical Services,Supplies and Services,304358,Equipment and Materials,08-Mar-2016,3097454-24582,731.00,JOHN R BUTTERFIELD LTD.
Neighbourhood Services,Technical Services,Supplies and Services,304358,Equipment and Materials,08-Mar-2016,3097454-24583,914.20,JOHN R BUTTERFIELD LTD.
Neighbourhood Services,Technical Services,Supplies and Services,304358,Equipment and Materials,08-Mar-2016,3097454-24588,936.00,JOHN R BUTTERFIELD LTD.
Neighbourhood Services,Technical Services,Supplies and Services,304358,Equipment and Materials,08-Mar-2016,3097454-24610,926.70,JOHN R BUTTERFIELD LTD.
Neighbourhood Services,Technical Services,Supplies and Services,304358,Equipment and Materials,08-Mar-2016,3097454-24611,725.40,JOHN R BUTTERFIELD LTD.
Neighbourhood Services,Technical Services,Supplies and Services,304358,Equipment and Materials,08-Mar-2016,3097454-24612,841.00,JOHN R BUTTERFIELD LTD.
Neighbourhood Services,Technical Services,Supplies and Services,304358,Equipment and Materials,08-Mar-2016,3097454-24614,725.40,JOHN R BUTTERFIELD LTD.
Neighbourhood Services,Technical Services,Supplies and Services,304358,Equipment and Materials,08-Mar-2016,3097454-24615,936.00,JOHN R BUTTERFIELD LTD.
Neighbourhood Services,Technical Services,Supplies and Services,304358,Equipment and Materials,08-Mar-2016,3097454-24636,"1,005.00",JOHN R BUTTERFIELD LTD.
Neighbourhood Services,Technical Services,Supplies and Services,304358,Equipment and Materials,08-Mar-2016,3097454-24639,581.50,JOHN R BUTTERFIELD LTD.
Neighbourhood Services,Technical Services,Supplies and Services,304358,Equipment and Materials,08-Mar-2016,3097454-24642,714.60,JOHN R BUTTERFIELD LTD.
Neighbourhood Services,Technical Services,Supplies and Services,304358,Equipment and Materials,08-Mar-2016,3097454-24646,936.00,JOHN R BUTTERFIELD LTD.
Neighbourhood Services,Technical Services,Supplies and Services,304358,Equipment and Materials,08-Mar-2016,3097454-24650,"1,196.00",JOHN R BUTTERFIELD LTD.
Neighbourhood Services,Technical Services,Supplies and Services,304358,Equipment and Materials,08-Mar-2016,3097454-24666,"1,005.00",JOHN R BUTTERFIELD LTD.
Neighbourhood Services,Technical Services,Supplies and Services,304358,Equipment and Materials,08-Mar-2016,3097454-24670,932.80,JOHN R BUTTERFIELD LTD.
Neighbourhood Services,Technical Services,Supplies and Services,304358,Equipment and Materials,08-Mar-2016,3097454-24674,936.00,JOHN R BUTTERFIELD LTD.
Neighbourhood Services,Technical Services,Supplies and Services,304358,Equipment and Materials,08-Mar-2016,3097454-24675,725.40,JOHN R BUTTERFIELD LTD.
Neighbourhood Services,Technical Services,Supplies and Services,304358,Equipment and Materials,08-Mar-2016,3097454-24676,712.20,JOHN R BUTTERFIELD LTD.
Neighbourhood Services,Technical Services,Supplies and Services,304358,Equipment and Materials,08-Mar-2016,3097454-24686,733.50,JOHN R BUTTERFIELD LTD.
Neighbourhood Services,Technical Services,Supplies and Services,304358,Equipment and Materials,08-Mar-2016,3097454-24687,907.00,JOHN R BUTTERFIELD LTD.
Neighbourhood Services,Technical Services,Supplies and Services,304358,Equipment and Materials,08-Mar-2016,3097454-24691,936.00,JOHN R BUTTERFIELD LTD.
Neighbourhood Services,Technical Services,Supplies and Services,304358,Equipment and Materials,08-Mar-2016,3097464-1250,"3,110.00",KEVIN SNOWDON GROUNDWORKS LTD.
Neighbourhood Services,Direct Services,Transport,210057,Repair and Maintenance of Vehicles,08-Mar-2016,3097481-124204,547.12,LONDONDERRY GARAGE (S.E) LTD.
Neighbourhood Services,Culture & Sport,Supplies and Services,338047,Services,08-Mar-2016,3097487-142,"1,085.12",LP CREATIVES LTD.
Neighbourhood Services,Direct Services,Supplies and Services,304221,Equipment and Materials,08-Mar-2016,3097492-827/044216,870.25,MAGNET LTD.
Neighbourhood Services,Technical Services,Supplies and Services,384194,Miscellaneous Expenses,08-Mar-2016,3097534-56146,"2,375.00",NIRAMAX GROUP LTD.
Neighbourhood Services,Direct Services,Third Party Payments,430100,Rendered by Private Contractors,08-Mar-2016,3097537-1379090,730.09,NORTH EAST TRUCK & VAN LTD.
Neighbourhood Services,Technical Services,Third Party Payments,430127,Rendered by Private Contractors,08-Mar-2016,3097553-2,"14,720.50",P & EB ROBSON.
Neighbourhood Services,Culture & Sport,Supplies and Services,372009,Subscriptions,08-Mar-2016,3097564-4779335,"4,530.48",PERFORMING RIGHT SOCIETY LTD T/A PRS FOR MUSIC.
Neighbourhood Services,Direct Services,Supplies and Services,304999,Equipment and Materials,08-Mar-2016,3097572-9106,"1,168.50",PIXL ID LTD.
Neighbourhood Services,Direct Services,Transport,210057,Repair and Maintenance of Vehicles,08-Mar-2016,3097590-744239,525.70,RICKERBY LTD.
Neighbourhood Services,Direct Services,Transport,230005,Contract Hire,08-Mar-2016,3097592-IV122712,"3,990.00",RIVERSIDE TRUCK RENTAL LTD (RTR).
Neighbourhood Services,Direct Services,Transport,230005,Contract Hire,08-Mar-2016,3097592-IV122718,"3,990.00",RIVERSIDE TRUCK RENTAL LTD (RTR).
Neighbourhood Services,Direct Services,Transport,230005,Contract Hire,08-Mar-2016,3097592-IV122919,"2,480.00",RIVERSIDE TRUCK RENTAL LTD (RTR).
Neighbourhood Services,Culture & Sport,Supplies and Services,338047,Services,08-Mar-2016,3097597-MEG356,680.23,S HANNA.
Neighbourhood Services,Direct Services,Transport,230005,Contract Hire,08-Mar-2016,3097616-10676916,"1,189.00",SHB HIRE LTD.
Neighbourhood Services,Direct Services,Transport,230005,Contract Hire,08-Mar-2016,3097616-10676917,"1,189.00",SHB HIRE LTD.
Neighbourhood Services,Direct Services,Transport,230005,Contract Hire,08-Mar-2016,3097616-10676918,"1,189.00",SHB HIRE LTD.
Neighbourhood Services,Direct Services,Transport,230005,Contract Hire,08-Mar-2016,3097616-10676921,574.00,SHB HIRE LTD.
Neighbourhood Services,Technical Services,Supplies and Services,304358,Equipment and Materials,08-Mar-2016,3097617-2016009,"1,288.50",SHIREHAVEN LTD.
Neighbourhood Services,Direct Services,Third Party Payments,430100,Rendered by Private Contractors,08-Mar-2016,3097620-270/16/0000117,"1,020.43",SIEMENS FINANCIAL SERVICES LTD.
Neighbourhood Services,Technical Services,Supplies and Services,304221,Equipment and Materials,08-Mar-2016,3097638-079257,564.11,STONEGRAVE AGGREGATES LTD.
Neighbourhood Services,Technical Services,Supplies and Services,304221,Equipment and Materials,08-Mar-2016,3097638-079259,"2,523.12",STONEGRAVE AGGREGATES LTD.
Neighbourhood Services,Projects and Business services,Supplies and Services,304999,Equipment and Materials,08-Mar-2016,3097649-521,"3,795.00",TAYLORED ENVIRONMENTAL ENGINEERING LTD.
Neighbourhood Services,Direct Services,Transport,210057,Repair and Maintenance of Vehicles,08-Mar-2016,3097657-96323519,629.61,TERBERG MATEC (UK) LTD.
Neighbourhood Services,Direct Services,Third Party Payments,430100,Rendered by Private Contractors,08-Mar-2016,3097657-96323650,"1,678.92",TERBERG MATEC (UK) LTD.
Neighbourhood Services,Direct Services,Supplies and Services,304221,Equipment and Materials,08-Mar-2016,3097668-105905,"1,482.50",TOMMY WARDLE.
Neighbourhood Services,Technical Services,Supplies and Services,304221,Equipment and Materials,08-Mar-2016,3097685-155272,"1,144.75",TYNEDALE ROADSTONE LTD.
Neighbourhood Services,Technical Services,Construction Work,908202,Capital - Public Utilities - Telephones Services,08-Mar-2016,3097699-RED-03-2016-048,"15,050.29",VIRGIN MEDIA LTD.
Regeneration & Economic Development,Transport and Contracted Services,Construction Work,908105,Construction work,08-Mar-2016,3097232-643015,"1,591.00",3M UNITED KINGDOM PLC.
Regeneration & Economic Development,Transport and Contracted Services,Construction Work,908105,Construction work,08-Mar-2016,3097232-643016,700.00,3M UNITED KINGDOM PLC.
Regeneration & Economic Development,Transport and Contracted Services,Construction Work,908105,Construction work,08-Mar-2016,3097232-643017,"16,895.00",3M UNITED KINGDOM PLC.
Regeneration & Economic Development,Transport and Contracted Services,Construction Work,908105,Construction work,08-Mar-2016,3097232-644501,"13,516.00",3M UNITED KINGDOM PLC.
Regeneration & Economic Development,Spatial Policy Planning Assets & Environment,Income,725025,Rents,08-Mar-2016,3097258-RED-03-2016-049,"4,092.81",ARQIVA LTD.
Regeneration & Economic Development,Economic Development and Housing,Cap Exp on Grants & Other Financial Assistance (REFCUS),918401,Capital grants,08-Mar-2016,3097313-RED-03-2016-041,"8,234.10",CASTLEDENE PROPERTY MANAGEMENT LTD.
Regeneration & Economic Development,Economic Development and Housing,Cap Exp on Grants & Other Financial Assistance (REFCUS),918401,Capital grants,08-Mar-2016,3097314-RED-03-2016-043,"1,937.25",CASTLEDENE PROPERTY MANAGEMENT LTD.
Regeneration & Economic Development,Economic Development and Housing,Cap Exp on Grants & Other Financial Assistance (REFCUS),918401,Capital grants,08-Mar-2016,3097467-RED-03-2016-044,"3,115.00",LABURNUM DEVELOPMENTS.
Regeneration & Economic Development,Economic Development and Housing,Construction Work,908105,Construction work,08-Mar-2016,3097540-DI20231741,693.00,NORTHERN POWERGRID (NORTHEAST) LTD.
Regeneration & Economic Development,Economic Development and Housing,Premises,120009,Energy Costs,08-Mar-2016,3097545-NNO7SBC5,"1,755.29",NPOWER.
Regeneration & Economic Development,Economic Development and Housing,Cap Exp on Grants & Other Financial Assistance (REFCUS),918401,Capital grants,08-Mar-2016,3097610-RED-03-2016-040,"384,418.75",SEAHAM HARBOUR CIC.
Resources,Internal Audit and Insurance,Supplies and Services,338099,Services,08-Mar-2016,3097302-250014353,"1,000.00",CABINET OFFICE..
Resources,I.C.T. Services,Supplies and Services,344111,Telephones,08-Mar-2016,3097528-202106,638.06,NETWORKS 2 BUSINESS LTD.
Resources,I.C.T. Services,Supplies and Services,344111,Telephones,08-Mar-2016,3097528-202117,"4,833.00",NETWORKS 2 BUSINESS LTD.
Children and Adult Services,Childrens Services,Employees,080025,Agency Staff,09-Mar-2016,3097817-330253,"141,691.08",DE POEL MANAGED SERVICES LTD.
Children and Adult Services,Childrens Services,Third Party Payments,440999,Other Third Party Payments,09-Mar-2016,3097845-0080,800.00,FEEL GOOD FACTORY CIC.
Children and Adult Services,Childrens Services,Supplies and Services,364301,Grants to Voluntary Organisations,09-Mar-2016,3097895-CAS-03-2016-033,622.09,REDACTED - PAYMENT TO INDIVIDUAL
Children and Adult Services,Childrens Services,Employees,040001,Recruitment Instruction and Training,09-Mar-2016,3098019-20835094,"3,878.00",REED BUSINESS INFORMATION LTD.
Children and Adult Services,Childrens Services,Supplies and Services,364310,Grants to Voluntary Organisations,09-Mar-2016,3098067-CAS-03-2016-040,541.32,REDACTED - PAYMENT TO INDIVIDUAL
Children and Adult Services,Childrens Services,Third Party Payments,425040,Rendered by Voluntary Organisations,09-Mar-2016,3098073-178656,700.00,SWIIS FOSTER CARE LTD.
Children and Adult Services,Childrens Services,Third Party Payments,425040,Rendered by Voluntary Organisations,09-Mar-2016,3098073-178659,730.03,SWIIS FOSTER CARE LTD.
Children and Adult Services,Childrens Services,Third Party Payments,425040,Rendered by Voluntary Organisations,09-Mar-2016,3098073-178660,730.03,SWIIS FOSTER CARE LTD.
Children and Adult Services,Childrens Services,Third Party Payments,425040,Rendered by Voluntary Organisations,09-Mar-2016,3098073-178661,730.03,SWIIS FOSTER CARE LTD.
Children and Adult Services,Childrens Services,Third Party Payments,425040,Rendered by Voluntary Organisations,09-Mar-2016,3098073-178662,980.00,SWIIS FOSTER CARE LTD.
Children and Adult Services,Childrens Services,Third Party Payments,425040,Rendered by Voluntary Organisations,09-Mar-2016,3098073-178663,700.00,SWIIS FOSTER CARE LTD.
Children and Adult Services,Childrens Services,Third Party Payments,425040,Rendered by Voluntary Organisations,09-Mar-2016,3098073-178664,759.99,SWIIS FOSTER CARE LTD.
Children and Adult Services,Childrens Services,Third Party Payments,425040,Rendered by Voluntary Organisations,09-Mar-2016,3098073-178665,819.98,SWIIS FOSTER CARE LTD.
Children and Adult Services,Childrens Services,Third Party Payments,425040,Rendered by Voluntary Organisations,09-Mar-2016,3098073-178666,730.03,SWIIS FOSTER CARE LTD.
Children and Adult Services,Childrens Services,Third Party Payments,425040,Rendered by Voluntary Organisations,09-Mar-2016,3098073-178667,980.00,SWIIS FOSTER CARE LTD.
Dedicated Schools Grant,Dedicated Schools Grant,Transport,230201,Contract Hire,09-Mar-2016,3097743-R10002245463,808.16,ARVAL UK LTD.
Dedicated Schools Grant,Dedicated Schools Grant,Third Party Payments,410037,Rendered by Other Local Authorities,09-Mar-2016,3097835-1001124,"61,498.84",EDUCATION VILLAGE ACADEMY TRUST.
Dedicated Schools Grant,Dedicated Schools Grant,Supplies and Services,338091,Services,09-Mar-2016,3097997-00008,"1,653.29",PINNACLE TRAINING (NE) LTD.
Dedicated Schools Grant,Dedicated Schools Grant,Supplies and Services,324093,Provisions,09-Mar-2016,3098084-1084284,880.00,TEACHING PERSONNEL LTD.
Children and Adult Services,Education,Transport,230006,Contract Hire,09-Mar-2016,3097793-87,529.00,COLIN ATKINSON T/A SEAHAM TAXIS.
Children and Adult Services,Education,Third Party Payments,440999,Other Third Party Payments,09-Mar-2016,3097799-15/16192,"2,008.02",CORNFORTH PARTNERSHIP PROJECTS FUND.
Children and Adult Services,Education,Transport,230006,Contract Hire,09-Mar-2016,3097823-16/02,770.00,DMG PRIVATE HIRE.
Children and Adult Services,Education,Supplies and Services,384199,Miscellaneous Expenses,09-Mar-2016,3097912-371,500.00,KIDZ R FIT LTD.
Children and Adult Services,Education,Supplies and Services,384199,Miscellaneous Expenses,09-Mar-2016,3097920-1596,"3,592.00",LEE`S COACHES LTD.
Children and Adult Services,Education,Transfer Payments,510028,School Children,09-Mar-2016,3097930-CAS-03-2016-042,600.00,LYNNE MCGUIGAN.
Children and Adult Services,Education,Transport,230008,Contract Hire,09-Mar-2016,3097937-380216,"1,552.00",MARK MUSGROVE T/A MARKS TAXIS.
Children and Adult Services,Education,Transport,230008,Contract Hire,09-Mar-2016,3097951-0004B,"1,924.00",MR A MILLWARD T/A SWISS CABS PRIVATE HIRE.
Children and Adult Services,Education,Transport,230007,Contract Hire,09-Mar-2016,3097951-0016,792.00,MR A MILLWARD T/A SWISS CABS PRIVATE HIRE.
Children and Adult Services,Education,Supplies and Services,312010,Newspapers Books and Periodicals,09-Mar-2016,3097971-13793009,523.40,NEWSQUEST (YORKSHIRE & NORTH EAST) LTD.
Children and Adult Services,Education,Construction Work,908201,Capital - Public Utilities - Electricity Services,09-Mar-2016,3097978-NNO7SGND,"1,588.78",NPOWER.
Children and Adult Services,Education,Construction Work,908201,Capital - Public Utilities - Electricity Services,09-Mar-2016,3097978-NNO7SGNF,"1,495.78",NPOWER.
Children and Adult Services,Education,Construction Work,908105,Construction work,09-Mar-2016,3098009-PWG747,"1,005.00",PWG CONNECTIONS LTD.
Children and Adult Services,Education,Transport,230008,Contract Hire,09-Mar-2016,3098018-094,"1,170.00",REDZ PRIVATE HIRE.
Children and Adult Services,Education,Transport,230008,Contract Hire,09-Mar-2016,3098018-095,975.00,REDZ PRIVATE HIRE.
Children and Adult Services,Education,Transport,230007,Contract Hire,09-Mar-2016,3098030-3080/20,"1,292.16",S & S TRAVEL LTD.
Children and Adult Services,Education,Transport,230008,Contract Hire,09-Mar-2016,3098030-SO11/39,"1,453.76",S & S TRAVEL LTD.
Children and Adult Services,Education,Transport,230008,Contract Hire,09-Mar-2016,3098030-WO52/28,"2,442.40",S & S TRAVEL LTD.
Children and Adult Services,Education,Transport,230008,Contract Hire,09-Mar-2016,3098030-WO67/06,"1,455.00",S & S TRAVEL LTD.
Children and Adult Services,Education,Transport,230008,Contract Hire,09-Mar-2016,3098030-WO85/06,"1,440.00",S & S TRAVEL LTD.
Children and Adult Services,Education,Transport,230008,Contract Hire,09-Mar-2016,3098044-71972,"1,440.00",SHOTTON PRIVATE HIRE.
Children and Adult Services,Education,Transport,230008,Contract Hire,09-Mar-2016,3098053-002/FEB,"1,600.00",SODA TAXIS.
Children and Adult Services,Education,Transport,230008,Contract Hire,09-Mar-2016,3098053-140/FEB,736.00,SODA TAXIS.
Children and Adult Services,Education,Transport,230008,Contract Hire,09-Mar-2016,3098053-162/FEB,512.00,SODA TAXIS.
Children and Adult Services,Education,Transport,230008,Contract Hire,09-Mar-2016,3098053-426/FEB,896.00,SODA TAXIS.
Children and Adult Services,Education,Transport,230008,Contract Hire,09-Mar-2016,3098059-AAK94157,"1,207.27",SPENNYMOOR TAXIS.
Children and Adult Services,Education,Transport,230008,Contract Hire,09-Mar-2016,3098059-JC14119,532.50,SPENNYMOOR TAXIS.
Children and Adult Services,Education,Transport,230008,Contract Hire,09-Mar-2016,3098059-JJJC09141,"1,452.96",SPENNYMOOR TAXIS.
Children and Adult Services,Education,Transport,230008,Contract Hire,09-Mar-2016,3098059-LLMD46777,800.00,SPENNYMOOR TAXIS.
Children and Adult Services,Education,Transport,230009,Contract Hire,09-Mar-2016,3098072-7003-FEB,656.00,SWAN TAXIS.
Children and Adult Services,Education,Supplies and Services,384302,Miscellaneous Expenses,09-Mar-2016,3098094-FSFFSF011601,"2,500.00",THE FOUNDATION STAGE FORUM LTD.
Children and Adult Services,Education,Supplies and Services,384302,Miscellaneous Expenses,09-Mar-2016,3098135-TC-0154,"4,720.67",YOUNG MINDS TRUST T/A YOUNG MINDS.
Children and Adult Services,Head of Adults,Supplies and Services,304516,Equipment and Materials,09-Mar-2016,3097778-1240/02,584.40,CABLES TAXI CONTRACTS.
Children and Adult Services,Head of Adults,Supplies and Services,338366,Services,09-Mar-2016,3097781-30019,709.45,CARE ABILITY.
Children and Adult Services,Head of Adults,Supplies and Services,338366,Services,09-Mar-2016,3097781-30020,726.25,CARE ABILITY.
Children and Adult Services,Head of Adults,Supplies and Services,338366,Services,09-Mar-2016,3097781-30021,"1,197.35",CARE ABILITY.
Children and Adult Services,Head of Adults,Third Party Payments,473101,Purchase of Care,09-Mar-2016,3097784-CFSI275,"13,985.27",CATCOTE FUTURES.
Children and Adult Services,Head of Adults,Third Party Payments,473101,Purchase of Care,09-Mar-2016,3097784-CFSI342,"13,985.27",CATCOTE FUTURES.
Children and Adult Services,Head of Adults,Supplies and Services,384616,Miscellaneous Expenses,09-Mar-2016,3097841-9274,"3,851.94",ESSENTIAL CARE & SUPPORT LTD.
Children and Adult Services,Head of Adults,Transport,230005,Contract Hire,09-Mar-2016,3097993-0439,924.00,PETER`S PRIVATE HIRE/PETER BEST.
Children and Adult Services,Head of Adults,Supplies and Services,304259,Equipment and Materials,09-Mar-2016,3098095-262010,"1,461.00",THE HELPING HAND CO (LEDBURY) LTD.
Children and Adult Services,Head of Adults,Supplies and Services,304259,Equipment and Materials,09-Mar-2016,3098105-116712,"3,286.25",TP ELECTRICAL SUPPLIES & FIXINGS LTD.
Children and Adult Services,Planning & Service Strategy,Supplies and Services,340001,Postages,09-Mar-2016,3098026-9051580899,951.24,ROYAL MAIL GROUP PLC.
Children and Adult Services,Public Health,Third Party Payments,460802,Contract Payments,09-Mar-2016,3097921-SI-002866,"10,200.00",LEISUREWORKS.
Children and Adult Services,Public Health,Third Party Payments,460803,Contract Payments,09-Mar-2016,3097964-KW5539024022016,880.90,NATIONAL PHARMACY ASSOCIATION (NPA).
Children and Adult Services,Public Health,Third Party Payments,460802,Contract Payments,09-Mar-2016,3098133-1010030301,512.88,YORK TEACHING HOSPITAL NHS FOUNDATION TRUST.
Children and Adult Services,Public Health,Third Party Payments,460802,Contract Payments,09-Mar-2016,3098133-1010032936,890.31,YORK TEACHING HOSPITAL NHS FOUNDATION TRUST.
Children and Adult Services,Public Health,Third Party Payments,460802,Contract Payments,09-Mar-2016,3098133-1010034698,536.00,YORK TEACHING HOSPITAL NHS FOUNDATION TRUST.
Assistant Chief Executive,Partnerships & Community Engagement Div.,Cap Exp on Grants & Other Financial Assistance (REFCUS),918004,Contributions to other bodies,09-Mar-2016,3097750-STAN009SGF11,"1,310.00",BACKSPIN TABLE TENNIS CLUB.
Assistant Chief Executive,Partnerships & Community Engagement Div.,Transfer Payments,525030,Other,09-Mar-2016,3097783-STAN009SGF25,950.00,CATCHGATE HORTICULTURAL & PLANTER SOCIETY.
Assistant Chief Executive,Partnerships & Community Engagement Div.,Transfer Payments,525030,Other,09-Mar-2016,3097806-STAN009SGF13,"1,395.00",CRAGHEAD FOOTBALL CLUB.
Assistant Chief Executive,Partnerships & Community Engagement Div.,Transfer Payments,525030,Other,09-Mar-2016,3097853-WEAR002SGF159,"1,240.00",FRIENDS OF THE NORTH PENNINES AONB & EUROPEAN GEOPARK.
Assistant Chief Executive,Partnerships & Community Engagement Div.,Transfer Payments,525030,Other,09-Mar-2016,3097973-STAN009SGF01,"1,931.00",NORTH EAST AUTISM SOCIETY.
Assistant Chief Executive,Partnerships & Community Engagement Div.,Cap Exp on Grants & Other Financial Assistance (REFCUS),918004,Contributions to other bodies,09-Mar-2016,3098011-STAN009SGF05,"2,000.00",QUAKING HOUSES VILLAGE HALL ASSOCIATION.
Assistant Chief Executive,Partnerships & Community Engagement Div.,Transfer Payments,525030,Other,09-Mar-2016,3098055-STAN009SGF08,"2,000.00",SOUTH STANLEY PARTNERSHIP.
Assistant Chief Executive,Partnerships & Community Engagement Div.,Transfer Payments,525030,Other,09-Mar-2016,3098063-STAN009SGF17,"1,510.00",STANLEY EVENTS LTD.
Assistant Chief Executive,Partnerships & Community Engagement Div.,Transfer Payments,525030,Other,09-Mar-2016,3098064-STAN009SGF07,900.00,STANLEY FOOTBALL CLUB.
Assistant Chief Executive,Partnerships & Community Engagement Div.,Transfer Payments,525030,Other,09-Mar-2016,3098065-STAN009SGF19,"1,250.00",STANLEY WOODCRAFT FOLK.
Assistant Chief Executive,Partnerships & Community Engagement Div.,Transfer Payments,525030,Other,09-Mar-2016,3098066-STAN009SGF03,"1,210.00",STANLEY YOUNG PEOPLES CLUB.
Assistant Chief Executive,Partnerships & Community Engagement Div.,Cap Exp on Grants & Other Financial Assistance (REFCUS),918004,Contributions to other bodies,09-Mar-2016,3098076-STAN009SGF12,"1,252.00",TANFIELD IN BLOOM.
Assistant Chief Executive,Partnerships & Community Engagement Div.,Transfer Payments,525030,Other,09-Mar-2016,3098077-STAN009SGF16,"1,953.00",TANFIELD LEA & DISTRICT COMMUNITY ASSOCIATION.
Assistant Chief Executive,Partnerships & Community Engagement Div.,Transfer Payments,525030,Other,09-Mar-2016,3098078-STAN009SGF24,"1,655.00",TANFIELD LEA COUNTRYSIDE GROUP.
Assistant Chief Executive,Partnerships & Community Engagement Div.,Transfer Payments,525030,Other,09-Mar-2016,3098090-STAN009SGF18,987.00,THE ACTIVITY DEN.
Neighbourhood Services,Technical Services,Employees,040149,Recruitment Instruction and Training,09-Mar-2016,302808-28764,"1,500.00",JTL.
Neighbourhood Services,Technical Services,Stock,926900,Stock in hand-Inventory system,09-Mar-2016,302812-105108,"1,542.00",MALLATITE LTD.
Neighbourhood Services,Technical Services,Stock,926900,Stock in hand-Inventory system,09-Mar-2016,302812-105109,"25,222.60",MALLATITE LTD.
Neighbourhood Services,Technical Services,Stock,926900,Stock in hand-Inventory system,09-Mar-2016,302812-105138,"13,581.40",MALLATITE LTD.
Neighbourhood Services,Technical Services,Fees,901004,Capital - Detailed Design,09-Mar-2016,302815-03-2016-013,"3,500.00",REDACTED - PAYMENT TO INDIVIDUAL
Neighbourhood Services,Culture & Sport,Supplies and Services,324117,Provisions,09-Mar-2016,3097725-1684184,733.20,ADELIE FOODS LTD.
Neighbourhood Services,Technical Services,Supplies and Services,304221,Equipment and Materials,09-Mar-2016,3097729-22641560,740.22,AGGREGATE INDUSTRIES UK LTD.
Neighbourhood Services,Technical Services,Supplies and Services,304221,Equipment and Materials,09-Mar-2016,3097729-22698786,700.59,AGGREGATE INDUSTRIES UK LTD.
Neighbourhood Services,Technical Services,Supplies and Services,304221,Equipment and Materials,09-Mar-2016,3097729-22698879,"1,225.16",AGGREGATE INDUSTRIES UK LTD.
Neighbourhood Services,Technical Services,Supplies and Services,304221,Equipment and Materials,09-Mar-2016,3097729-22698881,790.24,AGGREGATE INDUSTRIES UK LTD.
Neighbourhood Services,Technical Services,Supplies and Services,304221,Equipment and Materials,09-Mar-2016,3097729-22698882,500.00,AGGREGATE INDUSTRIES UK LTD.
Neighbourhood Services,Technical Services,Supplies and Services,304221,Equipment and Materials,09-Mar-2016,3097729-22698884,"1,183.78",AGGREGATE INDUSTRIES UK LTD.
Neighbourhood Services,Technical Services,Supplies and Services,304221,Equipment and Materials,09-Mar-2016,3097729-22698885,718.10,AGGREGATE INDUSTRIES UK LTD.
Neighbourhood Services,Culture & Sport,Supplies and Services,304337,Equipment and Materials,09-Mar-2016,3097730-5832,616.75,ALISON BLACK LTD T/A SPORTMAX.
Neighbourhood Services,Culture & Sport,Supplies and Services,312009,Newspapers Books and Periodicals,09-Mar-2016,3097744-4933474,761.72,ASKEWS & HOLTS LIBRARY SERVICES LTD.
Neighbourhood Services,Projects and Business services,Third Party Payments,430103,Rendered by Private Contractors,09-Mar-2016,3097755-03-2016-014,732.61,BARNARDO SERVICES LTD.
Neighbourhood Services,Direct Services,Third Party Payments,430100,Rendered by Private Contractors,09-Mar-2016,3097785-594,"1,652.95",CATHEDRAL LOCK & SAFE SERVICES LTD.
Neighbourhood Services,Direct Services,Third Party Payments,430100,Rendered by Private Contractors,09-Mar-2016,3097785-596,"1,545.09",CATHEDRAL LOCK & SAFE SERVICES LTD.
Neighbourhood Services,Direct Services,Third Party Payments,430100,Rendered by Private Contractors,09-Mar-2016,3097785-597,"1,793.68",CATHEDRAL LOCK & SAFE SERVICES LTD.
Neighbourhood Services,Direct Services,Supplies and Services,342051,Computers and Communications,09-Mar-2016,3097792-CSS2706,"1,762.50",CLEARSKIES SOFTWARE.
Neighbourhood Services,Culture & Sport,Employees,080025,Agency Staff,09-Mar-2016,3097807-INV-00050,825.48,CRAIG WALTON.
Neighbourhood Services,Culture & Sport,Supplies and Services,384237,Miscellaneous Expenses,09-Mar-2016,3097814-2848894,"1,500.00",DARLINGTON BOROUGH COUNCIL.
Neighbourhood Services,Culture & Sport,Supplies and Services,312013,Newspapers Books and Periodicals,09-Mar-2016,3097846-IN05444671,680.33,FINANCIAL TIMES LTD.
Neighbourhood Services,Direct Services,Third Party Payments,430100,Rendered by Private Contractors,09-Mar-2016,3097859-SI30770,"3,262.50",GEOFFREY ROBINSON LTD.
Neighbourhood Services,Technical Services,Stock,926900,Stock in hand-Inventory system,09-Mar-2016,3097871-06/591681,539.50,GREENHAM TRADING LTD.
Neighbourhood Services,Direct Services,Premises,145023,Cleaning and Domestic Supplies,09-Mar-2016,3097871-06/591771,"3,145.90",GREENHAM TRADING LTD.
Neighbourhood Services,Direct Services,Transport,215005,Running Costs of Vehicles,09-Mar-2016,3097878-0000005441,"15,319.99",HARVEST ENERGY LTD.
Neighbourhood Services,Technical Services,Supplies and Services,304221,Equipment and Materials,09-Mar-2016,3097886-190001415,732.48,ICL UK (SALES) LTD.
Neighbourhood Services,Technical Services,Stock,926900,Stock in hand-Inventory system,09-Mar-2016,3097900-NI030436,"33,000.00",JOHN MACLEAN & SONS ELECTRICAL (DINGWALL) LTD.
Neighbourhood Services,Technical Services,Supplies and Services,304358,Equipment and Materials,09-Mar-2016,3097901-24561,"2,172.50",JOHN R BUTTERFIELD LTD.
Neighbourhood Services,Technical Services,Supplies and Services,304358,Equipment and Materials,09-Mar-2016,3097901-24567,"1,234.70",JOHN R BUTTERFIELD LTD.
Neighbourhood Services,Technical Services,Supplies and Services,304358,Equipment and Materials,09-Mar-2016,3097901-24606,"1,674.00",JOHN R BUTTERFIELD LTD.
Neighbourhood Services,Technical Services,Supplies and Services,304358,Equipment and Materials,09-Mar-2016,3097901-24613,"1,219.70",JOHN R BUTTERFIELD LTD.
Neighbourhood Services,Technical Services,Supplies and Services,304358,Equipment and Materials,09-Mar-2016,3097901-24633,"2,199.50",JOHN R BUTTERFIELD LTD.
Neighbourhood Services,Technical Services,Supplies and Services,304358,Equipment and Materials,09-Mar-2016,3097901-24635,592.50,JOHN R BUTTERFIELD LTD.
Neighbourhood Services,Technical Services,Supplies and Services,304358,Equipment and Materials,09-Mar-2016,3097901-24643,729.60,JOHN R BUTTERFIELD LTD.
Neighbourhood Services,Technical Services,Supplies and Services,304358,Equipment and Materials,09-Mar-2016,3097901-24644,978.90,JOHN R BUTTERFIELD LTD.
Neighbourhood Services,Technical Services,Supplies and Services,304358,Equipment and Materials,09-Mar-2016,3097901-24647,"1,379.00",JOHN R BUTTERFIELD LTD.
Neighbourhood Services,Technical Services,Supplies and Services,304358,Equipment and Materials,09-Mar-2016,3097901-24648,570.00,JOHN R BUTTERFIELD LTD.
Neighbourhood Services,Technical Services,Supplies and Services,304358,Equipment and Materials,09-Mar-2016,3097901-24664,"1,723.50",JOHN R BUTTERFIELD LTD.
Neighbourhood Services,Technical Services,Supplies and Services,304358,Equipment and Materials,09-Mar-2016,3097901-24671,718.20,JOHN R BUTTERFIELD LTD.
Neighbourhood Services,Technical Services,Supplies and Services,304358,Equipment and Materials,09-Mar-2016,3097901-24672,700.80,JOHN R BUTTERFIELD LTD.
Neighbourhood Services,Technical Services,Supplies and Services,304358,Equipment and Materials,09-Mar-2016,3097901-24673,"1,234.70",JOHN R BUTTERFIELD LTD.
Neighbourhood Services,Technical Services,Supplies and Services,304358,Equipment and Materials,09-Mar-2016,3097901-24690,"1,066.00",JOHN R BUTTERFIELD LTD.
Neighbourhood Services,Technical Services,Supplies and Services,304358,Equipment and Materials,09-Mar-2016,3097901-24713,552.00,JOHN R BUTTERFIELD LTD.
Neighbourhood Services,Culture & Sport,Supplies and Services,304259,Equipment and Materials,09-Mar-2016,3097903-790659,826.80,JP LENNARD LTD.
Neighbourhood Services,Technical Services,Stock,926900,Stock in hand-Inventory system,09-Mar-2016,3097904-00000553,"1,700.00",JP MATERIALS & PLANT HIRE LTD.
Neighbourhood Services,Direct Services,Supplies and Services,304221,Equipment and Materials,09-Mar-2016,3097906-BAI258107,"1,285.20",JT DOVE LTD.
Neighbourhood Services,Technical Services,Supplies and Services,304221,Equipment and Materials,09-Mar-2016,3097906-BII183451,"1,912.32",JT DOVE LTD.
Neighbourhood Services,Technical Services,Stock,926900,Stock in hand-Inventory system,09-Mar-2016,3097906-STI432883,660.00,JT DOVE LTD.
Neighbourhood Services,Technical Services,Supplies and Services,304221,Equipment and Materials,09-Mar-2016,3097908-7957,559.17,KEN THOMAS (SITE CLEARANCE LTD).
Neighbourhood Services,Technical Services,Supplies and Services,304358,Equipment and Materials,09-Mar-2016,3097909-1262,938.50,KEVIN SNOWDON GROUNDWORKS LTD.
Neighbourhood Services,Direct Services,Supplies and Services,304221,Equipment and Materials,09-Mar-2016,3097923-A16001004,506.00,LIFT COMPONENTS LTD.
Neighbourhood Services,Direct Services,Supplies and Services,304358,Equipment and Materials,09-Mar-2016,3097939-1888,721.50,MARTIN JEWITT PLANT HIRE.
Neighbourhood Services,Culture & Sport,Income,720501,Fees and Charges,09-Mar-2016,3097988-53,750.00,PAUL ARMFIELD.
Neighbourhood Services,Technical Services,Third Party Payments,430100,Rendered by Private Contractors,09-Mar-2016,3098004-138283,"20,013.28",PREMIER TRAFFIC MANAGEMENT LTD.
Neighbourhood Services,Technical Services,Third Party Payments,430100,Rendered by Private Contractors,09-Mar-2016,3098015-25/0/160204,"89,718.08",RAINTON CONSTRUCTION LTD.
Neighbourhood Services,Direct Services,Vehicles Equipment Furniture and Fittings,912541,Purchase-vehicles,09-Mar-2016,3098021-178331,"98,348.00",RICKERBY LTD.
Neighbourhood Services,Direct Services,Vehicles Equipment Furniture and Fittings,912541,Purchase-vehicles,09-Mar-2016,3098021-178332,"223,344.00",RICKERBY LTD.
Neighbourhood Services,Projects and Business services,Supplies and Services,340001,Postages,09-Mar-2016,3098026-9051577959,"1,585.43",ROYAL MAIL GROUP PLC.
Neighbourhood Services,Direct Services,Supplies and Services,304259,Equipment and Materials,09-Mar-2016,3098043-CD970302773,"1,331.20",SHERRIFF AMENITY.
Neighbourhood Services,Culture & Sport,Supplies and Services,338047,Services,09-Mar-2016,3098054-20151649,"5,278.70",SOLID ENTERTAINMENTS.
Neighbourhood Services,Technical Services,Supplies and Services,304221,Equipment and Materials,09-Mar-2016,3098079-9033940357,"2,335.52",TARMAC TRADING LTD.
Neighbourhood Services,Technical Services,Supplies and Services,304221,Equipment and Materials,09-Mar-2016,3098079-9033958836,"1,045.59",TARMAC TRADING LTD.
Neighbourhood Services,Technical Services,Supplies and Services,304221,Equipment and Materials,09-Mar-2016,3098080-9033949792,568.70,TARMAC TRADING LTD.
Neighbourhood Services,Technical Services,Supplies and Services,304221,Equipment and Materials,09-Mar-2016,3098112-155273,"1,167.98",TYNEDALE ROADSTONE LTD.
Neighbourhood Services,Technical Services,Supplies and Services,304221,Equipment and Materials,09-Mar-2016,3098112-155274,"1,177.02",TYNEDALE ROADSTONE LTD.
Neighbourhood Services,Technical Services,Supplies and Services,304221,Equipment and Materials,09-Mar-2016,3098112-155329,741.68,TYNEDALE ROADSTONE LTD.
Neighbourhood Services,Culture & Sport,Supplies and Services,312013,Newspapers Books and Periodicals,09-Mar-2016,3098113-I598255,"1,282.16",ULVERSCROFT LARGE PRINT BOOKS LTD.
Neighbourhood Services,Direct Services,Supplies and Services,384899,Miscellaneous Expenses,09-Mar-2016,3098127-03-2016-019,500.00,WITTON LE WEAR PARISH COUNCIL.
Regeneration & Economic Development,Spatial Policy Planning Assets & Environment,Income,720197,Fees and Charges,09-Mar-2016,302796-RED-03-2016-090,"1,335.26",ELEVEN ARCHES.
Regeneration & Economic Development,Spatial Policy Planning Assets & Environment,Income,720190,Fees and Charges,09-Mar-2016,302806-RED-03-2016-014,"1,925.00",J DENHAM METALS LTD.
Regeneration & Economic Development,Economic Development and Housing,Supplies and Services,384199,Miscellaneous Expenses,09-Mar-2016,302854-D6-1/2,"2,545.00",RW BLEARS LLP.
Regeneration & Economic Development,Economic Development and Housing,Cap Exp on Grants & Other Financial Assistance (REFCUS),918401,Capital grants,09-Mar-2016,3097722-RED-03-2016-063,"5,371.00",A OGILVIE BUILDING CONTRACTORS LTD.
Regeneration & Economic Development,Transport and Contracted Services,Supplies and Services,304245,Equipment and Materials,09-Mar-2016,3097775-023262,"2,700.00",BUDDI.
Regeneration & Economic Development,Economic Development and Housing,Premises,120021,Energy Costs,09-Mar-2016,3097800-10622839,"4,007.17",CORONA ENERGY RETAIL 2 LTD.
Regeneration & Economic Development,Economic Development and Housing,Premises,120021,Energy Costs,09-Mar-2016,3097800-10865271,813.08,CORONA ENERGY RETAIL 2 LTD.
Regeneration & Economic Development,Economic Development and Housing,Premises,120021,Energy Costs,09-Mar-2016,3097800-10865273,581.78,CORONA ENERGY RETAIL 2 LTD.
Regeneration & Economic Development,Economic Development and Housing,Premises,120021,Energy Costs,09-Mar-2016,3097800-10866885,"1,745.55",CORONA ENERGY RETAIL 2 LTD.
Regeneration & Economic Development,Economic Development and Housing,Premises,120021,Energy Costs,09-Mar-2016,3097800-10867908,"1,406.05",CORONA ENERGY RETAIL 2 LTD.
Regeneration & Economic Development,Economic Development and Housing,Premises,120021,Energy Costs,09-Mar-2016,3097800-10875906,818.33,CORONA ENERGY RETAIL 2 LTD.
Regeneration & Economic Development,Economic Development and Housing,Premises,120021,Energy Costs,09-Mar-2016,3097800-10883645,"1,340.32",CORONA ENERGY RETAIL 2 LTD.
Regeneration & Economic Development,Economic Development and Housing,Premises,120021,Energy Costs,09-Mar-2016,3097800-10888015,"1,301.27",CORONA ENERGY RETAIL 2 LTD.
Regeneration & Economic Development,Economic Development and Housing,Cap Exp on Grants & Other Financial Assistance (REFCUS),918401,Capital grants,09-Mar-2016,3097810-RED-03-2016-058,"5,455.00",CUMMINGS CONTRACTORS.
Regeneration & Economic Development,Economic Development and Housing,Cap Exp on Grants & Other Financial Assistance (REFCUS),918401,Capital grants,09-Mar-2016,3097810-RED-03-2016-061,"4,710.00",CUMMINGS CONTRACTORS.
Regeneration & Economic Development,Spatial Policy Planning Assets & Environment,Supplies and Services,384199,Miscellaneous Expenses,09-Mar-2016,3097829-FA15103,"15,739.00",DURHAM CATHEDRAL LTD.
Regeneration & Economic Development,Economic Development and Housing,Cap Exp on Grants & Other Financial Assistance (REFCUS),918401,Capital grants,09-Mar-2016,3097854-RED-03-2016-075,520.00,G CUMMINGS.
Regeneration & Economic Development,Economic Development and Housing,Cap Exp on Grants & Other Financial Assistance (REFCUS),918401,Capital grants,09-Mar-2016,3097882-RED-03-2016-062,"14,432.45",HES GROUP UK LTD.
Regeneration & Economic Development,Spatial Policy Planning Assets & Environment,Supplies and Services,338066,Services,09-Mar-2016,3097899-146164,"2,055.80",JOHN HOBSON (QC).
Regeneration & Economic Development,Economic Development and Housing,Cap Exp on Grants & Other Financial Assistance (REFCUS),918501,Exp assets not owned by authority,09-Mar-2016,3097907-RED-02-2216-065,"11,245.80",K HARRISON (BUILDER) NE LTD.
Regeneration & Economic Development,Spatial Policy Planning Assets & Environment,Supplies and Services,384540,Miscellaneous Expenses,09-Mar-2016,3097934-1071,544.00,MARCUS BYRON.
Regeneration & Economic Development,Economic Development and Housing,Cap Exp on Grants & Other Financial Assistance (REFCUS),918401,Capital grants,09-Mar-2016,3097941-RED-03-2016-070,"2,960.00",MC DEVELOPMENTS.
Regeneration & Economic Development,Spatial Policy Planning Assets & Environment,Supplies and Services,384700,Miscellaneous Expenses,09-Mar-2016,3097954-RED-03-2016-086,"1,098.00",REDACTED - PAYMENT TO INDIVIDUAL
Regeneration & Economic Development,Economic Development and Housing,Cap Exp on Grants & Other Financial Assistance (REFCUS),918401,Capital grants,09-Mar-2016,3097962-RED-03-2016-068,"5,798.20",MWA GAS & PLUMBING LTD.
Regeneration & Economic Development,Economic Development and Housing,Supplies and Services,340001,Postages,09-Mar-2016,3097966-RED-03-2016-055,500.00,NEOPOST LTD.
Regeneration & Economic Development,Transport and Contracted Services,Third Party Payments,430108,Rendered by Private Contractors,09-Mar-2016,3097969-1800007807392,750.00,NEWCASTLE UPON TYNE CITY COUNCIL.
Regeneration & Economic Development,Transport and Contracted Services,Third Party Payments,430100,Rendered by Private Contractors,09-Mar-2016,3097979-036935,"26,370.28",NSL LTD.
Regeneration & Economic Development,Transport and Contracted Services,Third Party Payments,430100,Rendered by Private Contractors,09-Mar-2016,3097979-036952,"1,094.85",NSL LTD.
Regeneration & Economic Development,Transport and Contracted Services,Third Party Payments,430100,Rendered by Private Contractors,09-Mar-2016,3097979-036953,"47,329.27",NSL LTD.
Regeneration & Economic Development,Transport and Contracted Services,Third Party Payments,430100,Rendered by Private Contractors,09-Mar-2016,3097979-036954,"2,968.30",NSL LTD.
Regeneration & Economic Development,Transport and Contracted Services,Third Party Payments,430100,Rendered by Private Contractors,09-Mar-2016,3097979-036955,"5,978.39",NSL LTD.
Regeneration & Economic Development,Transport and Contracted Services,Third Party Payments,430100,Rendered by Private Contractors,09-Mar-2016,3097979-036956,"15,944.07",NSL LTD.
Regeneration & Economic Development,Transport and Contracted Services,Third Party Payments,430100,Rendered by Private Contractors,09-Mar-2016,3097979-037080,"1,035.68",NSL LTD.
Regeneration & Economic Development,Transport and Contracted Services,Third Party Payments,430100,Rendered by Private Contractors,09-Mar-2016,3097979-037081,"11,690.56",NSL LTD.
Regeneration & Economic Development,Transport and Contracted Services,Third Party Payments,430100,Rendered by Private Contractors,09-Mar-2016,3097979-037082,"10,364.43",NSL LTD.
Regeneration & Economic Development,Economic Development and Housing,Cap Exp on Grants & Other Financial Assistance (REFCUS),918401,Capital grants,09-Mar-2016,3097990-RED-03-2016-071,"1,390.24",PEART ACCESS RAMPS.
Regeneration & Economic Development,Economic Development and Housing,Cap Exp on Grants & Other Financial Assistance (REFCUS),918401,Capital grants,09-Mar-2016,3097990-RED-03-2016-079,"5,012.00",PEART ACCESS RAMPS.
Regeneration & Economic Development,Economic Development and Housing,Cap Exp on Grants & Other Financial Assistance (REFCUS),918401,Capital grants,09-Mar-2016,3097991-RED-03-2016-073,"3,470.00",PETER JORDAN.
Regeneration & Economic Development,Economic Development and Housing,Cap Exp on Grants & Other Financial Assistance (REFCUS),918501,Exp assets not owned by authority,09-Mar-2016,3098014-RED-03-2016-066,"9,514.80",R TINDALE (BUILDER) LTD.
Regeneration & Economic Development,Economic Development and Housing,Cap Exp on Grants & Other Financial Assistance (REFCUS),918401,Capital grants,09-Mar-2016,3098100-RED-03-2016-059,"4,022.00",THYSSENKRUPP ENCASA A DIVISION OF THYSSENKRUPP ACCESS LTD.
Regeneration & Economic Development,Economic Development and Housing,Cap Exp on Grants & Other Financial Assistance (REFCUS),918401,Capital grants,09-Mar-2016,3098100-RED-03-2016-060,"1,052.00",THYSSENKRUPP ENCASA A DIVISION OF THYSSENKRUPP ACCESS LTD.
Regeneration & Economic Development,Economic Development and Housing,Cap Exp on Grants & Other Financial Assistance (REFCUS),918401,Capital grants,09-Mar-2016,3098100-RED-03-2016-076,"2,015.00",THYSSENKRUPP ENCASA A DIVISION OF THYSSENKRUPP ACCESS LTD.
Regeneration & Economic Development,Economic Development and Housing,Cap Exp on Grants & Other Financial Assistance (REFCUS),918401,Capital grants,09-Mar-2016,3098100-RED-03-2016-077,"1,495.00",THYSSENKRUPP ENCASA A DIVISION OF THYSSENKRUPP ACCESS LTD.
Regeneration & Economic Development,Economic Development and Housing,Cap Exp on Grants & Other Financial Assistance (REFCUS),918401,Capital grants,09-Mar-2016,3098100-RED-03-2016-078,"3,316.64",THYSSENKRUPP ENCASA A DIVISION OF THYSSENKRUPP ACCESS LTD.
Regeneration & Economic Development,Economic Development and Housing,Cap Exp on Grants & Other Financial Assistance (REFCUS),918401,Capital grants,09-Mar-2016,3098103-RED-03-2016-072,"3,816.00",TOTAL HYGIENE LTD.
Regeneration & Economic Development,Transport and Contracted Services,Third Party Payments,430100,Rendered by Private Contractors,09-Mar-2016,3098107-RED-03-2016-089,"7,000.00",TRAFFIC ENFORCEMENT CENTRE (TEC).
Regeneration & Economic Development,Economic Development and Housing,Supplies and Services,336005,Advertising,09-Mar-2016,3098109-2720171,500.00,TRINITY MIRROR PUBLISHING LTD.
Regeneration & Economic Development,Economic Development and Housing,Supplies and Services,336005,Advertising,09-Mar-2016,3098109-2720172,700.00,TRINITY MIRROR PUBLISHING LTD.
Resources,Financial Services,Supplies and Services,304999,Equipment and Materials,09-Mar-2016,3097785-595,731.90,CATHEDRAL LOCK & SAFE SERVICES LTD.
Resources,Financial Services,Supplies and Services,384180,Miscellaneous Expenses,09-Mar-2016,3097927-0871135,"4,910.09",LOOMIS UK LTD.
Resources,Legal & Democratic Services,Supplies and Services,338057,Services,09-Mar-2016,3098023-0000022558,"1,930.00",ROAR FORENSICS LTD.
Resources,I.C.T. Services,Supplies and Services,340001,Postages,09-Mar-2016,3098026-9051538379,"18,148.81",ROYAL MAIL GROUP PLC.
Children and Adult Services,Childrens Services,Premises,108135,Service Repairs and Maintenance,10-Mar-2016,3098178-29894,"1,760.00",BARR & WRAY LTD.
Children and Adult Services,Childrens Services,Third Party Payments,440037,Other Third Party Payments,10-Mar-2016,3098342-CAS-03-2016-050,598.00,JENNIFLOWERS CHILDCARE LTD.
Children and Adult Services,Childrens Services,Third Party Payments,440037,Other Third Party Payments,10-Mar-2016,3098358-CAS-03-2016-049,512.00,KIDZ VILLAGE.
Children and Adult Services,Childrens Services,Supplies and Services,340001,Postages,10-Mar-2016,3098429-CAS-03-2016-48,600.00,NEOPOST CREDIFON.
Children and Adult Services,Childrens Services,Third Party Payments,425040,Rendered by Voluntary Organisations,10-Mar-2016,3098542-1161539,"2,900.00",ST CUTHBERTS CARE.
Children and Adult Services,Childrens Services,Supplies and Services,384199,Miscellaneous Expenses,10-Mar-2016,3098631-26731,589.18,WRIXON SECURITY SERVICES LTD T/A WRIXON CARE.
Children and Adult Services,Childrens Services,Supplies and Services,384199,Miscellaneous Expenses,10-Mar-2016,3098631-27041,533.71,WRIXON SECURITY SERVICES LTD T/A WRIXON CARE.
Children and Adult Services,Commissioning inc Supporting People,Supplies and Services,342033,Computers and Communications,10-Mar-2016,3098251-7402267958,626.85,DELL COMPUTER CORPORATION LTD.
Children and Adult Services,Commissioning inc Supporting People,Transfer Payments,515210,Social Services Clients,10-Mar-2016,3098414-CAS-03-2016-047,"1,710.00",REDACTED - PAYMENT TO INDIVIDUAL
Children and Adult Services,Commissioning inc Supporting People,Third Party Payments,479101,Purchase of Care,10-Mar-2016,3098618-1516/028,"10,000.00",WADDINGTON STREET CENTRE LTD.
Dedicated Schools Grant,Dedicated Schools Grant,Supplies and Services,342033,Computers and Communications,10-Mar-2016,3098251-7402268003,"1,582.47",DELL COMPUTER CORPORATION LTD.
Dedicated Schools Grant,Dedicated Schools Grant,Transport,230010,Contract Hire,10-Mar-2016,3098406-621,"1,734.00",MOLLYS TAXIS.
Dedicated Schools Grant,Dedicated Schools Grant,Third Party Payments,440080,Other Third Party Payments,10-Mar-2016,3098457-27055,"11,371.35",PERCY HEDLEY FOUNDATION.
Dedicated Schools Grant,Dedicated Schools Grant,Third Party Payments,440080,Other Third Party Payments,10-Mar-2016,3098457-27056,"11,371.35",PERCY HEDLEY FOUNDATION.
Dedicated Schools Grant,Dedicated Schools Grant,Supplies and Services,352001,Conference Expenses,10-Mar-2016,3098608-HUM15144576-003,"4,900.00",UNIVERSITY COLLEGE LONDON.
Children and Adult Services,Education,Transport,230008,Contract Hire,10-Mar-2016,3098145-A220772,"1,429.50",A MURRAY TRAVEL.
Children and Adult Services,Education,Transport,230008,Contract Hire,10-Mar-2016,3098153-17MO,704.00,AJ ADAMSON (TONY`S TAXIS).
Children and Adult Services,Education,Transport,230007,Contract Hire,10-Mar-2016,3098192-1375,"1,760.00",BOB  COACHES.
Children and Adult Services,Education,Transport,230008,Contract Hire,10-Mar-2016,3098277-W131-017,824.00,FERRYHILL VILLAGE TRAVEL.
Children and Adult Services,Education,Transport,230008,Contract Hire,10-Mar-2016,3098286-0216,"1,235.00",FRANK ATKINSON T/A FJ MINIBUS TRAVEL.
Children and Adult Services,Education,Transport,230008,Contract Hire,10-Mar-2016,3098286-1602,"2,178.56",FRANK ATKINSON T/A FJ MINIBUS TRAVEL.
Children and Adult Services,Education,Transport,230008,Contract Hire,10-Mar-2016,3098304-000018,"1,152.00",GP TAXIS.
Children and Adult Services,Education,Transport,230007,Contract Hire,10-Mar-2016,3098314-HT214,"2,075.00",HARRY`S TAXI`S.
Children and Adult Services,Education,Transport,230006,Contract Hire,10-Mar-2016,3098314-HT216,830.00,HARRY`S TAXI`S.
Children and Adult Services,Education,Transport,230008,Contract Hire,10-Mar-2016,3098314-HT217,"2,122.72",HARRY`S TAXI`S.
Children and Adult Services,Education,Transport,230008,Contract Hire,10-Mar-2016,3098322-INV104,"1,275.00",HORNDALE TAXIS LTD.
Children and Adult Services,Education,Transport,230008,Contract Hire,10-Mar-2016,3098322-INV105,720.00,HORNDALE TAXIS LTD.
Children and Adult Services,Education,Transport,230008,Contract Hire,10-Mar-2016,3098328-28,975.00,IAN SHEPLEY T/A SHEPPA`S TAXIS.
Children and Adult Services,Education,Transport,230008,Contract Hire,10-Mar-2016,3098339-0326,768.00,JACKSON`S TAXI.
Children and Adult Services,Education,Transport,230008,Contract Hire,10-Mar-2016,3098341-874,"1,109.28",JDS PRIVATE HIRE DURHAM.
Children and Adult Services,Education,Transport,230009,Contract Hire,10-Mar-2016,3098341-876,"1,040.00",JDS PRIVATE HIRE DURHAM.
Children and Adult Services,Education,Transport,230008,Contract Hire,10-Mar-2016,3098341-885,"2,070.00",JDS PRIVATE HIRE DURHAM.
Children and Adult Services,Education,Transport,230008,Contract Hire,10-Mar-2016,3098345-049,"1,280.00",JK TAXIS.
Children and Adult Services,Education,Transport,230007,Contract Hire,10-Mar-2016,3098365-1583,"3,823.84",LEE`S COACHES LTD.
Children and Adult Services,Education,Transport,230007,Contract Hire,10-Mar-2016,3098365-1584,"2,002.08",LEE`S COACHES LTD.
Children and Adult Services,Education,Transport,230007,Contract Hire,10-Mar-2016,3098365-1585,"1,920.00",LEE`S COACHES LTD.
Children and Adult Services,Education,Transport,230006,Contract Hire,10-Mar-2016,3098377-2495,600.00,LOCAL TRANSPORT LTD.
Children and Adult Services,Education,Transport,230008,Contract Hire,10-Mar-2016,3098377-2498,"1,696.00",LOCAL TRANSPORT LTD.
Children and Adult Services,Education,Transport,230008,Contract Hire,10-Mar-2016,3098377-2500,"1,184.00",LOCAL TRANSPORT LTD.
Children and Adult Services,Education,Transport,230008,Contract Hire,10-Mar-2016,3098377-2501,"1,450.00",LOCAL TRANSPORT LTD.
Children and Adult Services,Education,Transport,230008,Contract Hire,10-Mar-2016,3098385-42,"1,185.00",M BEHAN T/A M & M`S TAXIS.
Children and Adult Services,Education,Transport,230007,Contract Hire,10-Mar-2016,3098385-43,948.00,M BEHAN T/A M & M`S TAXIS.
Children and Adult Services,Education,Transport,230008,Contract Hire,10-Mar-2016,3098392-480216,690.00,MARK MUSGROVE T/A MARKS TAXIS.
Children and Adult Services,Education,Transport,230006,Contract Hire,10-Mar-2016,3098399-F592-FEB2016,"1,184.00",MCDONALD TRAVEL.
Children and Adult Services,Education,Transport,230008,Contract Hire,10-Mar-2016,3098399-MCD44509,"1,505.00",MCDONALD TRAVEL.
Children and Adult Services,Education,Transport,230007,Contract Hire,10-Mar-2016,3098401-00824,"1,205.00",MICHAELS TRAVEL.
Children and Adult Services,Education,Transport,230008,Contract Hire,10-Mar-2016,3098401-00825,"1,679.84",MICHAELS TRAVEL.
Children and Adult Services,Education,Transport,230008,Contract Hire,10-Mar-2016,3098401-00826,"1,711.20",MICHAELS TRAVEL.
Children and Adult Services,Education,Transport,230008,Contract Hire,10-Mar-2016,3098406-623,"1,344.00",MOLLYS TAXIS.
Children and Adult Services,Education,Transport,230008,Contract Hire,10-Mar-2016,3098406-624,"1,950.00",MOLLYS TAXIS.
Children and Adult Services,Education,Transport,230008,Contract Hire,10-Mar-2016,3098406-625,"1,776.80",MOLLYS TAXIS.
Children and Adult Services,Education,Transport,230008,Contract Hire,10-Mar-2016,3098407-CEW210,"1,275.00",MOOR PRIVATE HIRE.
Children and Adult Services,Education,Transport,230007,Contract Hire,10-Mar-2016,3098407-CEWSJANUARY11,544.00,MOOR PRIVATE HIRE.
Children and Adult Services,Education,Transport,230007,Contract Hire,10-Mar-2016,3098408-006,"1,280.00",MORGAN`S TRAVEL.
Children and Adult Services,Education,Transport,230008,Contract Hire,10-Mar-2016,3098413-46A,"1,775.56",MR G FREELAND T/A HUNWICK CARS.
Children and Adult Services,Education,Transport,230008,Contract Hire,10-Mar-2016,3098416-A057/02/16,928.00,MR M ALLISON T/A MACBETH TAXIS/COACHES.
Children and Adult Services,Education,Transport,230008,Contract Hire,10-Mar-2016,3098416-A069/02/16,"1,140.00",MR M ALLISON T/A MACBETH TAXIS/COACHES.
Children and Adult Services,Education,Transport,230008,Contract Hire,10-Mar-2016,3098416-N059/02/16,"1,280.00",MR M ALLISON T/A MACBETH TAXIS/COACHES.
Children and Adult Services,Education,Transport,230008,Contract Hire,10-Mar-2016,3098419-0115,"2,048.00",MR P CAHILL T/A KILEYS TAXIS.
Children and Adult Services,Education,Transport,230008,Contract Hire,10-Mar-2016,3098421-14B/16,"1,072.00",MR RAYMOND RENWICK.
Children and Adult Services,Education,Transport,230008,Contract Hire,10-Mar-2016,3098421-15A,"1,264.00",MR RAYMOND RENWICK.
Children and Adult Services,Education,Transport,230007,Contract Hire,10-Mar-2016,3098422-TN028,578.88,MR THOMAS G GRIFFITHS T/A TNL TAXIS.
Children and Adult Services,Education,Transport,230007,Contract Hire,10-Mar-2016,3098434-6000,"1,504.00",NIGHTINGALE COACHES.
Children and Adult Services,Education,Transport,230007,Contract Hire,10-Mar-2016,3098434-6001,"2,090.56",NIGHTINGALE COACHES.
Children and Adult Services,Education,Transport,230007,Contract Hire,10-Mar-2016,3098434-6002,"1,632.00",NIGHTINGALE COACHES.
Children and Adult Services,Education,Transport,230008,Contract Hire,10-Mar-2016,3098434-6003,768.00,NIGHTINGALE COACHES.
Children and Adult Services,Education,Transport,230008,Contract Hire,10-Mar-2016,3098434-6004,"1,136.00",NIGHTINGALE COACHES.
Children and Adult Services,Education,Transport,230008,Contract Hire,10-Mar-2016,3098434-6006,"1,040.00",NIGHTINGALE COACHES.
Children and Adult Services,Education,Transport,230008,Contract Hire,10-Mar-2016,3098434-6007,"1,280.00",NIGHTINGALE COACHES.
Children and Adult Services,Education,Transport,230008,Contract Hire,10-Mar-2016,3098434-6009,"1,184.00",NIGHTINGALE COACHES.
Children and Adult Services,Education,Transport,230008,Contract Hire,10-Mar-2016,3098434-6011,"1,176.00",NIGHTINGALE COACHES.
Children and Adult Services,Education,Transport,230008,Contract Hire,10-Mar-2016,3098434-6012,"1,280.00",NIGHTINGALE COACHES.
Children and Adult Services,Education,Transport,230008,Contract Hire,10-Mar-2016,3098434-6013,"1,120.00",NIGHTINGALE COACHES.
Children and Adult Services,Education,Transport,230008,Contract Hire,10-Mar-2016,3098434-6014,"1,440.00",NIGHTINGALE COACHES.
Children and Adult Services,Education,Transport,230008,Contract Hire,10-Mar-2016,3098434-6015,"1,120.00",NIGHTINGALE COACHES.
Children and Adult Services,Education,Transport,230008,Contract Hire,10-Mar-2016,3098434-6016,720.00,NIGHTINGALE COACHES.
Children and Adult Services,Education,Transport,230008,Contract Hire,10-Mar-2016,3098434-6017,672.00,NIGHTINGALE COACHES.
Children and Adult Services,Education,Transport,230008,Contract Hire,10-Mar-2016,3098437-0000023827,"5,790.00",NORTH EAST AUTISM SOCIETY.
Children and Adult Services,Education,Transport,230006,Contract Hire,10-Mar-2016,3098453-F613FEB,"2,053.00",PAUL ROSE T/A PAUL`S TAXIS.
Children and Adult Services,Education,Transport,230006,Contract Hire,10-Mar-2016,3098454-DCC73,778.00,PAUL`S TAXIS..
Children and Adult Services,Education,Transport,230008,Contract Hire,10-Mar-2016,3098455-DCC108,"1,280.00",PB PRIVATE HIRE.
Children and Adult Services,Education,Transport,230008,Contract Hire,10-Mar-2016,3098469-1145,"1,421.00",PODA LTD.
Children and Adult Services,Education,Transport,230008,Contract Hire,10-Mar-2016,3098469-1146,720.00,PODA LTD.
Children and Adult Services,Education,Transport,230007,Contract Hire,10-Mar-2016,3098488-38A,"1,029.28",RAYNERS COACHES.
Children and Adult Services,Education,Transport,230007,Contract Hire,10-Mar-2016,3098488-38B,"1,744.48",RAYNERS COACHES.
Children and Adult Services,Education,Transport,230007,Contract Hire,10-Mar-2016,3098488-38C,"4,824.48",RAYNERS COACHES.
Children and Adult Services,Education,Transport,230006,Contract Hire,10-Mar-2016,3098495-3026-FEB2016,602.00,RICHIES TAXIS.
Children and Adult Services,Education,Transport,230008,Contract Hire,10-Mar-2016,3098495-3027,"1,632.00",RICHIES TAXIS.
Children and Adult Services,Education,Transport,230008,Contract Hire,10-Mar-2016,3098495-3028,540.00,RICHIES TAXIS.
Children and Adult Services,Education,Transport,230008,Contract Hire,10-Mar-2016,3098501-474,"1,792.00",ROAD RUNNERS (NE) LTD.
Children and Adult Services,Education,Transport,230008,Contract Hire,10-Mar-2016,3098501-475,"1,536.00",ROAD RUNNERS (NE) LTD.
Children and Adult Services,Education,Transport,230008,Contract Hire,10-Mar-2016,3098501-482,835.00,ROAD RUNNERS (NE) LTD.
Children and Adult Services,Education,Transport,230008,Contract Hire,10-Mar-2016,3098502-162,"1,707.84",ROBBIE`S PRIVATE HIRE.
Children and Adult Services,Education,Transport,230007,Contract Hire,10-Mar-2016,3098503-150520,"4,967.68",ROBERTS TOURS.
Children and Adult Services,Education,Transport,230008,Contract Hire,10-Mar-2016,3098507-1654,918.00,RON`S TAXIS (FISHBURN).
Children and Adult Services,Education,Transport,230008,Contract Hire,10-Mar-2016,3098507-1656,"2,160.00",RON`S TAXIS (FISHBURN).
Children and Adult Services,Education,Transport,230008,Contract Hire,10-Mar-2016,3098507-1657,980.00,RON`S TAXIS (FISHBURN).
Children and Adult Services,Education,Transport,230008,Contract Hire,10-Mar-2016,3098514-SA060,512.00,S & A TAXIS.
Children and Adult Services,Education,Transport,230008,Contract Hire,10-Mar-2016,3098515-WO75/39,"1,436.80",S & S TRAVEL LTD.
Children and Adult Services,Education,Transport,230008,Contract Hire,10-Mar-2016,3098518-85,"1,332.45",SAZ CABS.
Children and Adult Services,Education,Transport,230008,Contract Hire,10-Mar-2016,3098525-6A,960.00,SHARON`S TAXI.
Children and Adult Services,Education,Transport,230008,Contract Hire,10-Mar-2016,3098528-025,"1,234.96",SHOEY`S TAXIS.
Children and Adult Services,Education,Transport,230008,Contract Hire,10-Mar-2016,3098531-200,"1,672.00",SIMONS TAXIS.
Children and Adult Services,Education,Transport,230006,Contract Hire,10-Mar-2016,3098547-1/F651,630.00,STEELYS TAXIS.
Children and Adult Services,Education,Transport,230008,Contract Hire,10-Mar-2016,3098547-49,556.00,STEELYS TAXIS.
Children and Adult Services,Education,Transport,230007,Contract Hire,10-Mar-2016,3098548-349,"1,612.00",STEPHEN MAUDE LTD T/A MAUDES COACHES.
Children and Adult Services,Education,Transport,230007,Contract Hire,10-Mar-2016,3098548-350,"1,773.44",STEPHEN MAUDE LTD T/A MAUDES COACHES.
Children and Adult Services,Education,Transport,230007,Contract Hire,10-Mar-2016,3098548-351,"1,588.65",STEPHEN MAUDE LTD T/A MAUDES COACHES.
Children and Adult Services,Education,Transport,230007,Contract Hire,10-Mar-2016,3098548-352,"1,173.30",STEPHEN MAUDE LTD T/A MAUDES COACHES.
Children and Adult Services,Education,Transport,230008,Contract Hire,10-Mar-2016,3098557-26902A,"1,332.48",T MOORE & SON.
Children and Adult Services,Education,Transport,230007,Contract Hire,10-Mar-2016,3098557-27002B,576.00,T MOORE & SON.
Children and Adult Services,Education,Transport,230007,Contract Hire,10-Mar-2016,3098557-27102C,"1,280.00",T MOORE & SON.
Children and Adult Services,Education,Transport,230007,Contract Hire,10-Mar-2016,3098557-27502G,505.60,T MOORE & SON.
Children and Adult Services,Education,Transport,230008,Contract Hire,10-Mar-2016,3098559-1189,"2,347.52",TAILORMADE TRAVEL.
Children and Adult Services,Education,Transport,230008,Contract Hire,10-Mar-2016,3098561-B766A,"1,580.80",TALBOTS TRAVEL LTD.
Children and Adult Services,Education,Transport,230007,Contract Hire,10-Mar-2016,3098562-01663,"1,494.40",TALLENTIRES LTD.
Children and Adult Services,Education,Transport,230008,Contract Hire,10-Mar-2016,3098564-02/2016/001,768.00,TARNS TAXIS LTD.
Children and Adult Services,Education,Transport,230009,Contract Hire,10-Mar-2016,3098564-02/2016/002,800.00,TARNS TAXIS LTD.
Children and Adult Services,Education,Transport,230008,Contract Hire,10-Mar-2016,3098564-02/2016/003,"1,177.92",TARNS TAXIS LTD.
Children and Adult Services,Education,Transport,230006,Contract Hire,10-Mar-2016,3098566-DCC/2015/73,540.00,TAYLOR`S TAXIS.
Children and Adult Services,Education,Transport,230008,Contract Hire,10-Mar-2016,3098566-DCC/2015/74,"1,008.00",TAYLOR`S TAXIS.
Children and Adult Services,Education,Transport,230008,Contract Hire,10-Mar-2016,3098566-DCC/2015/77,"1,140.00",TAYLOR`S TAXIS.
Children and Adult Services,Education,Transfer Payments,510026,School Children,10-Mar-2016,3098581-THENURSERY0009,"1,206.00",THE NURSERY.
Children and Adult Services,Education,Transport,230008,Contract Hire,10-Mar-2016,3098600-013,651.00,TRIDENT TAXIS.
Children and Adult Services,Education,Transport,230008,Contract Hire,10-Mar-2016,3098602-39,"1,481.00",TT TAXIS.
Children and Adult Services,Education,Transport,230006,Contract Hire,10-Mar-2016,3098621-1040,"1,094.00",WE CONNOR.
Children and Adult Services,Education,Supplies and Services,328041,Clothing Uniforms and Laundry,10-Mar-2016,3098635-498378709,"1,002.50",YORKSHIRE PURCHASING ORGANISATION.
Children and Adult Services,Head of Adults,Transport,230005,Contract Hire,10-Mar-2016,3098149-O295,"1,184.00",ABC & OUSTON CABS.
Children and Adult Services,Head of Adults,Transport,230005,Contract Hire,10-Mar-2016,3098235-5926,628.70,CROFT BUSINESS SERVICES (UK) LTD T/A CROFT TAXIS.
Children and Adult Services,Head of Adults,Supplies and Services,384616,Miscellaneous Expenses,10-Mar-2016,3098272-9289,"2,567.96",ESSENTIAL CARE & SUPPORT LTD.
Children and Adult Services,Head of Adults,Transport,230005,Contract Hire,10-Mar-2016,3098341-871,"1,122.45",JDS PRIVATE HIRE DURHAM.
Children and Adult Services,Head of Adults,Transport,230005,Contract Hire,10-Mar-2016,3098350-DM1496,704.00,JOVIAL PRIVATE HIRE.
Children and Adult Services,Head of Adults,Transport,230005,Contract Hire,10-Mar-2016,3098392-CLS059,"1,040.00",MARK MUSGROVE T/A MARKS TAXIS.
Children and Adult Services,Head of Adults,Transport,230005,Contract Hire,10-Mar-2016,3098406-626,"1,722.00",MOLLYS TAXIS.
Children and Adult Services,Head of Adults,Transport,230005,Contract Hire,10-Mar-2016,3098411-EDB02-16,912.00,MR CT WALKER T/A COLIN`S TAXIS.
Children and Adult Services,Head of Adults,Transport,230005,Contract Hire,10-Mar-2016,3098531-201,668.00,SIMONS TAXIS.
Children and Adult Services,Head of Adults,Transport,230005,Contract Hire,10-Mar-2016,3098561-B783,"1,372.18",TALBOTS TRAVEL LTD.
Children and Adult Services,Planning & Service Strategy,Supplies and Services,308011,Furniture,10-Mar-2016,3098155-154704,"2,598.75",ALBANY CONTRACT FURNITURE.
Children and Adult Services,Planning & Service Strategy,Supplies and Services,338091,Services,10-Mar-2016,3098323-2259,600.00,HSF TRAINING LTD.
Children and Adult Services,Planning & Service Strategy,Supplies and Services,384199,Miscellaneous Expenses,10-Mar-2016,3098486-346710,"1,232.71",RADISSON BLUE HOTEL DURHAM.
Children and Adult Services,Public Health,Premises,145009,Cleaning and Domestic Supplies,10-Mar-2016,3098185-0000022224,851.04,BETTAKLEEN LTD.
Children and Adult Services,Public Health,Third Party Payments,460802,Contract Payments,10-Mar-2016,3098433-1000047339,"69,037.81",NHS BUSINESS SERVICES AUTHORITY.
Assistant Chief Executive,Partnerships & Community Engagement Div.,Cap Exp on Grants & Other Financial Assistance (REFCUS),918004,Contributions to other bodies,10-Mar-2016,3098316-STAN009SGF26,"1,400.00",HAVANNAH COMMUNITY PARTNERSHIP.
Assistant Chief Executive,Partnerships & Community Engagement Div.,Transfer Payments,525030,Other,10-Mar-2016,3098447-STAN009SGF15,"1,935.00",OXHILL YOUTH CLUB.
Neighbourhood Services,Technical Services,Supplies and Services,304221,Equipment and Materials,10-Mar-2016,3098152-22704056,766.00,AGGREGATE INDUSTRIES UK LTD.
Neighbourhood Services,Technical Services,Supplies and Services,304221,Equipment and Materials,10-Mar-2016,3098152-22704057,903.47,AGGREGATE INDUSTRIES UK LTD.
Neighbourhood Services,Technical Services,Supplies and Services,304221,Equipment and Materials,10-Mar-2016,3098152-22704058,515.15,AGGREGATE INDUSTRIES UK LTD.
Neighbourhood Services,Technical Services,Supplies and Services,304221,Equipment and Materials,10-Mar-2016,3098152-22704059,"1,017.83",AGGREGATE INDUSTRIES UK LTD.
Neighbourhood Services,Technical Services,Supplies and Services,304221,Equipment and Materials,10-Mar-2016,3098152-22704060,"1,245.22",AGGREGATE INDUSTRIES UK LTD.
Neighbourhood Services,Culture & Sport,Supplies and Services,384199,Miscellaneous Expenses,10-Mar-2016,3098158-Order2016-070-141,"2,652.00",AMERICAN EXPRESS SERVICES EUROPE LTD.
Neighbourhood Services,Technical Services,Stock,926900,Stock in hand-Inventory system,10-Mar-2016,3098170-SIN321845,602.60,ATF SUPPLIES LTD.
Neighbourhood Services,Direct Services,Third Party Payments,430100,Rendered by Private Contractors,10-Mar-2016,3098173-29638,"1,398.00",AYCLIFFE FABRICATIONS LTD.
Neighbourhood Services,Direct Services,Third Party Payments,430100,Rendered by Private Contractors,10-Mar-2016,3098182-46043720,"2,461.27",BELL TRUCK SALES LTD.
Neighbourhood Services,Technical Services,Third Party Payments,430100,Rendered by Private Contractors,10-Mar-2016,3098216-03-2016-022,"16,666.67",CHARLES LAWRENCE SURFACES LTD.
Neighbourhood Services,Direct Services,Transport,210057,Repair and Maintenance of Vehicles,10-Mar-2016,3098218-330190,544.76,CHATFIELDS.
Neighbourhood Services,Projects and Business services,Vehicles Equipment Furniture and Fittings,912701,Computer equipment,10-Mar-2016,3098224-C/IC140440,550.00,CIVICA UK LTD.
Neighbourhood Services,Direct Services,Third Party Payments,430100,Rendered by Private Contractors,10-Mar-2016,3098227-8117560,"2,905.82",CLOVER CONTROLS LTD.
Neighbourhood Services,Technical Services,Stock,926900,Stock in hand-Inventory system,10-Mar-2016,3098229-177682,"1,109.52",COLAS LTD.
Neighbourhood Services,Culture & Sport,Construction Work,908105,Construction work,10-Mar-2016,3098271-WHARTONPARK,"314,861.29",ESH CONSTRUCTION LTD FORMERLY LUMSDEN & CARROLL CONSTRUCTION LTD.
Neighbourhood Services,Direct Services,Supplies and Services,304221,Equipment and Materials,10-Mar-2016,3098281-1601-183355,996.75,FLAME HEATING SPARES LTD.
Neighbourhood Services,Technical Services,Third Party Payments,430100,Rendered by Private Contractors,10-Mar-2016,3098295-108529847,"84,303.02",GATESHEAD COUNCIL.
Neighbourhood Services,Technical Services,Third Party Payments,430100,Rendered by Private Contractors,10-Mar-2016,3098295-108529856,"14,481.60",GATESHEAD COUNCIL.
Neighbourhood Services,Technical Services,Third Party Payments,430100,Rendered by Private Contractors,10-Mar-2016,3098295-108529874,"3,689.00",GATESHEAD COUNCIL.
Neighbourhood Services,Technical Services,Third Party Payments,430100,Rendered by Private Contractors,10-Mar-2016,3098295-108529892,"5,035.00",GATESHEAD COUNCIL.
Neighbourhood Services,Technical Services,Third Party Payments,430100,Rendered by Private Contractors,10-Mar-2016,3098295-108529945,870.00,GATESHEAD COUNCIL.
Neighbourhood Services,Technical Services,Third Party Payments,430100,Rendered by Private Contractors,10-Mar-2016,3098295-108529954,"4,336.00",GATESHEAD COUNCIL.
Neighbourhood Services,Technical Services,Third Party Payments,430100,Rendered by Private Contractors,10-Mar-2016,3098295-108529963,710.00,GATESHEAD COUNCIL.
Neighbourhood Services,Technical Services,Third Party Payments,430100,Rendered by Private Contractors,10-Mar-2016,3098295-108529981,"5,156.00",GATESHEAD COUNCIL.
Neighbourhood Services,Technical Services,Third Party Payments,430100,Rendered by Private Contractors,10-Mar-2016,3098295-108530006,"6,423.42",GATESHEAD COUNCIL.
Neighbourhood Services,Technical Services,Third Party Payments,430100,Rendered by Private Contractors,10-Mar-2016,3098295-108530024,"5,018.00",GATESHEAD COUNCIL.
Neighbourhood Services,Technical Services,Third Party Payments,430100,Rendered by Private Contractors,10-Mar-2016,3098295-108530042,"4,000.00",GATESHEAD COUNCIL.
Neighbourhood Services,Technical Services,Third Party Payments,430100,Rendered by Private Contractors,10-Mar-2016,3098295-108530051,"5,000.00",GATESHEAD COUNCIL.
Neighbourhood Services,Technical Services,Third Party Payments,430100,Rendered by Private Contractors,10-Mar-2016,3098295-108530060,"1,800.00",GATESHEAD COUNCIL.
Neighbourhood Services,Direct Services,Supplies and Services,304252,Equipment and Materials,10-Mar-2016,3098297-I111636,"2,316.37",GEMCO SERVICE LTD.
Neighbourhood Services,Direct Services,Supplies and Services,304252,Equipment and Materials,10-Mar-2016,3098297-I111637,"3,339.40",GEMCO SERVICE LTD.
Neighbourhood Services,Technical Services,Stock,926900,Stock in hand-Inventory system,10-Mar-2016,3098307-06/591332,894.14,GREENHAM TRADING LTD.
Neighbourhood Services,Direct Services,Transport,215005,Running Costs of Vehicles,10-Mar-2016,3098315-0000005443,"14,322.98",HARVEST ENERGY LTD.
Neighbourhood Services,Technical Services,Stock,926900,Stock in hand-Inventory system,10-Mar-2016,3098334-519911,"2,612.96",INSTARMAC GROUP PLC.
Neighbourhood Services,Technical Services,Stock,926900,Stock in hand-Inventory system,10-Mar-2016,3098348-NI030444,"16,500.00",JOHN MACLEAN & SONS ELECTRICAL (DINGWALL) LTD.
Neighbourhood Services,Culture & Sport,Supplies and Services,384199,Miscellaneous Expenses,10-Mar-2016,3098353-36,"4,500.00",JR MILGATE ORCHESTRA PROMOTIONS.
Neighbourhood Services,Technical Services,Supplies and Services,304221,Equipment and Materials,10-Mar-2016,3098355-BII183565,623.60,JT DOVE LTD.
